Body name,Service Area,Dept,Expenses Type,Capital/Revenue,Detailed Expenses Type,Transaction number,Expense Code,Date,Amount,Supplier Name,Supplier ID
WANDSWORTH COUNCIL,CS,FINANCE,"REPAIRS, ALTERATIONS & MTCE",Revenue,"REPS, ALTS & MTCE-BUILDINGS",937028,100410000,03-May-16,"1,158.02",EDF ENERGY,SP0004889
WANDSWORTH COUNCIL,CS,,SERVICES,Revenue,CONSULTANTS FEES,944382,100434200,13-May-16,"12,736.00",WILDSTONE MEDIA CONSULTING LTD,SP0010364
WANDSWORTH COUNCIL,CS,,SERVICES,Revenue,CONSULTANTS FEES,957798,100534200,26-May-16,"2,940.00",KNIGHT FRANK LLP,SP0004347
WANDSWORTH COUNCIL,CS,,SERVICES,Revenue,CONSULTANTS FEES,958046,100534200,26-May-16,"1,480.00",DDS ENVIRONMENTAL,SP0008409
WANDSWORTH COUNCIL,CS,,SERVICES,Revenue,CONSULTANTS FEES,958047,100534200,26-May-16,"1,320.00",DDS ENVIRONMENTAL,SP0008409
WANDSWORTH COUNCIL,CS,,SERVICES,Revenue,CONSULTANTS FEES,958049,100534200,26-May-16,"1,140.00",DDS ENVIRONMENTAL,SP0008409
WANDSWORTH COUNCIL,CS,,OTHER AGENCIES,Revenue,HEALTHWATCH CONTRACT,943306,102043830,12-May-16,"31,833.00",WANDSWORTH CARE ALLIANCE,SP0008176
WANDSWORTH COUNCIL,CS,,OTHER AGENCIES,Revenue,HEALTHWATCH CONTRACT,943307,102043830,12-May-16,"4,489.00",WANDSWORTH CARE ALLIANCE,SP0008176
WANDSWORTH COUNCIL,CS,,PRINTING STAT & GEN OFFICE EXP,Revenue,PRINTING REGISTRATION A FORM,951570,103033440,23-May-16,"2,253.68",BANNER MANAGED COMMUNICATION,SP0003555
WANDSWORTH COUNCIL,CS,,COMMUNICATIONS & COMP,Revenue,XPRESS COMPUTER,947264,103036570,18-May-16,"25,094.42",XPRESS SOFTWARE SOLUTIONS LTD,SP0003149
WANDSWORTH COUNCIL,CS,,"EQUIPMENT, FURNITURE & MATS",Revenue,FLOWERS,937610,103130170,09-May-16,646.00,PATRICIA WONG,SP0002085
WANDSWORTH COUNCIL,CS,,"EQUIPMENT, FURNITURE & MATS",Revenue,FLOWERS,945160,103130170,13-May-16,646.00,PATRICIA WONG,SP0002085
WANDSWORTH COUNCIL,PH,,MISC,Revenue,CONTINGENCIES,941609,107938550,12-May-16,"2,225.00",HALO LIGHTING,SP0010822
WANDSWORTH COUNCIL,NGF CS,,PRIVATE,Revenue,GENERAL CONTRACT WORK,863778,111045370,19-May-16,752.50,WINDOWFLOWERS LTD,SP0003089
WANDSWORTH COUNCIL,NGF CS,,PRIVATE,Revenue,REFUSE COLLECTN & PEST CONTROL,947300,111045500,17-May-16,534.79,SITA UK LTD,SP0000507
WANDSWORTH COUNCIL,NGF CS,,PRIVATE,Revenue,REFUSE COLLECTN & PEST CONTROL,947301,111045500,17-May-16,"1,202.69",SITA UK LTD,SP0000507
WANDSWORTH COUNCIL,NGF CS,,PRIVATE,Revenue,REFUSE COLLECTN & PEST CONTROL,950998,112045500,20-May-16,505.17,SITA UK LTD,SP0000507
WANDSWORTH COUNCIL,NGF CS,,PRIVATE,Revenue,REFUSE COLLECTN & PEST CONTROL,946169,112345500,13-May-16,505.17,SITA UK LTD,SP0000507
WANDSWORTH COUNCIL,NGF CS,,PRIVATE,Revenue,REFUSE COLLECTN & PEST CONTROL,950999,112945500,20-May-16,690.83,SITA UK LTD,SP0000507
WANDSWORTH COUNCIL,NGF CS,,CLEANING & DOMESTIC SUPPLIES,Revenue,CLEANING CONTRACT,943287,113813020,13-May-16,"56,636.40",OCEAN INTEGRATED SERVICES LTD,SP0001062
WANDSWORTH COUNCIL,NGF CS,,CLEANING & DOMESTIC SUPPLIES,Revenue,CLEANING CONTRACT,957722,113813020,27-May-16,"56,474.87",OCEAN INTEGRATED SERVICES LTD,SP0001062
WANDSWORTH COUNCIL,NGF CS,,CLEANING & DOMESTIC SUPPLIES,Revenue,CLEANING CONTRACT,940759,113813020,06-May-16,432.45,PHS GROUP PLC,SP0001063
WANDSWORTH COUNCIL,NGF CS,,CLEANING & DOMESTIC SUPPLIES,Revenue,CLEANING CONTRACT,947297,113813020,17-May-16,"2,037.35",PHS GROUP PLC,SP0001063
WANDSWORTH COUNCIL,NGF CS,,CLEANING & DOMESTIC SUPPLIES,Revenue,WINDOW CLEANING,940771,113813060,06-May-16,933.00,PARKERS CLEANING CONTRACTORS LTD,SP0002677
WANDSWORTH COUNCIL,NGF CS,,CLEANING & DOMESTIC SUPPLIES,Revenue,WINDOW CLEANING,940772,113813060,06-May-16,"4,710.00",PARKERS CLEANING CONTRACTORS LTD,SP0002677
WANDSWORTH COUNCIL,NGF CS,,"EQUIPMENT, FURNITURE & MATS",Revenue,"EQUIPMENT, FURNITURE & MATS",924043,114130000,10-May-16,312.00,OFFICE DEPOT UK LTD,SP0000092
WANDSWORTH COUNCIL,NGF CS,,"EQUIPMENT, FURNITURE & MATS",Revenue,"EQUIPMENT, FURNITURE & MATS",924043,114130000,10-May-16,321.00,OFFICE DEPOT UK LTD,SP0000092
WANDSWORTH COUNCIL,NGF CS,,"EQUIPMENT, FURNITURE & MATS",Revenue,"EQUIPMENT, FURNITURE & MATS",952409,120130000,27-May-16,690.00,DANWOOD GROUP LTD,SP0002739
WANDSWORTH COUNCIL,NGF CS,,PRINTING STAT & GEN OFFICE EXP,Revenue,PHOTOCOPYING,941567,120133380,12-May-16,740.95,DANWOOD GROUP LTD,SP0002739
WANDSWORTH COUNCIL,NGF CS,,GRANTS & SUBSCRIPTIONS,Revenue,SUBSCRIPTIONS,946383,120137640,16-May-16,"29,635.00",LEXIS NEXIS BUTTERWORTHS,SP0002496
WANDSWORTH COUNCIL,NGF CS,,MISC,Revenue,MISCELLANEOUS EXPENSES,951030,120538500,25-May-16,233.00,ECOMOTIVE LIMITED,SP0010766
WANDSWORTH COUNCIL,NGF CS,,OTHER AGENCIES,Revenue,DISBURSEMENTS,952422,120643250,23-May-16,957.42,BEVERLEY F NUNNERY & CO,SP0003376
WANDSWORTH COUNCIL,NGF CS,,OTHER AGENCIES,Revenue,DISBURSEMENTS,940299,120643250,06-May-16,"7,495.00",SHARPE PRITCHARD LLP,SP0003677
WANDSWORTH COUNCIL,NGF CS,,OTHER AGENCIES,Revenue,DISBURSEMENTS,940299,120643250,06-May-16,"1,125.00",SHARPE PRITCHARD LLP,SP0003677
WANDSWORTH COUNCIL,NGF CS,,OTHER AGENCIES,Revenue,DISBURSEMENTS,940313,120643250,06-May-16,500.00,4 BRICK COURT MANAGEMENT LIMITED,SP0007380
WANDSWORTH COUNCIL,NGF CS,,OTHER AGENCIES,Revenue,DISBURSEMENTS,950099,120643250,20-May-16,500.00,4 BRICK COURT MANAGEMENT LIMITED,SP0007380
WANDSWORTH COUNCIL,NGF CS,,OTHER AGENCIES,Revenue,DISBURSEMENTS,952418,120643250,25-May-16,500.00,4 BRICK COURT MANAGEMENT LIMITED,SP0007380
WANDSWORTH COUNCIL,NGF CS,,OTHER AGENCIES,Revenue,DISBURSEMENTS,955668,120643250,25-May-16,500.00,4 BRICK COURT MANAGEMENT LIMITED,SP0007380
WANDSWORTH COUNCIL,NGF CS,,OTHER AGENCIES,Revenue,DISBURSEMENTS,955669,120643250,25-May-16,500.00,4 BRICK COURT MANAGEMENT LIMITED,SP0007380
WANDSWORTH COUNCIL,NGF CS,,OTHER AGENCIES,Revenue,DISBURSEMENTS,955670,120643250,25-May-16,870.00,4 BRICK COURT MANAGEMENT LIMITED,SP0007380
WANDSWORTH COUNCIL,NGF CS,,OTHER AGENCIES,Revenue,DISBURSEMENTS,955671,120643250,25-May-16,500.00,4 BRICK COURT MANAGEMENT LIMITED,SP0007380
WANDSWORTH COUNCIL,NGF CS,,OTHER AGENCIES,Revenue,DISBURSEMENTS,955672,120643250,25-May-16,"1,150.00",4 BRICK COURT MANAGEMENT LIMITED,SP0007380
WANDSWORTH COUNCIL,NGF CS,,OTHER AGENCIES,Revenue,DISBURSEMENTS,955673,120643250,25-May-16,500.00,4 BRICK COURT MANAGEMENT LIMITED,SP0007380
WANDSWORTH COUNCIL,NGF CS,,OTHER AGENCIES,Revenue,DISBURSEMENTS,955674,120643250,25-May-16,550.00,4 BRICK COURT MANAGEMENT LIMITED,SP0007380
WANDSWORTH COUNCIL,NGF CS,,OTHER AGENCIES,Revenue,DISBURSEMENTS,955675,120643250,25-May-16,"1,300.00",4 BRICK COURT MANAGEMENT LIMITED,SP0007380
WANDSWORTH COUNCIL,NGF CS,,OTHER AGENCIES,Revenue,DISBURSEMENTS,955676,120643250,25-May-16,"2,400.00",4 BRICK COURT MANAGEMENT LIMITED,SP0007380
WANDSWORTH COUNCIL,NGF CS,,OTHER AGENCIES,Revenue,DISBURSEMENTS,955677,120643250,25-May-16,550.00,4 BRICK COURT MANAGEMENT LIMITED,SP0007380
WANDSWORTH COUNCIL,NGF CS,,OTHER AGENCIES,Revenue,DISBURSEMENTS,955678,120643250,25-May-16,650.00,4 BRICK COURT MANAGEMENT LIMITED,SP0007380
WANDSWORTH COUNCIL,NGF CS,,OTHER AGENCIES,Revenue,DISBURSEMENTS,955679,120643250,25-May-16,500.00,4 BRICK COURT MANAGEMENT LIMITED,SP0007380
WANDSWORTH COUNCIL,NGF CS,,OTHER AGENCIES,Revenue,DISBURSEMENTS,955680,120643250,25-May-16,"1,550.00",4 BRICK COURT MANAGEMENT LIMITED,SP0007380
WANDSWORTH COUNCIL,NGF CS,,OTHER AGENCIES,Revenue,DISBURSEMENTS,955681,120643250,25-May-16,"4,450.00",4 BRICK COURT MANAGEMENT LIMITED,SP0007380
WANDSWORTH COUNCIL,NGF CS,,OTHER AGENCIES,Revenue,DISBURSEMENTS,955682,120643250,25-May-16,"7,467.50",4 BRICK COURT MANAGEMENT LIMITED,SP0007380
WANDSWORTH COUNCIL,NGF CS,,OTHER AGENCIES,Revenue,DISBURSEMENTS,956036,120643250,25-May-16,645.00,4 BRICK COURT MANAGEMENT LIMITED,SP0007380
WANDSWORTH COUNCIL,NGF CS,,OTHER AGENCIES,Revenue,DISBURSEMENTS,956037,120643250,25-May-16,425.00,4 BRICK COURT MANAGEMENT LIMITED,SP0007380
WANDSWORTH COUNCIL,NGF CS,,OTHER AGENCIES,Revenue,DISBURSEMENTS,956038,120643250,25-May-16,700.00,4 BRICK COURT MANAGEMENT LIMITED,SP0007380
WANDSWORTH COUNCIL,NGF CS,,OTHER AGENCIES,Revenue,DISBURSEMENTS,956039,120643250,25-May-16,500.00,4 BRICK COURT MANAGEMENT LIMITED,SP0007380
WANDSWORTH COUNCIL,NGF CS,,OTHER AGENCIES,Revenue,DISBURSEMENTS,956040,120643250,25-May-16,500.00,4 BRICK COURT MANAGEMENT LIMITED,SP0007380
WANDSWORTH COUNCIL,NGF CS,,OTHER AGENCIES,Revenue,DISBURSEMENTS,956041,120643250,25-May-16,550.00,4 BRICK COURT MANAGEMENT LIMITED,SP0007380
WANDSWORTH COUNCIL,NGF CS,,OTHER AGENCIES,Revenue,DISBURSEMENTS,958971,120643250,27-May-16,"1,900.00",4 BRICK COURT MANAGEMENT LIMITED,SP0007380
WANDSWORTH COUNCIL,NGF CS,,OTHER AGENCIES,Revenue,DISBURSEMENTS,958972,120643250,27-May-16,"3,535.00",4 BRICK COURT MANAGEMENT LIMITED,SP0007380
WANDSWORTH COUNCIL,NGF CS,,OTHER AGENCIES,Revenue,DISBURSEMENTS,958973,120643250,27-May-16,"4,400.00",4 BRICK COURT MANAGEMENT LIMITED,SP0007380
WANDSWORTH COUNCIL,NGF CS,,OTHER AGENCIES,Revenue,DISBURSEMENTS,950098,120643250,20-May-16,"4,040.00",11 KBW LTD,SP0008673
WANDSWORTH COUNCIL,NGF CS,,OTHER AGENCIES,Revenue,DISBURSEMENTS,948391,120643250,18-May-16,475.00,LEXTOX,SP0009034
WANDSWORTH COUNCIL,NGF CS,,OTHER AGENCIES,Revenue,DISBURSEMENTS,958974,120643250,27-May-16,"2,200.00",THE CHAMBERS OF ANDREW TROLLOPE QC,SP0009051
WANDSWORTH COUNCIL,NGF CS,,OTHER AGENCIES,Revenue,DISBURSEMENTS,936997,120643250,05-May-16,750.00,FIVE PAPER,SP0009057
WANDSWORTH COUNCIL,NGF CS,,OTHER AGENCIES,Revenue,DISBURSEMENTS,937000,120643250,05-May-16,800.00,1 GARDEN COURT CHAMBERS,SP0009291
WANDSWORTH COUNCIL,NGF CS,,OTHER AGENCIES,Revenue,DISBURSEMENTS,937001,120643250,05-May-16,500.00,1 GARDEN COURT CHAMBERS,SP0009291
WANDSWORTH COUNCIL,NGF CS,,OTHER AGENCIES,Revenue,DISBURSEMENTS,945135,120643250,12-May-16,500.00,1 GARDEN COURT CHAMBERS,SP0009291
WANDSWORTH COUNCIL,NGF CS,,OTHER AGENCIES,Revenue,DISBURSEMENTS,948432,120643250,18-May-16,500.00,1 GARDEN COURT CHAMBERS,SP0009291
WANDSWORTH COUNCIL,NGF CS,,OTHER AGENCIES,Revenue,DISBURSEMENTS,948434,120643250,18-May-16,725.00,1 GARDEN COURT CHAMBERS,SP0009291
WANDSWORTH COUNCIL,NGF CS,,OTHER AGENCIES,Revenue,DISBURSEMENTS,950111,120643250,20-May-16,500.00,1 GARDEN COURT CHAMBERS,SP0009291
WANDSWORTH COUNCIL,NGF CS,,OTHER AGENCIES,Revenue,DISBURSEMENTS,955684,120643250,25-May-16,425.00,1 GARDEN COURT CHAMBERS,SP0009291
WANDSWORTH COUNCIL,NGF CS,,OTHER AGENCIES,Revenue,DISBURSEMENTS,948433,120643250,18-May-16,750.00,42 BEDFORD ROW CHAMBERS,SP0009440
WANDSWORTH COUNCIL,NGF CS,,OTHER AGENCIES,Revenue,DISBURSEMENTS,948473,120643250,18-May-16,"1,375.00",42 BEDFORD ROW CHAMBERS,SP0009440
WANDSWORTH COUNCIL,NGF CS,,OTHER AGENCIES,Revenue,DISBURSEMENTS,940310,120643250,09-May-16,503.10,DSP PSYCHOLOGY,SP0009444
WANDSWORTH COUNCIL,NGF CS,,OTHER AGENCIES,Revenue,DISBURSEMENTS,941207,120643250,10-May-16,608.40,DSP PSYCHOLOGY,SP0009444
WANDSWORTH COUNCIL,NGF CS,,OTHER AGENCIES,Revenue,DISBURSEMENTS,936998,120643250,05-May-16,720.00,FOURTEEN,SP0009555
WANDSWORTH COUNCIL,NGF CS,,OTHER AGENCIES,Revenue,DISBURSEMENTS,936999,120643250,05-May-16,625.00,FOURTEEN,SP0009555
WANDSWORTH COUNCIL,NGF CS,,OTHER AGENCIES,Revenue,DISBURSEMENTS,950702,120643250,20-May-16,"3,460.00",FOURTEEN,SP0009555
WANDSWORTH COUNCIL,NGF CS,,OTHER AGENCIES,Revenue,DISBURSEMENTS,936822,120643250,05-May-16,632.00,DR CHRISTOPHER J B MCEVEDY,SP0010181
WANDSWORTH COUNCIL,NGF CS,,OTHER AGENCIES,Revenue,DISBURSEMENTS,948393,120643250,18-May-16,825.00,FIVE ST ANDREWS HILL,SP0010537
WANDSWORTH COUNCIL,NGF CS,,PRIVATE,Revenue,CONTRACT 4- LITIGATION,940298,120646160,06-May-16,"8,280.10",SHARPE PRITCHARD LLP,SP0003677
WANDSWORTH COUNCIL,NGF CS,,PRIVATE,Revenue,LOT 1 - LLORD SERVS PROP MGMT,945651,120746180,13-May-16,"4,338.00",LAMBERT SMITH HAMPTON,SP0002515
WANDSWORTH COUNCIL,NGF CS,,PRIVATE,Revenue,LOT 1 - LLORD SERVS PROP MGMT,951015,120746180,20-May-16,"11,374.48",LAMBERT SMITH HAMPTON,SP0002515
WANDSWORTH COUNCIL,NGF CS,,PRIVATE,Revenue,LOT 2 - GEN VALUATIONS,945445,120746250,13-May-16,"1,055.37",LAMBERT SMITH HAMPTON,SP0002515
WANDSWORTH COUNCIL,NGF CS,,"EQUIPMENT, FURNITURE & MATS",Revenue,"EQUIPMENT, FURNITURE & MATS",955696,121130000,27-May-16,48.64,SUPPLIES TEAM,SP0002310
WANDSWORTH COUNCIL,NGF CS,,"EQUIPMENT, FURNITURE & MATS",Revenue,"EQUIPMENT, FURNITURE & MATS",955696,121130000,27-May-16,365.66,SUPPLIES TEAM,SP0002310
WANDSWORTH COUNCIL,NGF CS,,"EQUIPMENT, FURNITURE & MATS",Revenue,"EQUIPMENT, FURNITURE & MATS",955696,121130000,27-May-16,774.56,SUPPLIES TEAM,SP0002310
WANDSWORTH COUNCIL,NGF CS,,PRINTING STAT & GEN OFFICE EXP,Revenue,OUTWORK - LITHO,938460,121333590,04-May-16,691.00,PURBROOKS LTD,SP0001851
WANDSWORTH COUNCIL,NGF CS,,PRINTING STAT & GEN OFFICE EXP,Revenue,OUTWORK - LITHO,938415,121333590,04-May-16,460.00,KALL KWIK,SP0003093
WANDSWORTH COUNCIL,NGF CS,,PRINTING STAT & GEN OFFICE EXP,Revenue,OUTWORK - LITHO,938440,121333590,04-May-16,748.00,KALL KWIK,SP0003093
WANDSWORTH COUNCIL,NGF CS,,PRINTING STAT & GEN OFFICE EXP,Revenue,OUTWORK - LITHO,960126,121333590,31-May-16,919.95,KALL KWIK,SP0003093
WANDSWORTH COUNCIL,NGF CS,,PRINTING STAT & GEN OFFICE EXP,Revenue,OUTWORK - LITHO,960127,121333590,31-May-16,"3,200.00",KALL KWIK,SP0003093
WANDSWORTH COUNCIL,NGF CS,,PRINTING STAT & GEN OFFICE EXP,Revenue,OUTWORK - LITHO,960138,121333590,31-May-16,494.20,KALL KWIK,SP0003093
WANDSWORTH COUNCIL,NGF CS,,PRINTING STAT & GEN OFFICE EXP,Revenue,OUTWORK - LITHO,960139,121333590,31-May-16,494.20,KALL KWIK,SP0003093
WANDSWORTH COUNCIL,NGF CS,,PRINTING STAT & GEN OFFICE EXP,Revenue,OUTWORK - LITHO,960140,121333590,31-May-16,564.80,KALL KWIK,SP0003093
WANDSWORTH COUNCIL,NGF CS,,MISC,Revenue,MISCELLANEOUS EXPENSES,960154,121338500,31-May-16,"1,651.05",LONDON LETTERBOX MARKETING,SP0000546
WANDSWORTH COUNCIL,NGF CS,,"EQUIPMENT, FURNITURE & MATS",Revenue,OP COSTS - QUICKPRINT MACHINE,959009,121430230,27-May-16,770.44,RICOH UK LTD,SP0002316
WANDSWORTH COUNCIL,NGF CS,,"EQUIPMENT, FURNITURE & MATS",Revenue,OP COSTS - QUICKPRINT MACHINE,959010,121430230,27-May-16,736.78,RICOH UK LTD,SP0002316
WANDSWORTH COUNCIL,NGF CS,,"EQUIPMENT, FURNITURE & MATS",Revenue,OP COSTS - QUICKPRINT MACHINE,959011,121430230,27-May-16,56.75,KONICA MINOLTA BUSINESS SOLUTIONS(UK)LIM,SP0008220
WANDSWORTH COUNCIL,NGF CS,,"EQUIPMENT, FURNITURE & MATS",Revenue,OP COSTS -COLOUR COPIER RENTAL,959007,121430240,27-May-16,778.38,CANON (UK) LTD,SP0000262
WANDSWORTH COUNCIL,NGF CS,,"EQUIPMENT, FURNITURE & MATS",Revenue,OP COSTS -COLOUR COPIER RENTAL,959011,121430240,27-May-16,"1,580.49",KONICA MINOLTA BUSINESS SOLUTIONS(UK)LIM,SP0008220
WANDSWORTH COUNCIL,NGF CDC,,PRINTING STAT & GEN OFFICE EXP,Revenue,PUBLICITY,944374,122033470,12-May-16,649.00,DOTMAILER LTD,SP0006264
WANDSWORTH COUNCIL,NGF CS,,"EQUIPMENT, FURNITURE & MATS",Revenue,EQUIP.FURN & MATS-REPS & MTCE,947299,122130010,17-May-16,731.96,NEOPOST LTD,SP0003054
WANDSWORTH COUNCIL,NGF CS,,INDIRECT,Revenue,CHILDCARE VOUCHERS,941584,123200650,12-May-16,681.26,COMPUTERSHARE VOUCHER SERVICES,SP0003037
WANDSWORTH COUNCIL,NGF CS,,INDIRECT,Revenue,CHILDCARE VOUCHERS,956680,123200650,27-May-16,133.91,COMPUTERSHARE VOUCHER SERVICES,SP0003037
WANDSWORTH COUNCIL,NGF CS,,"EQUIPMENT, FURNITURE & MATS",Revenue,"EQUIPMENT, FURNITURE & MATS",957075,123230000,27-May-16,100.14,ACS LTD,SP0004000
WANDSWORTH COUNCIL,NGF CS,,"EQUIPMENT, FURNITURE & MATS",Revenue,"EQUIPMENT, FURNITURE & MATS",957075,123230000,27-May-16,9.95,ACS LTD,SP0004000
WANDSWORTH COUNCIL,NGF CS,,"EQUIPMENT, FURNITURE & MATS",Revenue,"EQUIPMENT, FURNITURE & MATS",957075,123230000,27-May-16,"2,601.00",ACS LTD,SP0004000
WANDSWORTH COUNCIL,NGF CS,,"EQUIPMENT, FURNITURE & MATS",Revenue,"EQUIPMENT, FURNITURE & MATS",957075,123230000,27-May-16,89.94,ACS LTD,SP0004000
WANDSWORTH COUNCIL,NGF CS,,"EQUIPMENT, FURNITURE & MATS",Revenue,"EQUIPMENT, FURNITURE & MATS",957075,123230000,27-May-16,237.00,ACS LTD,SP0004000
WANDSWORTH COUNCIL,NGF CS,,PRINTING STAT & GEN OFFICE EXP,Revenue,PRINTING AND STATIONERY,958999,123233420,31-May-16,183.42,DANWOOD GROUP LTD,SP0002739
WANDSWORTH COUNCIL,NGF CS,,PRINTING STAT & GEN OFFICE EXP,Revenue,PRINTING AND STATIONERY,958999,123233420,31-May-16,183.42,DANWOOD GROUP LTD,SP0002739
WANDSWORTH COUNCIL,NGF CS,,PRINTING STAT & GEN OFFICE EXP,Revenue,PRINTING AND STATIONERY,958999,123233420,31-May-16,183.42,DANWOOD GROUP LTD,SP0002739
WANDSWORTH COUNCIL,NGF CS,,SERVICES,Revenue,OHS SESSIONAL DOCTOR,940751,123234690,09-May-16,"3,944.16",HJM ASSOCIATES,SP0003667
WANDSWORTH COUNCIL,NGF CS,,SERVICES,Revenue,SERVICES - GENERAL,940752,123234870,09-May-16,420.68,QUEST INFORMATION SYSTEMS LTD - DICTATEN,SP0002265
WANDSWORTH COUNCIL,NGF CS,,MISC,Revenue,MISCELLANEOUS EXPENSES,941218,123238500,12-May-16,"1,379.75",EDENRED UK GROUP LTD,SP0000238
WANDSWORTH COUNCIL,NGF CDC,,MISC,Revenue,MISCELLANEOUS EXPENSES,955934,124038500,26-May-16,610.00,JAMES RUSSELL STUDIO,SP0001938
WANDSWORTH COUNCIL,NGF CDC,,MISC,Revenue,MISCELLANEOUS EXPENSES,956222,124038500,27-May-16,507.38,ABC CATERING & PARTY EQUIPMENT HIRE LTD,SP0003295
WANDSWORTH COUNCIL,PH,,SERVICES,Revenue,PROJECT WORK,947292,125134800,23-May-16,525.00,LONDON ACADEMY OF IT,SP0010837
WANDSWORTH COUNCIL,NGF CS,,"EQUIPMENT, FURNITURE & MATS",Revenue,CCTV CONTROL ROOM DEVELOPMENT,946170,126130030,16-May-16,"9,020.52",VIRGIN MEDIA BUSINESS,SP0003737
WANDSWORTH COUNCIL,NGF CS,,"EQUIPMENT, FURNITURE & MATS",Revenue,CCTV CONTROL ROOM DEVELOPMENT,947239,126130030,16-May-16,"1,381.88",VIRGIN MEDIA BUSINESS,SP0003737
WANDSWORTH COUNCIL,NGF CS,,"EQUIPMENT, FURNITURE & MATS",Revenue,CCTV FIBRE RENTALS,947262,126130040,17-May-16,"4,235.00",VODAFONE CORPORATE,SP0001107
WANDSWORTH COUNCIL,NGF CS,,"EQUIPMENT, FURNITURE & MATS",Revenue,CCTV MAINTENANCE,955790,126130050,24-May-16,322.11,VODAFONE CORPORATE,SP0001107
WANDSWORTH COUNCIL,NGF CS,,"EQUIPMENT, FURNITURE & MATS",Revenue,CCTV MAINTENANCE,955790,126130050,24-May-16,"75,390.84",VODAFONE CORPORATE,SP0001107
WANDSWORTH COUNCIL,NGF CS,,"EQUIPMENT, FURNITURE & MATS",Revenue,CONSUMABLES,946757,126130080,16-May-16,"1,590.21",BT PAYMENT SERVICES LTD,SP0001093
WANDSWORTH COUNCIL,NGF CS,,"EQUIPMENT, FURNITURE & MATS",Revenue,CONSUMABLES,951644,126130080,20-May-16,836.54,BT PAYMENT SERVICES LTD,SP0001093
WANDSWORTH COUNCIL,NGF CS,,"EQUIPMENT, FURNITURE & MATS",Revenue,CONSUMABLES,955789,126130080,24-May-16,964.48,BT PAYMENT SERVICES LTD,SP0001093
WANDSWORTH COUNCIL,NGF CS,,"EQUIPMENT, FURNITURE & MATS",Revenue,CONSUMABLES,955789,126130080,24-May-16,120.00,BT PAYMENT SERVICES LTD,SP0001093
WANDSWORTH COUNCIL,NGF CS,,"EQUIPMENT, FURNITURE & MATS",Revenue,"EQUIPMENT, FURNITURE & MATS",952413,126330000,23-May-16,"2,400.00",DV02 LTD,SP0004553
WANDSWORTH COUNCIL,NGF CS,,"EQUIPMENT, FURNITURE & MATS",Revenue,"EQUIPMENT, FURNITURE & MATS",952413,126330000,23-May-16,15.00,DV02 LTD,SP0004553
WANDSWORTH COUNCIL,NGF CS,,"EQUIPMENT, FURNITURE & MATS",Revenue,"EQUIPMENT, FURNITURE & MATS",952414,126330000,23-May-16,"1,149.50",DV02 LTD,SP0004553
WANDSWORTH COUNCIL,NGF CS,,"EQUIPMENT, FURNITURE & MATS",Revenue,"EQUIPMENT, FURNITURE & MATS",952414,126330000,23-May-16,720.00,DV02 LTD,SP0004553
WANDSWORTH COUNCIL,NGF CS,,"EQUIPMENT, FURNITURE & MATS",Revenue,"EQUIPMENT, FURNITURE & MATS",952414,126330000,23-May-16,20.00,DV02 LTD,SP0004553
WANDSWORTH COUNCIL,NGF CS,,"EQUIPMENT, FURNITURE & MATS",Revenue,"EQUIPMENT, FURNITURE & MATS",946750,126330000,23-May-16,20.00,DIGITAL EXCHANGE PRODUCTS LTD,SP0005272
WANDSWORTH COUNCIL,NGF CS,,"EQUIPMENT, FURNITURE & MATS",Revenue,"EQUIPMENT, FURNITURE & MATS",946750,126330000,23-May-16,"2,980.00",DIGITAL EXCHANGE PRODUCTS LTD,SP0005272
WANDSWORTH COUNCIL,NGF CS,,"EQUIPMENT, FURNITURE & MATS",Revenue,"EQUIPMENT, FURNITURE & MATS",906017,126530000,13-May-16,"9,505.00",KENSON NETWORK ENGINEERING LTD,SP0001180
WANDSWORTH COUNCIL,NGF CS,,"EQUIPMENT, FURNITURE & MATS",Revenue,"EQUIPMENT, FURNITURE & MATS",947252,126530000,17-May-16,"44,780.00",DELL CORPORATION LTD,SP0003352
WANDSWORTH COUNCIL,NGF CS,,"EQUIPMENT, FURNITURE & MATS",Revenue,"EQUIPMENT, FURNITURE & MATS",948398,126530000,20-May-16,"3,555.00",LRQA LIMITED,SP0003365
WANDSWORTH COUNCIL,NGF CS,,"EQUIPMENT, FURNITURE & MATS",Revenue,"EQUIPMENT, FURNITURE & MATS",952943,126530000,25-May-16,811.54,SOFTWARE BOX LTD,SP0007589
WANDSWORTH COUNCIL,NGF CS,,"EQUIPMENT, FURNITURE & MATS",Revenue,"EQUIPMENT, FURNITURE & MATS",952943,126530000,25-May-16,"1,019.88",SOFTWARE BOX LTD,SP0007589
WANDSWORTH COUNCIL,NGF CS,,"EQUIPMENT, FURNITURE & MATS",Revenue,"EQUIPMENT, FURNITURE & MATS",952943,126530000,25-May-16,"8,158.88",SOFTWARE BOX LTD,SP0007589
WANDSWORTH COUNCIL,NGF CS,,"EQUIPMENT, FURNITURE & MATS",Revenue,"EQUIPMENT, FURNITURE & MATS",952943,126530000,25-May-16,"7,139.02",SOFTWARE BOX LTD,SP0007589
WANDSWORTH COUNCIL,NGF CS,,"EQUIPMENT, FURNITURE & MATS",Revenue,"EQUIPMENT, FURNITURE & MATS",952943,126530000,25-May-16,"1,019.88",SOFTWARE BOX LTD,SP0007589
WANDSWORTH COUNCIL,NGF CS,,"EQUIPMENT, FURNITURE & MATS",Revenue,"EQUIPMENT, FURNITURE & MATS",952943,126530000,25-May-16,932.41,SOFTWARE BOX LTD,SP0007589
WANDSWORTH COUNCIL,NGF CS,,"EQUIPMENT, FURNITURE & MATS",Revenue,"EQUIPMENT, FURNITURE & MATS",952943,126530000,25-May-16,"1,864.82",SOFTWARE BOX LTD,SP0007589
WANDSWORTH COUNCIL,NGF CS,,"EQUIPMENT, FURNITURE & MATS",Revenue,"EQUIPMENT, FURNITURE & MATS",904948,126530000,17-May-16,"10,264.39",RETAIL ASSIST LTD,SP0007725
WANDSWORTH COUNCIL,NGF CS,,"EQUIPMENT, FURNITURE & MATS",Revenue,"EQUIPMENT, FURNITURE & MATS",936407,126530000,04-May-16,860.00,PRO2COL,SP0008975
WANDSWORTH COUNCIL,NGF CS,,"EQUIPMENT, FURNITURE & MATS",Revenue,"EQUIPMENT, FURNITURE & MATS",936407,126530000,04-May-16,129.00,PRO2COL,SP0008975
WANDSWORTH COUNCIL,NGF CS,,COMMUNICATIONS & COMP,Revenue,NETWORK COSTS,942099,126536390,11-May-16,187.00,LONDON GRID LTD,SP0008821
WANDSWORTH COUNCIL,NGF CS,,COMMUNICATIONS & COMP,Revenue,NETWORK COSTS,942099,126536390,11-May-16,"19,905.00",LONDON GRID LTD,SP0008821
WANDSWORTH COUNCIL,NGF CS,,COMMUNICATIONS & COMP,Revenue,NETWORK COSTS,942099,126536390,11-May-16,"4,500.00",LONDON GRID LTD,SP0008821
WANDSWORTH COUNCIL,NGF CS,,COMMUNICATIONS & COMP,Revenue,NETWORK COSTS,942099,126536390,11-May-16,"30,321.00",LONDON GRID LTD,SP0008821
WANDSWORTH COUNCIL,NGF CS,,COMMUNICATIONS & COMP,Revenue,NETWORK COSTS,942099,126536390,11-May-16,"7,500.00",LONDON GRID LTD,SP0008821
WANDSWORTH COUNCIL,NGF CS,,COMMUNICATIONS & COMP,Revenue,NETWORK COSTS,942099,126536390,11-May-16,"8,295.00",LONDON GRID LTD,SP0008821
WANDSWORTH COUNCIL,NGF CS,,COMMUNICATIONS & COMP,Revenue,NETWORK COSTS,942099,126536390,11-May-16,"1,000.00",LONDON GRID LTD,SP0008821
WANDSWORTH COUNCIL,NGF CS,,"EQUIPMENT, FURNITURE & MATS",Revenue,"EQUIPMENT, FURNITURE & MATS",945860,126630000,13-May-16,"8,194.88",SITEIMPROVE LTD,SP0007072
WANDSWORTH COUNCIL,NGF CS,,COMMUNICATIONS & COMP,Revenue,I.T. SLA RECHARGE,952410,126836230,20-May-16,"1,300.00",CONTENDER SYSTEMS LTD,SP0005889
WANDSWORTH COUNCIL,CS,,DIRECT2,Revenue,AGENCY STAFF,941013,128000510,09-May-16,"25,231.23",MATRIX SCM LIMITED,SP0004572
WANDSWORTH COUNCIL,CS,,DIRECT2,Revenue,AGENCY STAFF,946013,128000510,16-May-16,"25,519.72",MATRIX SCM LIMITED,SP0004572
WANDSWORTH COUNCIL,CS,,DIRECT2,Revenue,AGENCY STAFF,951583,128000510,20-May-16,"22,186.36",MATRIX SCM LIMITED,SP0004572
WANDSWORTH COUNCIL,CS,,INDIRECT,Revenue,STAFF ADVERTISING - VACANCIES,945185,128000960,13-May-16,"1,185.00",PENNA PLC,SP0006290
WANDSWORTH COUNCIL,CS,,INDIRECT,Revenue,STAFF ADVERTISING - VACANCIES,945439,128000960,13-May-16,706.25,PENNA PLC,SP0006290
WANDSWORTH COUNCIL,CS,,INDIRECT,Revenue,STAFF ADVERTISING - VACANCIES,945859,128000960,13-May-16,840.50,PENNA PLC,SP0006290
WANDSWORTH COUNCIL,CS,,INDIRECT,Revenue,STAFF ADVERTISING - VACANCIES,947270,128000960,18-May-16,653.41,PENNA PLC,SP0006290
WANDSWORTH COUNCIL,CS,,INDIRECT,Revenue,STAFF ADVERTISING - VACANCIES,951031,128000960,23-May-16,"1,870.28",PENNA PLC,SP0006290
WANDSWORTH COUNCIL,CS,,INDIRECT,Revenue,STAFF ADVERTISING - VACANCIES,951593,128000960,20-May-16,"1,363.00",PENNA PLC,SP0006290
WANDSWORTH COUNCIL,CS,,INDIRECT,Revenue,STAFF ADVERTISING - VACANCIES,951613,128000960,26-May-16,"4,245.00",PENNA PLC,SP0006290
WANDSWORTH COUNCIL,ASC,SOCIAL SERVICES,HIRE,Revenue,HIRE - TRANSPORT,952593,130220410,20-May-16,546.70,HEALTHCARE & TRANSPORT SERVICES (HATS),SP0000012
WANDSWORTH COUNCIL,ASC,SOCIAL SERVICES,HIRE,Revenue,HIRE - TRANSPORT,954183,130220410,23-May-16,546.70,HEALTHCARE & TRANSPORT SERVICES (HATS),SP0000012
WANDSWORTH COUNCIL,ASC,SOCIAL SERVICES,HIRE,Revenue,HIRE - TRANSPORT,954184,130220410,23-May-16,546.70,HEALTHCARE & TRANSPORT SERVICES (HATS),SP0000012
WANDSWORTH COUNCIL,ASC,SOCIAL SERVICES,HIRE,Revenue,HIRE - TRANSPORT,954185,130220410,23-May-16,546.70,HEALTHCARE & TRANSPORT SERVICES (HATS),SP0000012
WANDSWORTH COUNCIL,ASC,SOCIAL SERVICES,HIRE,Revenue,HIRE - TRANSPORT,954186,130220410,23-May-16,546.70,HEALTHCARE & TRANSPORT SERVICES (HATS),SP0000012
WANDSWORTH COUNCIL,ASC,SOCIAL SERVICES,HIRE,Revenue,HIRE - TRANSPORT,957933,130220410,26-May-16,546.70,HEALTHCARE & TRANSPORT SERVICES (HATS),SP0000012
WANDSWORTH COUNCIL,ASC,SOCIAL SERVICES,HIRE,Revenue,HIRE - TRANSPORT,941429,130220410,09-May-16,900.00,BECKETT CORPORATION LTD T/A TINAS CARS,SP0000729
WANDSWORTH COUNCIL,ASC,SOCIAL SERVICES,HIRE,Revenue,HIRE - TRANSPORT,937633,130220410,04-May-16,"1,320.00",A STAR TRANSPORT LTD,SP0000866
WANDSWORTH COUNCIL,ASC,SOCIAL SERVICES,HIRE,Revenue,HIRE - TRANSPORT,937634,130220410,04-May-16,"1,100.00",A STAR TRANSPORT LTD,SP0000866
WANDSWORTH COUNCIL,ASC,SOCIAL SERVICES,HIRE,Revenue,HIRE - TRANSPORT,937635,130220410,04-May-16,"2,520.00",A STAR TRANSPORT LTD,SP0000866
WANDSWORTH COUNCIL,ASC,SOCIAL SERVICES,HIRE,Revenue,HIRE - TRANSPORT,937636,130220410,04-May-16,"1,628.00",A STAR TRANSPORT LTD,SP0000866
WANDSWORTH COUNCIL,ASC,SOCIAL SERVICES,HIRE,Revenue,HIRE - TRANSPORT,937637,130220410,04-May-16,880.00,A STAR TRANSPORT LTD,SP0000866
WANDSWORTH COUNCIL,ASC,SOCIAL SERVICES,HIRE,Revenue,HIRE - TRANSPORT,937638,130220410,04-May-16,"1,232.00",A STAR TRANSPORT LTD,SP0000866
WANDSWORTH COUNCIL,ASC,SOCIAL SERVICES,HIRE,Revenue,HIRE - TRANSPORT,937639,130220410,04-May-16,676.00,A STAR TRANSPORT LTD,SP0000866
WANDSWORTH COUNCIL,ASC,SOCIAL SERVICES,HIRE,Revenue,HIRE - TRANSPORT,937640,130220410,04-May-16,"1,364.00",A STAR TRANSPORT LTD,SP0000866
WANDSWORTH COUNCIL,ASC,SOCIAL SERVICES,HIRE,Revenue,HIRE - TRANSPORT,940943,130220410,06-May-16,"1,232.00",A STAR TRANSPORT LTD,SP0000866
WANDSWORTH COUNCIL,ASC,SOCIAL SERVICES,HIRE,Revenue,HIRE - TRANSPORT,944430,130220410,11-May-16,511.00,A STAR TRANSPORT LTD,SP0000866
WANDSWORTH COUNCIL,ASC,SOCIAL SERVICES,HIRE,Revenue,HIRE - TRANSPORT,944432,130220410,11-May-16,404.00,A STAR TRANSPORT LTD,SP0000866
WANDSWORTH COUNCIL,ASC,SOCIAL SERVICES,HIRE,Revenue,HIRE - TRANSPORT,944434,130220410,11-May-16,520.00,A STAR TRANSPORT LTD,SP0000866
WANDSWORTH COUNCIL,ASC,SOCIAL SERVICES,HIRE,Revenue,HIRE - TRANSPORT,944436,130220410,11-May-16,457.00,A STAR TRANSPORT LTD,SP0000866
WANDSWORTH COUNCIL,ASC,SOCIAL SERVICES,HIRE,Revenue,HIRE - TRANSPORT,944438,130220410,11-May-16,792.00,A STAR TRANSPORT LTD,SP0000866
WANDSWORTH COUNCIL,ASC,SOCIAL SERVICES,HIRE,Revenue,HIRE - TRANSPORT,944441,130220410,11-May-16,844.00,A STAR TRANSPORT LTD,SP0000866
WANDSWORTH COUNCIL,ASC,SOCIAL SERVICES,HIRE,Revenue,HIRE - TRANSPORT,944442,130220410,11-May-16,"1,152.00",A STAR TRANSPORT LTD,SP0000866
WANDSWORTH COUNCIL,ASC,SOCIAL SERVICES,HIRE,Revenue,HIRE - TRANSPORT,944444,130220410,11-May-16,509.22,A STAR TRANSPORT LTD,SP0000866
WANDSWORTH COUNCIL,ASC,SOCIAL SERVICES,HIRE,Revenue,HIRE - TRANSPORT,944445,130220410,11-May-16,900.00,A STAR TRANSPORT LTD,SP0000866
WANDSWORTH COUNCIL,ASC,SOCIAL SERVICES,HIRE,Revenue,HIRE - TRANSPORT,944446,130220410,11-May-16,900.00,A STAR TRANSPORT LTD,SP0000866
WANDSWORTH COUNCIL,ASC,SOCIAL SERVICES,HIRE,Revenue,HIRE - TRANSPORT,944449,130220410,11-May-16,504.00,A STAR TRANSPORT LTD,SP0000866
WANDSWORTH COUNCIL,ASC,SOCIAL SERVICES,HIRE,Revenue,HIRE - TRANSPORT,944451,130220410,11-May-16,512.00,A STAR TRANSPORT LTD,SP0000866
WANDSWORTH COUNCIL,ASC,SOCIAL SERVICES,HIRE,Revenue,HIRE - TRANSPORT,944455,130220410,11-May-16,582.00,A STAR TRANSPORT LTD,SP0000866
WANDSWORTH COUNCIL,ASC,SOCIAL SERVICES,HIRE,Revenue,HIRE - TRANSPORT,944461,130220410,11-May-16,930.00,A STAR TRANSPORT LTD,SP0000866
WANDSWORTH COUNCIL,ASC,SOCIAL SERVICES,HIRE,Revenue,HIRE - TRANSPORT,944462,130220410,11-May-16,"1,350.00",A STAR TRANSPORT LTD,SP0000866
WANDSWORTH COUNCIL,ASC,SOCIAL SERVICES,HIRE,Revenue,HIRE - TRANSPORT,944463,130220410,11-May-16,"1,134.00",A STAR TRANSPORT LTD,SP0000866
WANDSWORTH COUNCIL,ASC,SOCIAL SERVICES,HIRE,Revenue,HIRE - TRANSPORT,944464,130220410,11-May-16,696.00,A STAR TRANSPORT LTD,SP0000866
WANDSWORTH COUNCIL,ASC,SOCIAL SERVICES,HIRE,Revenue,HIRE - TRANSPORT,944466,130220410,11-May-16,529.80,A STAR TRANSPORT LTD,SP0000866
WANDSWORTH COUNCIL,ASC,SOCIAL SERVICES,HIRE,Revenue,HIRE - TRANSPORT,944467,130220410,11-May-16,572.00,A STAR TRANSPORT LTD,SP0000866
WANDSWORTH COUNCIL,ASC,SOCIAL SERVICES,HIRE,Revenue,HIRE - TRANSPORT,944468,130220410,11-May-16,"1,116.00",A STAR TRANSPORT LTD,SP0000866
WANDSWORTH COUNCIL,ASC,SOCIAL SERVICES,HIRE,Revenue,HIRE - TRANSPORT,944469,130220410,11-May-16,424.00,A STAR TRANSPORT LTD,SP0000866
WANDSWORTH COUNCIL,ASC,SOCIAL SERVICES,HIRE,Revenue,HIRE - TRANSPORT,944478,130220410,11-May-16,"1,612.00",A STAR TRANSPORT LTD,SP0000866
WANDSWORTH COUNCIL,ASC,SOCIAL SERVICES,HIRE,Revenue,HIRE - TRANSPORT,944481,130220410,11-May-16,725.00,A STAR TRANSPORT LTD,SP0000866
WANDSWORTH COUNCIL,ASC,SOCIAL SERVICES,HIRE,Revenue,HIRE - TRANSPORT,944484,130220410,11-May-16,456.00,A STAR TRANSPORT LTD,SP0000866
WANDSWORTH COUNCIL,ASC,SOCIAL SERVICES,HIRE,Revenue,HIRE - TRANSPORT,944488,130220410,11-May-16,430.50,A STAR TRANSPORT LTD,SP0000866
WANDSWORTH COUNCIL,ASC,SOCIAL SERVICES,HIRE,Revenue,HIRE - TRANSPORT,952564,130220410,20-May-16,"1,194.00",A STAR TRANSPORT LTD,SP0000866
WANDSWORTH COUNCIL,ASC,SOCIAL SERVICES,HIRE,Revenue,HIRE - TRANSPORT,952566,130220410,20-May-16,"2,166.00",A STAR TRANSPORT LTD,SP0000866
WANDSWORTH COUNCIL,ASC,SOCIAL SERVICES,HIRE,Revenue,HIRE - TRANSPORT,959494,130220410,27-May-16,770.50,A STAR TRANSPORT LTD,SP0000866
WANDSWORTH COUNCIL,ASC,SOCIAL SERVICES,HIRE,Revenue,HIRE - TRANSPORT,959495,130220410,27-May-16,588.00,A STAR TRANSPORT LTD,SP0000866
WANDSWORTH COUNCIL,ASC,SOCIAL SERVICES,HIRE,Revenue,HIRE - TRANSPORT,959496,130220410,27-May-16,588.00,A STAR TRANSPORT LTD,SP0000866
WANDSWORTH COUNCIL,ASC,SOCIAL SERVICES,HIRE,Revenue,HIRE - TRANSPORT,959497,130220410,27-May-16,598.50,A STAR TRANSPORT LTD,SP0000866
WANDSWORTH COUNCIL,ASC,SOCIAL SERVICES,HIRE,Revenue,HIRE - TRANSPORT,959498,130220410,27-May-16,588.00,A STAR TRANSPORT LTD,SP0000866
WANDSWORTH COUNCIL,ASC,SOCIAL SERVICES,HIRE,Revenue,HIRE - TRANSPORT,959499,130220410,27-May-16,588.00,A STAR TRANSPORT LTD,SP0000866
WANDSWORTH COUNCIL,ASC,SOCIAL SERVICES,HIRE,Revenue,HIRE - TRANSPORT,959500,130220410,27-May-16,784.00,A STAR TRANSPORT LTD,SP0000866
WANDSWORTH COUNCIL,ASC,SOCIAL SERVICES,HIRE,Revenue,HIRE - TRANSPORT,959501,130220410,27-May-16,784.00,A STAR TRANSPORT LTD,SP0000866
WANDSWORTH COUNCIL,ASC,SOCIAL SERVICES,HIRE,Revenue,HIRE - TRANSPORT,947423,130220410,16-May-16,657.17,ADDISON LEE LTD,SP0003268
WANDSWORTH COUNCIL,ASC,SOCIAL SERVICES,HIRE,Revenue,HIRE - TRANSPORT,947424,130220410,16-May-16,726.23,ADDISON LEE LTD,SP0003268
WANDSWORTH COUNCIL,ASC,SOCIAL SERVICES,HIRE,Revenue,HIRE - TRANSPORT,947425,130220410,16-May-16,598.84,ADDISON LEE LTD,SP0003268
WANDSWORTH COUNCIL,ASC,SOCIAL SERVICES,HIRE,Revenue,HIRE - TRANSPORT,957932,130220410,26-May-16,643.39,ADDISON LEE LTD,SP0003268
WANDSWORTH COUNCIL,ASC,SOCIAL SERVICES,HIRE,Revenue,HIRE - TRANSPORT,942184,130220410,09-May-16,"1,026.00",PARKER CARS LIMITED,SP0005826
WANDSWORTH COUNCIL,ASC,SOCIAL SERVICES,HIRE,Revenue,NEW TRANSPORT CONTRACT,944432,130220430,11-May-16,100.00,A STAR TRANSPORT LTD,SP0000866
WANDSWORTH COUNCIL,ASC,SOCIAL SERVICES,HEALTH,Revenue,EXT RES S28A 100% OLD LONGSTAY,940603,130241010,06-May-16,"6,064.67",VOYAGE CARE LTD,SP0000366
WANDSWORTH COUNCIL,ASC,SOCIAL SERVICES,HEALTH,Revenue,EXT RES S28A 100% OLD LONGSTAY,940609,130241010,06-May-16,"8,878.80",VOYAGE CARE LTD,SP0000366
WANDSWORTH COUNCIL,ASC,SOCIAL SERVICES,HEALTH,Revenue,EXT RES S28A 100% OLD LONGSTAY,954872,130241010,23-May-16,"6,266.82",VOYAGE CARE LTD,SP0000366
WANDSWORTH COUNCIL,ASC,SOCIAL SERVICES,HEALTH,Revenue,EXT RES S28A 100% OLD LONGSTAY,954879,130241010,23-May-16,"9,173.20",VOYAGE CARE LTD,SP0000366
WANDSWORTH COUNCIL,ASC,SOCIAL SERVICES,HEALTH,Revenue,EXTERNAL RESIDENTIAL CARE S28A,938489,130241080,04-May-16,"7,015.70",PROGRESS HOUSING LULWORTH,SP0000921
WANDSWORTH COUNCIL,ASC,SOCIAL SERVICES,HEALTH,Revenue,EXTERNAL RESIDENTIAL CARE S28A,951050,130241080,19-May-16,"7,266.40",PROGRESS HOUSING LULWORTH,SP0000921
WANDSWORTH COUNCIL,ASC,SOCIAL SERVICES,HEALTH,Revenue,EXT RES CARE S28A 100%,940604,130241090,06-May-16,"6,064.80",VOYAGE CARE LTD,SP0000366
WANDSWORTH COUNCIL,ASC,SOCIAL SERVICES,HEALTH,Revenue,EXT RES CARE S28A 100%,954873,130241090,23-May-16,"6,266.96",VOYAGE CARE LTD,SP0000366
WANDSWORTH COUNCIL,ASC,SOCIAL SERVICES,HEALTH,Revenue,EXT RES CARE S28A 100%,947345,130241090,16-May-16,"10,185.71",LONDON CARE PARTNERSHIP LTD,SP0001138
WANDSWORTH COUNCIL,ASC,SOCIAL SERVICES,HEALTH,Revenue,EXT RES CARE S28A 100%,947343,130241090,16-May-16,"6,539.86",HOME FROM HOME CARE LIMITED,SP0001373
WANDSWORTH COUNCIL,ASC,SOCIAL SERVICES,HEALTH,Revenue,EXT RES CARE S28A 100%,947344,130241090,16-May-16,"6,763.75",HOME FROM HOME CARE LIMITED,SP0001373
WANDSWORTH COUNCIL,ASC,SOCIAL SERVICES,HEALTH,Revenue,EXT RES S28A OLD LONG STAY,947831,130241110,16-May-16,"2,975.96",ELEANOR NURSING & SOCIAL CARE,SP0000110
WANDSWORTH COUNCIL,ASC,SOCIAL SERVICES,HEALTH,Revenue,EXT RES S28A OLD LONG STAY,951108,130241110,19-May-16,"4,946.47",THE COMMUNITY CARE COMPANY UK LTD,SP0000576
WANDSWORTH COUNCIL,ASC,SOCIAL SERVICES,HEALTH,Revenue,EXT RES S28A OLD LONG STAY,958525,130241110,26-May-16,"4,709.79",METROPOLITAN HOUSING TRUST,SP0000626
WANDSWORTH COUNCIL,ASC,SOCIAL SERVICES,HEALTH,Revenue,EXT RES S28A OLD LONG STAY,957825,130241110,26-May-16,"2,709.00",ASHTON CARE,SP0000695
WANDSWORTH COUNCIL,ASC,SOCIAL SERVICES,HEALTH,Revenue,EXT RES S28A OLD LONG STAY,942135,130241110,09-May-16,"4,351.72",ANTHONY TOBY HOMES TRUST,SP0000755
WANDSWORTH COUNCIL,ASC,,INDEPENDENT UNITS,Revenue,DAY CARE MUTUAL,936964,130242040,05-May-16,"27,244.53",ONE TRUST,SP0010206
WANDSWORTH COUNCIL,ASC,,INDEPENDENT UNITS,Revenue,DAY CARE MUTUAL,936965,130242040,04-May-16,"6,022.16",ONE TRUST,SP0010206
WANDSWORTH COUNCIL,ASC,,INDEPENDENT UNITS,Revenue,DAY CARE MUTUAL,936966,130242040,05-May-16,"25,667.98",ONE TRUST,SP0010206
WANDSWORTH COUNCIL,ASC,,INDEPENDENT UNITS,Revenue,DAY CARE MUTUAL,936991,130242040,05-May-16,"44,107.54",ONE TRUST,SP0010206
WANDSWORTH COUNCIL,ASC,SOCIAL SERVICES,OTHER AGENCIES,Revenue,ENABLERS/EDUCATION FEES,950448,130243280,18-May-16,"39,626.42",RUSKIN MILL COLLEGE,SP0000803
WANDSWORTH COUNCIL,ASC,SOCIAL SERVICES,OTHER AGENCIES,Revenue,EXTERNAL OUTREACH,952589,130243330,20-May-16,570.40,RAINBOW MEDICAL SERVICES,SP0000037
WANDSWORTH COUNCIL,ASC,SOCIAL SERVICES,OTHER AGENCIES,Revenue,EXTERNAL OUTREACH,952591,130243330,20-May-16,"2,363.35",RAINBOW MEDICAL SERVICES,SP0000037
WANDSWORTH COUNCIL,ASC,SOCIAL SERVICES,OTHER AGENCIES,Revenue,EXTERNAL OUTREACH,941425,130243330,09-May-16,"1,425.00",PROTOCOL EDUCATION  LTD,SP0000171
WANDSWORTH COUNCIL,ASC,SOCIAL SERVICES,OTHER AGENCIES,Revenue,EXTERNAL OUTREACH,947468,130243330,16-May-16,950.00,PROTOCOL EDUCATION  LTD,SP0000171
WANDSWORTH COUNCIL,ASC,SOCIAL SERVICES,OTHER AGENCIES,Revenue,EXTERNAL OUTREACH,952594,130243330,20-May-16,950.00,PROTOCOL EDUCATION  LTD,SP0000171
WANDSWORTH COUNCIL,ASC,SOCIAL SERVICES,OTHER AGENCIES,Revenue,EXTERNAL OUTREACH,959504,130243330,27-May-16,950.00,PROTOCOL EDUCATION  LTD,SP0000171
WANDSWORTH COUNCIL,ASC,SOCIAL SERVICES,OTHER AGENCIES,Revenue,EXTERNAL OUTREACH,959489,130243330,27-May-16,553.59,NAS SERVICES LIMITED,SP0000217
WANDSWORTH COUNCIL,ASC,SOCIAL SERVICES,OTHER AGENCIES,Revenue,EXTERNAL OUTREACH,939274,130243330,04-May-16,470.31,REED,SP0000295
WANDSWORTH COUNCIL,ASC,SOCIAL SERVICES,OTHER AGENCIES,Revenue,EXTERNAL OUTREACH,940073,130243330,05-May-16,"2,185.22",C M CARE LTD,SP0000455
WANDSWORTH COUNCIL,ASC,SOCIAL SERVICES,OTHER AGENCIES,Revenue,EXTERNAL OUTREACH,940076,130243330,05-May-16,"1,287.20",C M CARE LTD,SP0000455
WANDSWORTH COUNCIL,ASC,SOCIAL SERVICES,OTHER AGENCIES,Revenue,EXTERNAL OUTREACH,940078,130243330,05-May-16,576.00,C M CARE LTD,SP0000455
WANDSWORTH COUNCIL,ASC,SOCIAL SERVICES,OTHER AGENCIES,Revenue,EXTERNAL OUTREACH,940079,130243330,05-May-16,"1,540.00",C M CARE LTD,SP0000455
WANDSWORTH COUNCIL,ASC,SOCIAL SERVICES,OTHER AGENCIES,Revenue,EXTERNAL OUTREACH,938724,130243330,04-May-16,"1,196.40",GENERATE OPPORTUNITIES LTD,SP0000503
WANDSWORTH COUNCIL,ASC,SOCIAL SERVICES,OTHER AGENCIES,Revenue,EXTERNAL OUTREACH,938727,130243330,04-May-16,897.30,GENERATE OPPORTUNITIES LTD,SP0000503
WANDSWORTH COUNCIL,ASC,SOCIAL SERVICES,OTHER AGENCIES,Revenue,EXTERNAL OUTREACH,938730,130243330,04-May-16,720.00,GENERATE OPPORTUNITIES LTD,SP0000503
WANDSWORTH COUNCIL,ASC,SOCIAL SERVICES,OTHER AGENCIES,Revenue,EXTERNAL OUTREACH,938732,130243330,04-May-16,997.00,GENERATE OPPORTUNITIES LTD,SP0000503
WANDSWORTH COUNCIL,ASC,SOCIAL SERVICES,OTHER AGENCIES,Revenue,EXTERNAL OUTREACH,938743,130243330,04-May-16,797.60,GENERATE OPPORTUNITIES LTD,SP0000503
WANDSWORTH COUNCIL,ASC,SOCIAL SERVICES,OTHER AGENCIES,Revenue,EXTERNAL OUTREACH,938745,130243330,04-May-16,"1,495.50",GENERATE OPPORTUNITIES LTD,SP0000503
WANDSWORTH COUNCIL,ASC,SOCIAL SERVICES,OTHER AGENCIES,Revenue,EXTERNAL OUTREACH,938746,130243330,04-May-16,598.20,GENERATE OPPORTUNITIES LTD,SP0000503
WANDSWORTH COUNCIL,ASC,SOCIAL SERVICES,OTHER AGENCIES,Revenue,EXTERNAL OUTREACH,938751,130243330,04-May-16,"3,106.90",GENERATE OPPORTUNITIES LTD,SP0000503
WANDSWORTH COUNCIL,ASC,SOCIAL SERVICES,OTHER AGENCIES,Revenue,EXTERNAL OUTREACH,947490,130243330,16-May-16,543.18,SOUTHSIDE PARTNERSHIP,SP0000692
WANDSWORTH COUNCIL,ASC,SOCIAL SERVICES,OTHER AGENCIES,Revenue,EXTERNAL OUTREACH,947474,130243330,16-May-16,"1,155.00",ROYAL ASSOCIATION FOR DEAF PEOPLE,SP0001251
WANDSWORTH COUNCIL,ASC,SOCIAL SERVICES,OTHER AGENCIES,Revenue,EXTERNAL OUTREACH,943725,130243330,11-May-16,331.20,THE BRANDON TRUST,SP0005337
WANDSWORTH COUNCIL,ASC,SOCIAL SERVICES,OTHER AGENCIES,Revenue,EXTERNAL OUTREACH,943740,130243330,11-May-16,757.92,THE BRANDON TRUST,SP0005337
WANDSWORTH COUNCIL,ASC,SOCIAL SERVICES,OTHER AGENCIES,Revenue,EXTERNAL OUTREACH,943750,130243330,11-May-16,733.04,THE BRANDON TRUST,SP0005337
WANDSWORTH COUNCIL,ASC,SOCIAL SERVICES,OTHER AGENCIES,Revenue,EXTERNAL OUTREACH,943751,130243330,11-May-16,886.31,THE BRANDON TRUST,SP0005337
WANDSWORTH COUNCIL,ASC,SOCIAL SERVICES,OTHER AGENCIES,Revenue,EXTERNAL OUTREACH,943752,130243330,11-May-16,599.76,THE BRANDON TRUST,SP0005337
WANDSWORTH COUNCIL,ASC,SOCIAL SERVICES,OTHER AGENCIES,Revenue,EXTERNAL OUTREACH,944504,130243330,11-May-16,631.60,THE BRANDON TRUST,SP0005337
WANDSWORTH COUNCIL,ASC,SOCIAL SERVICES,OTHER AGENCIES,Revenue,EXTERNAL OUTREACH,944505,130243330,11-May-16,252.64,THE BRANDON TRUST,SP0005337
WANDSWORTH COUNCIL,ASC,SOCIAL SERVICES,OTHER AGENCIES,Revenue,EXTERNAL OUTREACH,944510,130243330,11-May-16,947.40,THE BRANDON TRUST,SP0005337
WANDSWORTH COUNCIL,ASC,SOCIAL SERVICES,OTHER AGENCIES,Revenue,EXTERNAL OUTREACH,944511,130243330,11-May-16,"1,170.80",THE BRANDON TRUST,SP0005337
WANDSWORTH COUNCIL,ASC,SOCIAL SERVICES,OTHER AGENCIES,Revenue,EXTERNAL OUTREACH,947444,130243330,16-May-16,189.48,THE BRANDON TRUST,SP0005337
WANDSWORTH COUNCIL,ASC,SOCIAL SERVICES,OTHER AGENCIES,Revenue,EXTERNAL OUTREACH,947455,130243330,16-May-16,694.76,THE BRANDON TRUST,SP0005337
WANDSWORTH COUNCIL,ASC,SOCIAL SERVICES,OTHER AGENCIES,Revenue,EXTERNAL OUTREACH,947477,130243330,16-May-16,533.12,THE BRANDON TRUST,SP0005337
WANDSWORTH COUNCIL,ASC,SOCIAL SERVICES,OTHER AGENCIES,Revenue,EXTERNAL OUTREACH,954987,130243330,23-May-16,"2,640.00",RELIABLE PERSONNEL LTD,SP0005657
WANDSWORTH COUNCIL,ASC,SOCIAL SERVICES,OTHER AGENCIES,Revenue,EXTERNAL OUTREACH,937644,130243330,04-May-16,720.00,LIVE TOO LIMITED,SP0010112
WANDSWORTH COUNCIL,ASC,SOCIAL SERVICES,OTHER AGENCIES,Revenue,EXTERNAL OUTREACH,940957,130243330,06-May-16,720.00,LIVE TOO LIMITED,SP0010112
WANDSWORTH COUNCIL,ASC,SOCIAL SERVICES,PRIVATE,Revenue,EXTERNAL DAYCARE,940920,130245290,06-May-16,"1,999.41",CMG HOMES LTD,SP0000075
WANDSWORTH COUNCIL,ASC,SOCIAL SERVICES,PRIVATE,Revenue,EXTERNAL DAYCARE,960858,130245290,31-May-16,"1,999.41",CMG HOMES LTD,SP0000075
WANDSWORTH COUNCIL,ASC,SOCIAL SERVICES,PRIVATE,Revenue,EXTERNAL DAYCARE,960859,130245290,31-May-16,"2,189.83",CMG HOMES LTD,SP0000075
WANDSWORTH COUNCIL,ASC,SOCIAL SERVICES,PRIVATE,Revenue,EXTERNAL DAYCARE,960860,130245290,31-May-16,"2,094.62",CMG HOMES LTD,SP0000075
WANDSWORTH COUNCIL,ASC,SOCIAL SERVICES,PRIVATE,Revenue,EXTERNAL DAYCARE,947410,130245290,16-May-16,"1,158.59",RESIDENTIAL CARE SERVICES T/A FRANKLYN L,SP0000147
WANDSWORTH COUNCIL,ASC,SOCIAL SERVICES,PRIVATE,Revenue,EXTERNAL DAYCARE,956714,130245290,25-May-16,878.48,ORCHARD VALE TRUST,SP0000214
WANDSWORTH COUNCIL,ASC,SOCIAL SERVICES,PRIVATE,Revenue,EXTERNAL DAYCARE,956715,130245290,25-May-16,878.48,ORCHARD VALE TRUST,SP0000214
WANDSWORTH COUNCIL,ASC,SOCIAL SERVICES,PRIVATE,Revenue,EXTERNAL DAYCARE,954172,130245290,23-May-16,"1,745.93",ST MARYS RESIDENTIAL HOME,SP0000215
WANDSWORTH COUNCIL,ASC,SOCIAL SERVICES,PRIVATE,Revenue,EXTERNAL DAYCARE,954173,130245290,23-May-16,712.21,ST MARYS RESIDENTIAL HOME,SP0000215
WANDSWORTH COUNCIL,ASC,SOCIAL SERVICES,PRIVATE,Revenue,EXTERNAL DAYCARE,954176,130245290,23-May-16,961.72,ST MARYS RESIDENTIAL HOME,SP0000215
WANDSWORTH COUNCIL,ASC,SOCIAL SERVICES,PRIVATE,Revenue,EXTERNAL DAYCARE,954180,130245290,23-May-16,537.07,ST MARYS RESIDENTIAL HOME,SP0000215
WANDSWORTH COUNCIL,ASC,SOCIAL SERVICES,PRIVATE,Revenue,EXTERNAL DAYCARE,960849,130245290,31-May-16,"1,748.96",ST MARYS RESIDENTIAL HOME,SP0000215
WANDSWORTH COUNCIL,ASC,SOCIAL SERVICES,PRIVATE,Revenue,EXTERNAL DAYCARE,960850,130245290,31-May-16,713.44,ST MARYS RESIDENTIAL HOME,SP0000215
WANDSWORTH COUNCIL,ASC,SOCIAL SERVICES,PRIVATE,Revenue,EXTERNAL DAYCARE,960853,130245290,31-May-16,963.36,ST MARYS RESIDENTIAL HOME,SP0000215
WANDSWORTH COUNCIL,ASC,SOCIAL SERVICES,PRIVATE,Revenue,EXTERNAL DAYCARE,960857,130245290,31-May-16,538.00,ST MARYS RESIDENTIAL HOME,SP0000215
WANDSWORTH COUNCIL,ASC,SOCIAL SERVICES,PRIVATE,Revenue,EXTERNAL DAYCARE,941403,130245290,09-May-16,"3,781.40",NAS SERVICES LIMITED,SP0000217
WANDSWORTH COUNCIL,ASC,SOCIAL SERVICES,PRIVATE,Revenue,EXTERNAL DAYCARE,957916,130245290,26-May-16,"3,794.60",NAS SERVICES LIMITED,SP0000217
WANDSWORTH COUNCIL,ASC,SOCIAL SERVICES,PRIVATE,Revenue,EXTERNAL DAYCARE,957917,130245290,26-May-16,"1,594.76",NAS SERVICES LIMITED,SP0000217
WANDSWORTH COUNCIL,ASC,SOCIAL SERVICES,PRIVATE,Revenue,EXTERNAL DAYCARE,957918,130245290,26-May-16,"3,745.00",NAS SERVICES LIMITED,SP0000217
WANDSWORTH COUNCIL,ASC,SOCIAL SERVICES,PRIVATE,Revenue,EXTERNAL DAYCARE,957919,130245290,26-May-16,"3,807.80",NAS SERVICES LIMITED,SP0000217
WANDSWORTH COUNCIL,ASC,SOCIAL SERVICES,PRIVATE,Revenue,EXTERNAL DAYCARE,960861,130245290,31-May-16,"3,807.80",NAS SERVICES LIMITED,SP0000217
WANDSWORTH COUNCIL,ASC,SOCIAL SERVICES,PRIVATE,Revenue,EXTERNAL DAYCARE,960862,130245290,31-May-16,"1,594.76",NAS SERVICES LIMITED,SP0000217
WANDSWORTH COUNCIL,ASC,SOCIAL SERVICES,PRIVATE,Revenue,EXTERNAL DAYCARE,960863,130245290,31-May-16,"3,745.00",NAS SERVICES LIMITED,SP0000217
WANDSWORTH COUNCIL,ASC,SOCIAL SERVICES,PRIVATE,Revenue,EXTERNAL DAYCARE,954984,130245290,23-May-16,518.70,PARCHMENT TRUST LTD,SP0000255
WANDSWORTH COUNCIL,ASC,SOCIAL SERVICES,PRIVATE,Revenue,EXTERNAL DAYCARE,954170,130245290,23-May-16,"1,856.40",ESSEX COUNTY COUNCIL,SP0000269
WANDSWORTH COUNCIL,ASC,SOCIAL SERVICES,PRIVATE,Revenue,EXTERNAL DAYCARE,954902,130245290,23-May-16,785.40,ESSEX COUNTY COUNCIL,SP0000269
WANDSWORTH COUNCIL,ASC,SOCIAL SERVICES,PRIVATE,Revenue,EXTERNAL DAYCARE,954903,130245290,23-May-16,"2,427.60",ESSEX COUNTY COUNCIL,SP0000269
WANDSWORTH COUNCIL,ASC,SOCIAL SERVICES,PRIVATE,Revenue,EXTERNAL DAYCARE,947884,130245290,16-May-16,806.04,CRAEGMOOR FACILITIES CO LTD,SP0000306
WANDSWORTH COUNCIL,ASC,SOCIAL SERVICES,PRIVATE,Revenue,EXTERNAL DAYCARE,938712,130245290,04-May-16,713.13,SHARE COMMUNITY,SP0000329
WANDSWORTH COUNCIL,ASC,SOCIAL SERVICES,PRIVATE,Revenue,EXTERNAL DAYCARE,938713,130245290,04-May-16,"1,188.56",SHARE COMMUNITY,SP0000329
WANDSWORTH COUNCIL,ASC,SOCIAL SERVICES,PRIVATE,Revenue,EXTERNAL DAYCARE,939267,130245290,04-May-16,973.60,DOLPHIN HOMES LTD,SP0000331
WANDSWORTH COUNCIL,ASC,SOCIAL SERVICES,PRIVATE,Revenue,EXTERNAL DAYCARE,957922,130245290,26-May-16,973.60,DOLPHIN HOMES LTD,SP0000331
WANDSWORTH COUNCIL,ASC,SOCIAL SERVICES,PRIVATE,Revenue,EXTERNAL DAYCARE,940646,130245290,06-May-16,"2,000.16",NORWOOD SCHOOLS LTD,SP0000332
WANDSWORTH COUNCIL,ASC,SOCIAL SERVICES,PRIVATE,Revenue,EXTERNAL DAYCARE,940647,130245290,06-May-16,"2,055.64",NORWOOD SCHOOLS LTD,SP0000332
WANDSWORTH COUNCIL,ASC,SOCIAL SERVICES,PRIVATE,Revenue,EXTERNAL DAYCARE,947415,130245290,16-May-16,"2,055.64",NORWOOD SCHOOLS LTD,SP0000332
WANDSWORTH COUNCIL,ASC,SOCIAL SERVICES,PRIVATE,Revenue,EXTERNAL DAYCARE,956716,130245290,25-May-16,"1,654.08",VOYAGE CARE LTD,SP0000366
WANDSWORTH COUNCIL,ASC,SOCIAL SERVICES,PRIVATE,Revenue,EXTERNAL DAYCARE,942179,130245290,09-May-16,"4,576.02",EAST SUSSEX COUNTY COUNCIL,SP0000427
WANDSWORTH COUNCIL,ASC,SOCIAL SERVICES,PRIVATE,Revenue,EXTERNAL DAYCARE,939265,130245290,04-May-16,525.70,O A ROWE,SP0000431
WANDSWORTH COUNCIL,ASC,SOCIAL SERVICES,PRIVATE,Revenue,EXTERNAL DAYCARE,939266,130245290,04-May-16,525.70,O A ROWE,SP0000431
WANDSWORTH COUNCIL,ASC,SOCIAL SERVICES,PRIVATE,Revenue,EXTERNAL DAYCARE,943043,130245290,10-May-16,525.70,O A ROWE,SP0000431
WANDSWORTH COUNCIL,ASC,SOCIAL SERVICES,PRIVATE,Revenue,EXTERNAL DAYCARE,943044,130245290,10-May-16,525.70,O A ROWE,SP0000431
WANDSWORTH COUNCIL,ASC,SOCIAL SERVICES,PRIVATE,Revenue,EXTERNAL DAYCARE,952551,130245290,20-May-16,722.00,WANDSWORTH BENGALI WELFARE ASSOCIATION,SP0000479
WANDSWORTH COUNCIL,ASC,SOCIAL SERVICES,PRIVATE,Revenue,EXTERNAL DAYCARE,938716,130245290,04-May-16,"1,058.43",SURREY & BORDERS PARTNERSHIP NHS TRUST,SP0000501
WANDSWORTH COUNCIL,ASC,SOCIAL SERVICES,PRIVATE,Revenue,EXTERNAL DAYCARE,951735,130245290,19-May-16,"1,069.47",SURREY & BORDERS PARTNERSHIP NHS TRUST,SP0000501
WANDSWORTH COUNCIL,ASC,SOCIAL SERVICES,PRIVATE,Revenue,EXTERNAL DAYCARE,938717,130245290,04-May-16,600.00,GENERATE OPPORTUNITIES LTD,SP0000503
WANDSWORTH COUNCIL,ASC,SOCIAL SERVICES,PRIVATE,Revenue,EXTERNAL DAYCARE,938720,130245290,04-May-16,720.00,GENERATE OPPORTUNITIES LTD,SP0000503
WANDSWORTH COUNCIL,ASC,SOCIAL SERVICES,PRIVATE,Revenue,EXTERNAL DAYCARE,938726,130245290,04-May-16,800.00,GENERATE OPPORTUNITIES LTD,SP0000503
WANDSWORTH COUNCIL,ASC,SOCIAL SERVICES,PRIVATE,Revenue,EXTERNAL DAYCARE,938729,130245290,04-May-16,500.00,GENERATE OPPORTUNITIES LTD,SP0000503
WANDSWORTH COUNCIL,ASC,SOCIAL SERVICES,PRIVATE,Revenue,EXTERNAL DAYCARE,938731,130245290,04-May-16,600.00,GENERATE OPPORTUNITIES LTD,SP0000503
WANDSWORTH COUNCIL,ASC,SOCIAL SERVICES,PRIVATE,Revenue,EXTERNAL DAYCARE,938741,130245290,04-May-16,720.00,GENERATE OPPORTUNITIES LTD,SP0000503
WANDSWORTH COUNCIL,ASC,SOCIAL SERVICES,PRIVATE,Revenue,EXTERNAL DAYCARE,938742,130245290,04-May-16,720.00,GENERATE OPPORTUNITIES LTD,SP0000503
WANDSWORTH COUNCIL,ASC,SOCIAL SERVICES,PRIVATE,Revenue,EXTERNAL DAYCARE,938751,130245290,04-May-16,(13.15),GENERATE OPPORTUNITIES LTD,SP0000503
WANDSWORTH COUNCIL,ASC,SOCIAL SERVICES,PRIVATE,Revenue,EXTERNAL DAYCARE,951108,130245290,19-May-16,75.49,THE COMMUNITY CARE COMPANY UK LTD,SP0000576
WANDSWORTH COUNCIL,ASC,SOCIAL SERVICES,PRIVATE,Revenue,EXTERNAL DAYCARE,940933,130245290,06-May-16,"1,327.20",THE REGARD PARTNERSHIP,SP0000588
WANDSWORTH COUNCIL,ASC,SOCIAL SERVICES,PRIVATE,Revenue,EXTERNAL DAYCARE,958563,130245290,26-May-16,888.00,ASHFIELD CARE HOMES LTD,SP0000590
WANDSWORTH COUNCIL,ASC,SOCIAL SERVICES,PRIVATE,Revenue,EXTERNAL DAYCARE,944426,130245290,11-May-16,840.00,DORSET SCOPE,SP0000591
WANDSWORTH COUNCIL,ASC,SOCIAL SERVICES,PRIVATE,Revenue,EXTERNAL DAYCARE,942168,130245290,09-May-16,660.00,THRIVE,SP0000601
WANDSWORTH COUNCIL,ASC,SOCIAL SERVICES,PRIVATE,Revenue,EXTERNAL DAYCARE,947411,130245290,16-May-16,602.56,HIGH HURLANDS HOMES,SP0000668
WANDSWORTH COUNCIL,ASC,SOCIAL SERVICES,PRIVATE,Revenue,EXTERNAL DAYCARE,951733,130245290,19-May-16,"1,218.00",CREST COOPERATIVE LTD,SP0000683
WANDSWORTH COUNCIL,ASC,SOCIAL SERVICES,PRIVATE,Revenue,EXTERNAL DAYCARE,942112,130245290,09-May-16,527.36,UNITED RESPONSE,SP0000797
WANDSWORTH COUNCIL,ASC,SOCIAL SERVICES,PRIVATE,Revenue,EXTERNAL DAYCARE,938709,130245290,04-May-16,540.00,PROSPECTS,SP0000800
WANDSWORTH COUNCIL,ASC,SOCIAL SERVICES,PRIVATE,Revenue,EXTERNAL DAYCARE,944428,130245290,11-May-16,540.00,PROSPECTS,SP0000800
WANDSWORTH COUNCIL,ASC,SOCIAL SERVICES,PRIVATE,Revenue,EXTERNAL DAYCARE,951149,130245290,19-May-16,942.23,CHATSWORTH CARE,SP0000831
WANDSWORTH COUNCIL,ASC,SOCIAL SERVICES,PRIVATE,Revenue,EXTERNAL DAYCARE,941409,130245290,09-May-16,579.96,MENCAP OPEN DOOR,SP0000832
WANDSWORTH COUNCIL,ASC,SOCIAL SERVICES,PRIVATE,Revenue,EXTERNAL DAYCARE,947427,130245290,16-May-16,583.96,MENCAP OPEN DOOR,SP0000832
WANDSWORTH COUNCIL,ASC,SOCIAL SERVICES,PRIVATE,Revenue,EXTERNAL DAYCARE,954908,130245290,23-May-16,743.84,ACT TOO LTD,SP0000855
WANDSWORTH COUNCIL,ASC,SOCIAL SERVICES,PRIVATE,Revenue,EXTERNAL DAYCARE,954909,130245290,23-May-16,"1,115.76",ACT TOO LTD,SP0000855
WANDSWORTH COUNCIL,ASC,SOCIAL SERVICES,PRIVATE,Revenue,EXTERNAL DAYCARE,954912,130245290,23-May-16,743.84,ACT TOO LTD,SP0000855
WANDSWORTH COUNCIL,ASC,SOCIAL SERVICES,PRIVATE,Revenue,EXTERNAL DAYCARE,954913,130245290,23-May-16,743.84,ACT TOO LTD,SP0000855
WANDSWORTH COUNCIL,ASC,SOCIAL SERVICES,PRIVATE,Revenue,EXTERNAL DAYCARE,954918,130245290,23-May-16,929.80,ACT TOO LTD,SP0000855
WANDSWORTH COUNCIL,ASC,SOCIAL SERVICES,PRIVATE,Revenue,EXTERNAL DAYCARE,954921,130245290,23-May-16,743.84,ACT TOO LTD,SP0000855
WANDSWORTH COUNCIL,ASC,SOCIAL SERVICES,PRIVATE,Revenue,EXTERNAL DAYCARE,954922,130245290,23-May-16,743.84,ACT TOO LTD,SP0000855
WANDSWORTH COUNCIL,ASC,SOCIAL SERVICES,PRIVATE,Revenue,EXTERNAL DAYCARE,954923,130245290,23-May-16,743.84,ACT TOO LTD,SP0000855
WANDSWORTH COUNCIL,ASC,SOCIAL SERVICES,PRIVATE,Revenue,EXTERNAL DAYCARE,954927,130245290,23-May-16,557.88,ACT TOO LTD,SP0000855
WANDSWORTH COUNCIL,ASC,SOCIAL SERVICES,PRIVATE,Revenue,EXTERNAL DAYCARE,954928,130245290,23-May-16,557.88,ACT TOO LTD,SP0000855
WANDSWORTH COUNCIL,ASC,SOCIAL SERVICES,PRIVATE,Revenue,EXTERNAL DAYCARE,954929,130245290,23-May-16,557.88,ACT TOO LTD,SP0000855
WANDSWORTH COUNCIL,ASC,SOCIAL SERVICES,PRIVATE,Revenue,EXTERNAL DAYCARE,954932,130245290,23-May-16,743.84,ACT TOO LTD,SP0000855
WANDSWORTH COUNCIL,ASC,SOCIAL SERVICES,PRIVATE,Revenue,EXTERNAL DAYCARE,954933,130245290,23-May-16,743.84,ACT TOO LTD,SP0000855
WANDSWORTH COUNCIL,ASC,SOCIAL SERVICES,PRIVATE,Revenue,EXTERNAL DAYCARE,954934,130245290,23-May-16,557.88,ACT TOO LTD,SP0000855
WANDSWORTH COUNCIL,ASC,SOCIAL SERVICES,PRIVATE,Revenue,EXTERNAL DAYCARE,954939,130245290,23-May-16,557.88,ACT TOO LTD,SP0000855
WANDSWORTH COUNCIL,ASC,SOCIAL SERVICES,PRIVATE,Revenue,EXTERNAL DAYCARE,954942,130245290,23-May-16,557.88,ACT TOO LTD,SP0000855
WANDSWORTH COUNCIL,ASC,SOCIAL SERVICES,PRIVATE,Revenue,EXTERNAL DAYCARE,954943,130245290,23-May-16,557.88,ACT TOO LTD,SP0000855
WANDSWORTH COUNCIL,ASC,SOCIAL SERVICES,PRIVATE,Revenue,EXTERNAL DAYCARE,954945,130245290,23-May-16,557.88,ACT TOO LTD,SP0000855
WANDSWORTH COUNCIL,ASC,SOCIAL SERVICES,PRIVATE,Revenue,EXTERNAL DAYCARE,954946,130245290,23-May-16,557.88,ACT TOO LTD,SP0000855
WANDSWORTH COUNCIL,ASC,SOCIAL SERVICES,PRIVATE,Revenue,EXTERNAL DAYCARE,954947,130245290,23-May-16,929.80,ACT TOO LTD,SP0000855
WANDSWORTH COUNCIL,ASC,SOCIAL SERVICES,PRIVATE,Revenue,EXTERNAL DAYCARE,954948,130245290,23-May-16,557.88,ACT TOO LTD,SP0000855
WANDSWORTH COUNCIL,ASC,SOCIAL SERVICES,PRIVATE,Revenue,EXTERNAL DAYCARE,954957,130245290,23-May-16,929.80,ACT TOO LTD,SP0000855
WANDSWORTH COUNCIL,ASC,SOCIAL SERVICES,PRIVATE,Revenue,EXTERNAL DAYCARE,954962,130245290,23-May-16,929.80,ACT TOO LTD,SP0000855
WANDSWORTH COUNCIL,ASC,SOCIAL SERVICES,PRIVATE,Revenue,EXTERNAL DAYCARE,954963,130245290,23-May-16,557.88,ACT TOO LTD,SP0000855
WANDSWORTH COUNCIL,ASC,SOCIAL SERVICES,PRIVATE,Revenue,EXTERNAL DAYCARE,954964,130245290,23-May-16,"1,115.76",ACT TOO LTD,SP0000855
WANDSWORTH COUNCIL,ASC,SOCIAL SERVICES,PRIVATE,Revenue,EXTERNAL DAYCARE,954965,130245290,23-May-16,743.84,ACT TOO LTD,SP0000855
WANDSWORTH COUNCIL,ASC,SOCIAL SERVICES,PRIVATE,Revenue,EXTERNAL DAYCARE,954968,130245290,23-May-16,557.88,ACT TOO LTD,SP0000855
WANDSWORTH COUNCIL,ASC,SOCIAL SERVICES,PRIVATE,Revenue,EXTERNAL DAYCARE,954969,130245290,23-May-16,557.88,ACT TOO LTD,SP0000855
WANDSWORTH COUNCIL,ASC,SOCIAL SERVICES,PRIVATE,Revenue,EXTERNAL DAYCARE,954974,130245290,23-May-16,557.88,ACT TOO LTD,SP0000855
WANDSWORTH COUNCIL,ASC,SOCIAL SERVICES,PRIVATE,Revenue,EXTERNAL DAYCARE,954982,130245290,23-May-16,557.88,ACT TOO LTD,SP0000855
WANDSWORTH COUNCIL,ASC,SOCIAL SERVICES,PRIVATE,Revenue,EXTERNAL DAYCARE,940916,130245290,06-May-16,"1,416.24",WINSLOW COURT,SP0000886
WANDSWORTH COUNCIL,ASC,SOCIAL SERVICES,PRIVATE,Revenue,EXTERNAL DAYCARE,940917,130245290,06-May-16,"1,416.24",WINSLOW COURT,SP0000886
WANDSWORTH COUNCIL,ASC,SOCIAL SERVICES,PRIVATE,Revenue,EXTERNAL DAYCARE,940918,130245290,06-May-16,"1,416.24",WINSLOW COURT,SP0000886
WANDSWORTH COUNCIL,ASC,SOCIAL SERVICES,PRIVATE,Revenue,EXTERNAL DAYCARE,940919,130245290,06-May-16,"1,416.24",WINSLOW COURT,SP0000886
WANDSWORTH COUNCIL,ASC,SOCIAL SERVICES,PRIVATE,Revenue,EXTERNAL DAYCARE,957923,130245290,26-May-16,"17,275.20",SURREY COUNTY COUNCIL,SP0000930
WANDSWORTH COUNCIL,ASC,SOCIAL SERVICES,PRIVATE,Revenue,EXTERNAL DAYCARE,957924,130245290,26-May-16,"5,502.72",SURREY COUNTY COUNCIL,SP0000930
WANDSWORTH COUNCIL,ASC,SOCIAL SERVICES,PRIVATE,Revenue,EXTERNAL DAYCARE,957925,130245290,26-May-16,"5,502.72",SURREY COUNTY COUNCIL,SP0000930
WANDSWORTH COUNCIL,ASC,SOCIAL SERVICES,PRIVATE,Revenue,EXTERNAL DAYCARE,940874,130245290,06-May-16,844.38,ORIONE CARE,SP0000961
WANDSWORTH COUNCIL,ASC,SOCIAL SERVICES,PRIVATE,Revenue,EXTERNAL DAYCARE,940876,130245290,06-May-16,609.83,ORIONE CARE,SP0000961
WANDSWORTH COUNCIL,ASC,SOCIAL SERVICES,PRIVATE,Revenue,EXTERNAL DAYCARE,957893,130245290,26-May-16,797.47,ORIONE CARE,SP0000961
WANDSWORTH COUNCIL,ASC,SOCIAL SERVICES,PRIVATE,Revenue,EXTERNAL DAYCARE,957895,130245290,26-May-16,562.92,ORIONE CARE,SP0000961
WANDSWORTH COUNCIL,ASC,SOCIAL SERVICES,PRIVATE,Revenue,EXTERNAL DAYCARE,957921,130245290,26-May-16,"1,177.40",RIDGEWOOD CARE SERVICES LTD,SP0000969
WANDSWORTH COUNCIL,ASC,SOCIAL SERVICES,PRIVATE,Revenue,EXTERNAL DAYCARE,938710,130245290,04-May-16,969.80,SCOPE,SP0000991
WANDSWORTH COUNCIL,ASC,SOCIAL SERVICES,PRIVATE,Revenue,EXTERNAL DAYCARE,938711,130245290,04-May-16,671.40,SCOPE,SP0000991
WANDSWORTH COUNCIL,ASC,SOCIAL SERVICES,PRIVATE,Revenue,EXTERNAL DAYCARE,942159,130245290,09-May-16,969.80,SCOPE,SP0000991
WANDSWORTH COUNCIL,ASC,SOCIAL SERVICES,PRIVATE,Revenue,EXTERNAL DAYCARE,942160,130245290,09-May-16,596.80,SCOPE,SP0000991
WANDSWORTH COUNCIL,ASC,SOCIAL SERVICES,PRIVATE,Revenue,EXTERNAL DAYCARE,954900,130245290,23-May-16,935.00,THE HOME FARM TRUST LTD,SP0001048
WANDSWORTH COUNCIL,ASC,SOCIAL SERVICES,PRIVATE,Revenue,EXTERNAL DAYCARE,954901,130245290,23-May-16,990.00,THE HOME FARM TRUST LTD,SP0001048
WANDSWORTH COUNCIL,ASC,SOCIAL SERVICES,PRIVATE,Revenue,EXTERNAL DAYCARE,940610,130245290,06-May-16,"1,273.00",SUSSEX HEALTH CARE,SP0001115
WANDSWORTH COUNCIL,ASC,SOCIAL SERVICES,PRIVATE,Revenue,EXTERNAL DAYCARE,954861,130245290,23-May-16,"1,678.25",LONDON CARE PARTNERSHIP LTD,SP0001138
WANDSWORTH COUNCIL,ASC,SOCIAL SERVICES,PRIVATE,Revenue,EXTERNAL DAYCARE,957810,130245290,26-May-16,"1,551.24",LONDON CARE PARTNERSHIP LTD,SP0001138
WANDSWORTH COUNCIL,ASC,SOCIAL SERVICES,PRIVATE,Revenue,EXTERNAL DAYCARE,951734,130245290,19-May-16,819.52,HARROW MENCAP,SP0001347
WANDSWORTH COUNCIL,ASC,SOCIAL SERVICES,PRIVATE,Revenue,EXTERNAL DAYCARE,939271,130245290,04-May-16,962.88,WORKSHOP 305,SP0001403
WANDSWORTH COUNCIL,ASC,SOCIAL SERVICES,PRIVATE,Revenue,EXTERNAL DAYCARE,940877,130245290,06-May-16,"1,131.96",WORKSHOP 305,SP0001403
WANDSWORTH COUNCIL,ASC,SOCIAL SERVICES,PRIVATE,Revenue,EXTERNAL DAYCARE,940884,130245290,06-May-16,967.92,WORKSHOP 305,SP0001403
WANDSWORTH COUNCIL,ASC,SOCIAL SERVICES,PRIVATE,Revenue,EXTERNAL DAYCARE,940888,130245290,06-May-16,725.94,WORKSHOP 305,SP0001403
WANDSWORTH COUNCIL,ASC,SOCIAL SERVICES,PRIVATE,Revenue,EXTERNAL DAYCARE,940894,130245290,06-May-16,848.97,WORKSHOP 305,SP0001403
WANDSWORTH COUNCIL,ASC,SOCIAL SERVICES,PRIVATE,Revenue,EXTERNAL DAYCARE,940895,130245290,06-May-16,725.94,WORKSHOP 305,SP0001403
WANDSWORTH COUNCIL,ASC,SOCIAL SERVICES,PRIVATE,Revenue,EXTERNAL DAYCARE,940898,130245290,06-May-16,725.94,WORKSHOP 305,SP0001403
WANDSWORTH COUNCIL,ASC,SOCIAL SERVICES,PRIVATE,Revenue,EXTERNAL DAYCARE,940903,130245290,06-May-16,725.94,WORKSHOP 305,SP0001403
WANDSWORTH COUNCIL,ASC,SOCIAL SERVICES,PRIVATE,Revenue,EXTERNAL DAYCARE,940914,130245290,06-May-16,968.34,WORKSHOP 305,SP0001403
WANDSWORTH COUNCIL,ASC,SOCIAL SERVICES,PRIVATE,Revenue,EXTERNAL DAYCARE,957897,130245290,26-May-16,650.00,THE CAMDEN SOCIETY,SP0001674
WANDSWORTH COUNCIL,ASC,SOCIAL SERVICES,PRIVATE,Revenue,EXTERNAL DAYCARE,957898,130245290,26-May-16,650.00,THE CAMDEN SOCIETY,SP0001674
WANDSWORTH COUNCIL,ASC,SOCIAL SERVICES,PRIVATE,Revenue,EXTERNAL DAYCARE,957899,130245290,26-May-16,650.00,THE CAMDEN SOCIETY,SP0001674
WANDSWORTH COUNCIL,ASC,SOCIAL SERVICES,PRIVATE,Revenue,EXTERNAL DAYCARE,957900,130245290,26-May-16,650.00,THE CAMDEN SOCIETY,SP0001674
WANDSWORTH COUNCIL,ASC,SOCIAL SERVICES,PRIVATE,Revenue,EXTERNAL DAYCARE,957901,130245290,26-May-16,650.00,THE CAMDEN SOCIETY,SP0001674
WANDSWORTH COUNCIL,ASC,SOCIAL SERVICES,PRIVATE,Revenue,EXTERNAL DAYCARE,957902,130245290,26-May-16,650.00,THE CAMDEN SOCIETY,SP0001674
WANDSWORTH COUNCIL,ASC,SOCIAL SERVICES,PRIVATE,Revenue,EXTERNAL DAYCARE,957903,130245290,26-May-16,650.00,THE CAMDEN SOCIETY,SP0001674
WANDSWORTH COUNCIL,ASC,SOCIAL SERVICES,PRIVATE,Revenue,EXTERNAL DAYCARE,954167,130245290,23-May-16,"7,813.09",ORCHARD HILL COLLEGE,SP0007179
WANDSWORTH COUNCIL,ASC,SOCIAL SERVICES,PRIVATE,Revenue,EXTERNAL DAYCARE,943045,130245290,10-May-16,655.59,LUCKETTS FARM LIMNITED T/A THE JOHN GRAH,SP0009847
WANDSWORTH COUNCIL,ASC,SOCIAL SERVICES,PRIVATE,Revenue,EXTERNAL DAYCARE,943046,130245290,10-May-16,605.16,LUCKETTS FARM LIMNITED T/A THE JOHN GRAH,SP0009847
WANDSWORTH COUNCIL,ASC,SOCIAL SERVICES,PRIVATE,Revenue,EXTERNAL DAYCARE,957926,130245290,26-May-16,963.20,INSPIRE CARE OUTREACH LIMITED,SP0010404
WANDSWORTH COUNCIL,ASC,SOCIAL SERVICES,PRIVATE,Revenue,EXTERNAL HOMECARE,952548,130245300,20-May-16,"1,200.90",RAINBOW MEDICAL SERVICES,SP0000037
WANDSWORTH COUNCIL,ASC,SOCIAL SERVICES,PRIVATE,Revenue,EXTERNAL HOMECARE,947870,130245300,16-May-16,757.13,ASIAN ELDERS SUPPORT SCHEME,SP0000190
WANDSWORTH COUNCIL,ASC,SOCIAL SERVICES,PRIVATE,Revenue,EXTERNAL HOMECARE,960838,130245300,31-May-16,761.38,ASIAN ELDERS SUPPORT SCHEME,SP0000190
WANDSWORTH COUNCIL,ASC,SOCIAL SERVICES,PRIVATE,Revenue,EXTERNAL HOMECARE,952478,130245300,20-May-16,627.44,MUSHKIL AASAAN LTD,SP0000978
WANDSWORTH COUNCIL,ASC,SOCIAL SERVICES,PRIVATE,Revenue,EXTERNAL HOMECARE,952539,130245300,20-May-16,780.00,MUSHKIL AASAAN LTD,SP0000978
WANDSWORTH COUNCIL,ASC,SOCIAL SERVICES,PRIVATE,Revenue,EXTERNAL HOMECARE,941352,130245300,09-May-16,668.14,CARE OUTLOOK LTD,SP0001545
WANDSWORTH COUNCIL,ASC,SOCIAL SERVICES,PRIVATE,Revenue,EXTERNAL HOMECARE,939153,130245300,04-May-16,787.29,SUPREME CARE SERVICE LTD,SP0001600
WANDSWORTH COUNCIL,ASC,SOCIAL SERVICES,PRIVATE,Revenue,EXTERNAL HOMECARE,954117,130245300,23-May-16,"3,232.00",CHRISTIES CARE LTD,SP0005440
WANDSWORTH COUNCIL,ASC,SOCIAL SERVICES,PRIVATE,Revenue,EXTERNAL HOMECARE,954125,130245300,23-May-16,"3,232.00",CHRISTIES CARE LTD,SP0005440
WANDSWORTH COUNCIL,ASC,SOCIAL SERVICES,PRIVATE,Revenue,EXTERNAL HOMECARE,938530,130245300,04-May-16,621.96,LONDON HOMECARE LTD,SP0009029
WANDSWORTH COUNCIL,ASC,SOCIAL SERVICES,PRIVATE,Revenue,EXTERNAL HOMECARE,938532,130245300,04-May-16,"1,778.88",LONDON HOMECARE LTD,SP0009029
WANDSWORTH COUNCIL,ASC,SOCIAL SERVICES,PRIVATE,Revenue,EXTERNAL HOMECARE,938622,130245300,04-May-16,618.59,LONDON HOMECARE LTD,SP0009029
WANDSWORTH COUNCIL,ASC,SOCIAL SERVICES,PRIVATE,Revenue,EXTERNAL HOMECARE,950583,130245300,18-May-16,558.50,HEALTH CARE SOLUTIONS,SP0010527
WANDSWORTH COUNCIL,ASC,SOCIAL SERVICES,PRIVATE,Revenue,EXTERNAL HOMECARE,952450,130245300,20-May-16,558.50,HEALTH CARE SOLUTIONS,SP0010527
WANDSWORTH COUNCIL,ASC,SOCIAL SERVICES,PRIVATE,Revenue,EXTERNAL NURSING CARE,942131,130245310,09-May-16,"6,127.24",WINGHAM COURT,SP0000025
WANDSWORTH COUNCIL,ASC,SOCIAL SERVICES,PRIVATE,Revenue,EXTERNAL NURSING CARE,940601,130245310,06-May-16,"4,181.88",VOYAGE CARE LTD,SP0000366
WANDSWORTH COUNCIL,ASC,SOCIAL SERVICES,PRIVATE,Revenue,EXTERNAL NURSING CARE,954874,130245310,23-May-16,"3,836.94",VOYAGE CARE LTD,SP0000366
WANDSWORTH COUNCIL,ASC,SOCIAL SERVICES,PRIVATE,Revenue,EXTERNAL NURSING CARE,956695,130245310,25-May-16,"5,325.08",VOYAGE CARE LTD,SP0000366
WANDSWORTH COUNCIL,ASC,SOCIAL SERVICES,PRIVATE,Revenue,EXTERNAL NURSING CARE,951110,130245310,19-May-16,"9,037.65",THE COMMUNITY CARE COMPANY UK LTD,SP0000576
WANDSWORTH COUNCIL,ASC,SOCIAL SERVICES,PRIVATE,Revenue,EXTERNAL NURSING CARE,953170,130245310,20-May-16,"3,095.57",BUPA CARE SERVICES BACS RECEIPTS,SP0000644
WANDSWORTH COUNCIL,ASC,SOCIAL SERVICES,PRIVATE,Revenue,EXTERNAL NURSING CARE,947322,130245310,16-May-16,"5,419.76",HIGH HURLANDS HOMES,SP0000668
WANDSWORTH COUNCIL,ASC,SOCIAL SERVICES,PRIVATE,Revenue,EXTERNAL NURSING CARE,952443,130245310,20-May-16,"5,396.88",HIGH HURLANDS HOMES,SP0000668
WANDSWORTH COUNCIL,ASC,SOCIAL SERVICES,PRIVATE,Revenue,EXTERNAL NURSING CARE,958538,130245310,26-May-16,"5,419.76",HIGH HURLANDS HOMES,SP0000668
WANDSWORTH COUNCIL,ASC,SOCIAL SERVICES,PRIVATE,Revenue,EXTERNAL RESIDENTIAL CARE,939131,130245330,04-May-16,"5,674.36",CMG HOMES LTD,SP0000075
WANDSWORTH COUNCIL,ASC,SOCIAL SERVICES,PRIVATE,Revenue,EXTERNAL RESIDENTIAL CARE,939132,130245330,04-May-16,"3,940.80",CMG HOMES LTD,SP0000075
WANDSWORTH COUNCIL,ASC,SOCIAL SERVICES,PRIVATE,Revenue,EXTERNAL RESIDENTIAL CARE,939133,130245330,04-May-16,"6,052.16",CMG HOMES LTD,SP0000075
WANDSWORTH COUNCIL,ASC,SOCIAL SERVICES,PRIVATE,Revenue,EXTERNAL RESIDENTIAL CARE,939134,130245330,04-May-16,"5,594.64",CMG HOMES LTD,SP0000075
WANDSWORTH COUNCIL,ASC,SOCIAL SERVICES,PRIVATE,Revenue,EXTERNAL RESIDENTIAL CARE,939135,130245330,04-May-16,"4,404.80",CMG HOMES LTD,SP0000075
WANDSWORTH COUNCIL,ASC,SOCIAL SERVICES,PRIVATE,Revenue,EXTERNAL RESIDENTIAL CARE,939136,130245330,04-May-16,"3,909.12",CMG HOMES LTD,SP0000075
WANDSWORTH COUNCIL,ASC,SOCIAL SERVICES,PRIVATE,Revenue,EXTERNAL RESIDENTIAL CARE,939137,130245330,04-May-16,"8,121.44",CMG HOMES LTD,SP0000075
WANDSWORTH COUNCIL,ASC,SOCIAL SERVICES,PRIVATE,Revenue,EXTERNAL RESIDENTIAL CARE,939138,130245330,04-May-16,"4,904.55",CMG HOMES LTD,SP0000075
WANDSWORTH COUNCIL,ASC,SOCIAL SERVICES,PRIVATE,Revenue,EXTERNAL RESIDENTIAL CARE,939139,130245330,04-May-16,"4,682.72",CMG HOMES LTD,SP0000075
WANDSWORTH COUNCIL,ASC,SOCIAL SERVICES,PRIVATE,Revenue,EXTERNAL RESIDENTIAL CARE,939140,130245330,04-May-16,"7,188.28",CMG HOMES LTD,SP0000075
WANDSWORTH COUNCIL,ASC,SOCIAL SERVICES,PRIVATE,Revenue,EXTERNAL RESIDENTIAL CARE,939141,130245330,04-May-16,"4,450.43",CMG HOMES LTD,SP0000075
WANDSWORTH COUNCIL,ASC,SOCIAL SERVICES,PRIVATE,Revenue,EXTERNAL RESIDENTIAL CARE,959468,130245330,27-May-16,"3,346.17",CMG HOMES LTD,SP0000075
WANDSWORTH COUNCIL,ASC,SOCIAL SERVICES,PRIVATE,Revenue,EXTERNAL RESIDENTIAL CARE,951064,130245330,19-May-16,"6,669.65",NATIONAL SOCIETY FOR EPILEPSY,SP0000120
WANDSWORTH COUNCIL,ASC,SOCIAL SERVICES,PRIVATE,Revenue,EXTERNAL RESIDENTIAL CARE,954098,130245330,23-May-16,"6,439.50",NATIONAL SOCIETY FOR EPILEPSY,SP0000120
WANDSWORTH COUNCIL,ASC,SOCIAL SERVICES,PRIVATE,Revenue,EXTERNAL RESIDENTIAL CARE,953050,130245330,20-May-16,"2,499.08",SANCTUARY CARE LTD,SP0000121
WANDSWORTH COUNCIL,ASC,SOCIAL SERVICES,PRIVATE,Revenue,EXTERNAL RESIDENTIAL CARE,947325,130245330,16-May-16,"4,895.66",IN CHORUS LTD,SP0000129
WANDSWORTH COUNCIL,ASC,SOCIAL SERVICES,PRIVATE,Revenue,EXTERNAL RESIDENTIAL CARE,947326,130245330,16-May-16,"5,058.85",IN CHORUS LTD,SP0000129
WANDSWORTH COUNCIL,ASC,SOCIAL SERVICES,PRIVATE,Revenue,EXTERNAL RESIDENTIAL CARE,938484,130245330,04-May-16,"1,282.30",CENTRUST CARE HOMES LTD,SP0000141
WANDSWORTH COUNCIL,ASC,SOCIAL SERVICES,PRIVATE,Revenue,EXTERNAL RESIDENTIAL CARE,938485,130245330,04-May-16,"2,582.51",CENTRUST CARE HOMES LTD,SP0000141
WANDSWORTH COUNCIL,ASC,SOCIAL SERVICES,PRIVATE,Revenue,EXTERNAL RESIDENTIAL CARE,959453,130245330,27-May-16,"4,002.90",CENTRUST CARE HOMES LTD,SP0000141
WANDSWORTH COUNCIL,ASC,SOCIAL SERVICES,PRIVATE,Revenue,EXTERNAL RESIDENTIAL CARE,951679,130245330,19-May-16,"4,679.91",FRANCES TAYLOR FOUNDATION,SP0000142
WANDSWORTH COUNCIL,ASC,SOCIAL SERVICES,PRIVATE,Revenue,EXTERNAL RESIDENTIAL CARE,951680,130245330,19-May-16,"4,214.78",FRANCES TAYLOR FOUNDATION,SP0000142
WANDSWORTH COUNCIL,ASC,SOCIAL SERVICES,PRIVATE,Revenue,EXTERNAL RESIDENTIAL CARE,951681,130245330,19-May-16,"4,055.95",FRANCES TAYLOR FOUNDATION,SP0000142
WANDSWORTH COUNCIL,ASC,SOCIAL SERVICES,PRIVATE,Revenue,EXTERNAL RESIDENTIAL CARE,938488,130245330,04-May-16,"4,062.44",RESIDENTIAL CARE SERVICES T/A FRANKLYN L,SP0000147
WANDSWORTH COUNCIL,ASC,SOCIAL SERVICES,PRIVATE,Revenue,EXTERNAL RESIDENTIAL CARE,952439,130245330,20-May-16,"4,072.73",RESIDENTIAL CARE SERVICES T/A FRANKLYN L,SP0000147
WANDSWORTH COUNCIL,ASC,SOCIAL SERVICES,PRIVATE,Revenue,EXTERNAL RESIDENTIAL CARE,945468,130245330,12-May-16,"9,223.48",THE MAPLES,SP0000154
WANDSWORTH COUNCIL,ASC,SOCIAL SERVICES,PRIVATE,Revenue,EXTERNAL RESIDENTIAL CARE,942136,130245330,09-May-16,"5,246.36",THE CHESTNUTS,SP0000182
WANDSWORTH COUNCIL,ASC,SOCIAL SERVICES,PRIVATE,Revenue,EXTERNAL RESIDENTIAL CARE,942137,130245330,09-May-16,"5,246.36",THE CHESTNUTS,SP0000182
WANDSWORTH COUNCIL,ASC,SOCIAL SERVICES,PRIVATE,Revenue,EXTERNAL RESIDENTIAL CARE,942138,130245330,09-May-16,"5,594.12",THE CHESTNUTS,SP0000182
WANDSWORTH COUNCIL,ASC,SOCIAL SERVICES,PRIVATE,Revenue,EXTERNAL RESIDENTIAL CARE,956683,130245330,25-May-16,"1,651.40",ORCHARD VALE TRUST,SP0000214
WANDSWORTH COUNCIL,ASC,SOCIAL SERVICES,PRIVATE,Revenue,EXTERNAL RESIDENTIAL CARE,956684,130245330,25-May-16,"1,662.08",ORCHARD VALE TRUST,SP0000214
WANDSWORTH COUNCIL,ASC,SOCIAL SERVICES,PRIVATE,Revenue,EXTERNAL RESIDENTIAL CARE,954104,130245330,23-May-16,"3,846.44",ST MARYS RESIDENTIAL HOME,SP0000215
WANDSWORTH COUNCIL,ASC,SOCIAL SERVICES,PRIVATE,Revenue,EXTERNAL RESIDENTIAL CARE,954105,130245330,23-May-16,"3,790.57",ST MARYS RESIDENTIAL HOME,SP0000215
WANDSWORTH COUNCIL,ASC,SOCIAL SERVICES,PRIVATE,Revenue,EXTERNAL RESIDENTIAL CARE,954106,130245330,23-May-16,"3,470.79",ST MARYS RESIDENTIAL HOME,SP0000215
WANDSWORTH COUNCIL,ASC,SOCIAL SERVICES,PRIVATE,Revenue,EXTERNAL RESIDENTIAL CARE,954107,130245330,23-May-16,"3,608.64",ST MARYS RESIDENTIAL HOME,SP0000215
WANDSWORTH COUNCIL,ASC,SOCIAL SERVICES,PRIVATE,Revenue,EXTERNAL RESIDENTIAL CARE,954108,130245330,23-May-16,"4,957.08",ST MARYS RESIDENTIAL HOME,SP0000215
WANDSWORTH COUNCIL,ASC,SOCIAL SERVICES,PRIVATE,Revenue,EXTERNAL RESIDENTIAL CARE,954109,130245330,23-May-16,"3,483.31",ST MARYS RESIDENTIAL HOME,SP0000215
WANDSWORTH COUNCIL,ASC,SOCIAL SERVICES,PRIVATE,Revenue,EXTERNAL RESIDENTIAL CARE,954110,130245330,23-May-16,"3,286.63",ST MARYS RESIDENTIAL HOME,SP0000215
WANDSWORTH COUNCIL,ASC,SOCIAL SERVICES,PRIVATE,Revenue,EXTERNAL RESIDENTIAL CARE,954111,130245330,23-May-16,"3,695.99",ST MARYS RESIDENTIAL HOME,SP0000215
WANDSWORTH COUNCIL,ASC,SOCIAL SERVICES,PRIVATE,Revenue,EXTERNAL RESIDENTIAL CARE,954112,130245330,23-May-16,"3,445.83",ST MARYS RESIDENTIAL HOME,SP0000215
WANDSWORTH COUNCIL,ASC,SOCIAL SERVICES,PRIVATE,Revenue,EXTERNAL RESIDENTIAL CARE,954113,130245330,23-May-16,"3,695.99",ST MARYS RESIDENTIAL HOME,SP0000215
WANDSWORTH COUNCIL,ASC,SOCIAL SERVICES,PRIVATE,Revenue,EXTERNAL RESIDENTIAL CARE,954114,130245330,23-May-16,"2,257.87",ST MARYS RESIDENTIAL HOME,SP0000215
WANDSWORTH COUNCIL,ASC,SOCIAL SERVICES,PRIVATE,Revenue,EXTERNAL RESIDENTIAL CARE,954115,130245330,23-May-16,"3,113.38",ST MARYS RESIDENTIAL HOME,SP0000215
WANDSWORTH COUNCIL,ASC,SOCIAL SERVICES,PRIVATE,Revenue,EXTERNAL RESIDENTIAL CARE,954116,130245330,23-May-16,"3,559.29",ST MARYS RESIDENTIAL HOME,SP0000215
WANDSWORTH COUNCIL,ASC,SOCIAL SERVICES,PRIVATE,Revenue,EXTERNAL RESIDENTIAL CARE,960790,130245330,31-May-16,"3,989.52",ST MARYS RESIDENTIAL HOME,SP0000215
WANDSWORTH COUNCIL,ASC,SOCIAL SERVICES,PRIVATE,Revenue,EXTERNAL RESIDENTIAL CARE,960791,130245330,31-May-16,"3,594.80",ST MARYS RESIDENTIAL HOME,SP0000215
WANDSWORTH COUNCIL,ASC,SOCIAL SERVICES,PRIVATE,Revenue,EXTERNAL RESIDENTIAL CARE,960792,130245330,31-May-16,"3,737.58",ST MARYS RESIDENTIAL HOME,SP0000215
WANDSWORTH COUNCIL,ASC,SOCIAL SERVICES,PRIVATE,Revenue,EXTERNAL RESIDENTIAL CARE,960793,130245330,31-May-16,"3,068.87",ST MARYS RESIDENTIAL HOME,SP0000215
WANDSWORTH COUNCIL,ASC,SOCIAL SERVICES,PRIVATE,Revenue,EXTERNAL RESIDENTIAL CARE,960794,130245330,31-May-16,"5,163.36",ST MARYS RESIDENTIAL HOME,SP0000215
WANDSWORTH COUNCIL,ASC,SOCIAL SERVICES,PRIVATE,Revenue,EXTERNAL RESIDENTIAL CARE,960795,130245330,31-May-16,"3,645.11",ST MARYS RESIDENTIAL HOME,SP0000215
WANDSWORTH COUNCIL,ASC,SOCIAL SERVICES,PRIVATE,Revenue,EXTERNAL RESIDENTIAL CARE,960796,130245330,31-May-16,"3,607.78",ST MARYS RESIDENTIAL HOME,SP0000215
WANDSWORTH COUNCIL,ASC,SOCIAL SERVICES,PRIVATE,Revenue,EXTERNAL RESIDENTIAL CARE,960797,130245330,31-May-16,"3,343.33",ST MARYS RESIDENTIAL HOME,SP0000215
WANDSWORTH COUNCIL,ASC,SOCIAL SERVICES,PRIVATE,Revenue,EXTERNAL RESIDENTIAL CARE,960798,130245330,31-May-16,"3,828.05",ST MARYS RESIDENTIAL HOME,SP0000215
WANDSWORTH COUNCIL,ASC,SOCIAL SERVICES,PRIVATE,Revenue,EXTERNAL RESIDENTIAL CARE,960799,130245330,31-May-16,"3,567.65",ST MARYS RESIDENTIAL HOME,SP0000215
WANDSWORTH COUNCIL,ASC,SOCIAL SERVICES,PRIVATE,Revenue,EXTERNAL RESIDENTIAL CARE,960800,130245330,31-May-16,"3,828.05",ST MARYS RESIDENTIAL HOME,SP0000215
WANDSWORTH COUNCIL,ASC,SOCIAL SERVICES,PRIVATE,Revenue,EXTERNAL RESIDENTIAL CARE,960801,130245330,31-May-16,"2,329.65",ST MARYS RESIDENTIAL HOME,SP0000215
WANDSWORTH COUNCIL,ASC,SOCIAL SERVICES,PRIVATE,Revenue,EXTERNAL RESIDENTIAL CARE,960802,130245330,31-May-16,"3,118.80",ST MARYS RESIDENTIAL HOME,SP0000215
WANDSWORTH COUNCIL,ASC,SOCIAL SERVICES,PRIVATE,Revenue,EXTERNAL RESIDENTIAL CARE,960803,130245330,31-May-16,"3,564.13",ST MARYS RESIDENTIAL HOME,SP0000215
WANDSWORTH COUNCIL,ASC,SOCIAL SERVICES,PRIVATE,Revenue,EXTERNAL RESIDENTIAL CARE,960811,130245330,31-May-16,"8,720.00",SPRING LAKE,SP0000223
WANDSWORTH COUNCIL,ASC,SOCIAL SERVICES,PRIVATE,Revenue,EXTERNAL RESIDENTIAL CARE,960812,130245330,31-May-16,"7,600.00",SPRING LAKE,SP0000223
WANDSWORTH COUNCIL,ASC,SOCIAL SERVICES,PRIVATE,Revenue,EXTERNAL RESIDENTIAL CARE,960813,130245330,31-May-16,"8,720.00",SPRING LAKE,SP0000223
WANDSWORTH COUNCIL,ASC,SOCIAL SERVICES,PRIVATE,Revenue,EXTERNAL RESIDENTIAL CARE,960814,130245330,31-May-16,"7,600.00",SPRING LAKE,SP0000223
WANDSWORTH COUNCIL,ASC,SOCIAL SERVICES,PRIVATE,Revenue,EXTERNAL RESIDENTIAL CARE,939119,130245330,04-May-16,"4,722.20",CAMERON LODGE LIMITED,SP0000271
WANDSWORTH COUNCIL,ASC,SOCIAL SERVICES,PRIVATE,Revenue,EXTERNAL RESIDENTIAL CARE,947832,130245330,16-May-16,"2,950.92",CRAEGMOOR FACILITIES CO LTD,SP0000306
WANDSWORTH COUNCIL,ASC,SOCIAL SERVICES,PRIVATE,Revenue,EXTERNAL RESIDENTIAL CARE,954083,130245330,23-May-16,"6,263.46",RESIDENTIAL COMMUNITY CARE,SP0000315
WANDSWORTH COUNCIL,ASC,SOCIAL SERVICES,PRIVATE,Revenue,EXTERNAL RESIDENTIAL CARE,939117,130245330,04-May-16,"4,946.29",DOLPHIN HOMES LTD,SP0000331
WANDSWORTH COUNCIL,ASC,SOCIAL SERVICES,PRIVATE,Revenue,EXTERNAL RESIDENTIAL CARE,939118,130245330,04-May-16,"3,893.95",DOLPHIN HOMES LTD,SP0000331
WANDSWORTH COUNCIL,ASC,SOCIAL SERVICES,PRIVATE,Revenue,EXTERNAL RESIDENTIAL CARE,940623,130245330,06-May-16,"4,946.29",DOLPHIN HOMES LTD,SP0000331
WANDSWORTH COUNCIL,ASC,SOCIAL SERVICES,PRIVATE,Revenue,EXTERNAL RESIDENTIAL CARE,940624,130245330,06-May-16,"3,893.95",DOLPHIN HOMES LTD,SP0000331
WANDSWORTH COUNCIL,ASC,SOCIAL SERVICES,PRIVATE,Revenue,EXTERNAL RESIDENTIAL CARE,938491,130245330,04-May-16,"6,154.44",NORWOOD SCHOOLS LTD,SP0000332
WANDSWORTH COUNCIL,ASC,SOCIAL SERVICES,PRIVATE,Revenue,EXTERNAL RESIDENTIAL CARE,938492,130245330,04-May-16,"6,411.51",NORWOOD SCHOOLS LTD,SP0000332
WANDSWORTH COUNCIL,ASC,SOCIAL SERVICES,PRIVATE,Revenue,EXTERNAL RESIDENTIAL CARE,947338,130245330,16-May-16,"6,154.44",NORWOOD SCHOOLS LTD,SP0000332
WANDSWORTH COUNCIL,ASC,SOCIAL SERVICES,PRIVATE,Revenue,EXTERNAL RESIDENTIAL CARE,947339,130245330,16-May-16,"6,409.80",NORWOOD SCHOOLS LTD,SP0000332
WANDSWORTH COUNCIL,ASC,SOCIAL SERVICES,PRIVATE,Revenue,EXTERNAL RESIDENTIAL CARE,947307,130245330,16-May-16,"3,003.57",HEYWOODS GRANGE LTD,SP0000361
WANDSWORTH COUNCIL,ASC,SOCIAL SERVICES,PRIVATE,Revenue,EXTERNAL RESIDENTIAL CARE,947308,130245330,16-May-16,"2,500.98",HEYWOODS GRANGE LTD,SP0000361
WANDSWORTH COUNCIL,ASC,SOCIAL SERVICES,PRIVATE,Revenue,EXTERNAL RESIDENTIAL CARE,947309,130245330,16-May-16,"3,210.71",HEYWOODS GRANGE LTD,SP0000361
WANDSWORTH COUNCIL,ASC,SOCIAL SERVICES,PRIVATE,Revenue,EXTERNAL RESIDENTIAL CARE,940607,130245330,06-May-16,"5,906.69",VOYAGE CARE LTD,SP0000366
WANDSWORTH COUNCIL,ASC,SOCIAL SERVICES,PRIVATE,Revenue,EXTERNAL RESIDENTIAL CARE,940608,130245330,06-May-16,"5,930.14",VOYAGE CARE LTD,SP0000366
WANDSWORTH COUNCIL,ASC,SOCIAL SERVICES,PRIVATE,Revenue,EXTERNAL RESIDENTIAL CARE,954877,130245330,23-May-16,"6,091.77",VOYAGE CARE LTD,SP0000366
WANDSWORTH COUNCIL,ASC,SOCIAL SERVICES,PRIVATE,Revenue,EXTERNAL RESIDENTIAL CARE,954878,130245330,23-May-16,"6,127.81",VOYAGE CARE LTD,SP0000366
WANDSWORTH COUNCIL,ASC,SOCIAL SERVICES,PRIVATE,Revenue,EXTERNAL RESIDENTIAL CARE,956693,130245330,25-May-16,"7,444.36",VOYAGE CARE LTD,SP0000366
WANDSWORTH COUNCIL,ASC,SOCIAL SERVICES,PRIVATE,Revenue,EXTERNAL RESIDENTIAL CARE,956696,130245330,25-May-16,"6,441.12",VOYAGE CARE LTD,SP0000366
WANDSWORTH COUNCIL,ASC,SOCIAL SERVICES,PRIVATE,Revenue,EXTERNAL RESIDENTIAL CARE,956697,130245330,25-May-16,"7,766.72",VOYAGE CARE LTD,SP0000366
WANDSWORTH COUNCIL,ASC,SOCIAL SERVICES,PRIVATE,Revenue,EXTERNAL RESIDENTIAL CARE,940611,130245330,06-May-16,"2,118.27",ST DAVIDS CARE IN THE COMMUNITY,SP0000379
WANDSWORTH COUNCIL,ASC,SOCIAL SERVICES,PRIVATE,Revenue,EXTERNAL RESIDENTIAL CARE,940612,130245330,06-May-16,"2,552.13",ST DAVIDS CARE IN THE COMMUNITY,SP0000379
WANDSWORTH COUNCIL,ASC,SOCIAL SERVICES,PRIVATE,Revenue,EXTERNAL RESIDENTIAL CARE,940613,130245330,06-May-16,"2,117.45",ST DAVIDS CARE IN THE COMMUNITY,SP0000379
WANDSWORTH COUNCIL,ASC,SOCIAL SERVICES,PRIVATE,Revenue,EXTERNAL RESIDENTIAL CARE,937617,130245330,04-May-16,"5,463.99",ESSEX CARE CONSORTIUM,SP0000387
WANDSWORTH COUNCIL,ASC,SOCIAL SERVICES,PRIVATE,Revenue,EXTERNAL RESIDENTIAL CARE,954088,130245330,23-May-16,"5,646.12",ESSEX CARE CONSORTIUM,SP0000387
WANDSWORTH COUNCIL,ASC,SOCIAL SERVICES,PRIVATE,Revenue,EXTERNAL RESIDENTIAL CARE,947341,130245330,16-May-16,"3,147.60",POTENSIAL LTD,SP0000395
WANDSWORTH COUNCIL,ASC,SOCIAL SERVICES,PRIVATE,Revenue,EXTERNAL RESIDENTIAL CARE,938486,130245330,04-May-16,"4,055.97",KENILWORTH RESIDENTIAL HOME,SP0000432
WANDSWORTH COUNCIL,ASC,SOCIAL SERVICES,PRIVATE,Revenue,EXTERNAL RESIDENTIAL CARE,938487,130245330,04-May-16,"4,233.04",KENILWORTH RESIDENTIAL HOME,SP0000432
WANDSWORTH COUNCIL,ASC,SOCIAL SERVICES,PRIVATE,Revenue,EXTERNAL RESIDENTIAL CARE,944388,130245330,11-May-16,"4,654.32",THE WELL HOUSE,SP0000448
WANDSWORTH COUNCIL,ASC,SOCIAL SERVICES,PRIVATE,Revenue,EXTERNAL RESIDENTIAL CARE,944389,130245330,11-May-16,"4,419.64",THE WELL HOUSE,SP0000448
WANDSWORTH COUNCIL,ASC,SOCIAL SERVICES,PRIVATE,Revenue,EXTERNAL RESIDENTIAL CARE,950450,130245330,18-May-16,"8,982.39",SURREY & BORDERS PARTNERSHIP NHS TRUST,SP0000501
WANDSWORTH COUNCIL,ASC,SOCIAL SERVICES,PRIVATE,Revenue,EXTERNAL RESIDENTIAL CARE,950451,130245330,18-May-16,"5,611.49",SURREY & BORDERS PARTNERSHIP NHS TRUST,SP0000501
WANDSWORTH COUNCIL,ASC,SOCIAL SERVICES,PRIVATE,Revenue,EXTERNAL RESIDENTIAL CARE,951125,130245330,19-May-16,"8,982.39",SURREY & BORDERS PARTNERSHIP NHS TRUST,SP0000501
WANDSWORTH COUNCIL,ASC,SOCIAL SERVICES,PRIVATE,Revenue,EXTERNAL RESIDENTIAL CARE,951126,130245330,19-May-16,"5,605.20",SURREY & BORDERS PARTNERSHIP NHS TRUST,SP0000501
WANDSWORTH COUNCIL,ASC,SOCIAL SERVICES,PRIVATE,Revenue,EXTERNAL RESIDENTIAL CARE,951044,130245330,19-May-16,"7,717.76",LORING HALL LIMITED,SP0000511
WANDSWORTH COUNCIL,ASC,SOCIAL SERVICES,PRIVATE,Revenue,EXTERNAL RESIDENTIAL CARE,942125,130245330,09-May-16,"8,370.84",AIMS CARE PARTNERSHIP,SP0000561
WANDSWORTH COUNCIL,ASC,SOCIAL SERVICES,PRIVATE,Revenue,EXTERNAL RESIDENTIAL CARE,954081,130245330,23-May-16,"7,830.78",AIMS CARE PARTNERSHIP,SP0000561
WANDSWORTH COUNCIL,ASC,SOCIAL SERVICES,PRIVATE,Revenue,EXTERNAL RESIDENTIAL CARE,937619,130245330,04-May-16,"7,351.97",SEEABILITY,SP0000572
WANDSWORTH COUNCIL,ASC,SOCIAL SERVICES,PRIVATE,Revenue,EXTERNAL RESIDENTIAL CARE,952433,130245330,20-May-16,"8,292.86",SEEABILITY,SP0000572
WANDSWORTH COUNCIL,ASC,SOCIAL SERVICES,PRIVATE,Revenue,EXTERNAL RESIDENTIAL CARE,951111,130245330,19-May-16,"5,683.81",THE COMMUNITY CARE COMPANY UK LTD,SP0000576
WANDSWORTH COUNCIL,ASC,SOCIAL SERVICES,PRIVATE,Revenue,EXTERNAL RESIDENTIAL CARE,951112,130245330,19-May-16,"7,171.89",THE COMMUNITY CARE COMPANY UK LTD,SP0000576
WANDSWORTH COUNCIL,ASC,SOCIAL SERVICES,PRIVATE,Revenue,EXTERNAL RESIDENTIAL CARE,951113,130245330,19-May-16,"6,062.44",THE COMMUNITY CARE COMPANY UK LTD,SP0000576
WANDSWORTH COUNCIL,ASC,SOCIAL SERVICES,PRIVATE,Revenue,EXTERNAL RESIDENTIAL CARE,951115,130245330,19-May-16,"7,253.60",THE COMMUNITY CARE COMPANY UK LTD,SP0000576
WANDSWORTH COUNCIL,ASC,SOCIAL SERVICES,PRIVATE,Revenue,EXTERNAL RESIDENTIAL CARE,951118,130245330,19-May-16,"6,249.68",THE COMMUNITY CARE COMPANY UK LTD,SP0000576
WANDSWORTH COUNCIL,ASC,SOCIAL SERVICES,PRIVATE,Revenue,EXTERNAL RESIDENTIAL CARE,939128,130245330,04-May-16,"7,242.13",THE REGARD PARTNERSHIP,SP0000588
WANDSWORTH COUNCIL,ASC,SOCIAL SERVICES,PRIVATE,Revenue,EXTERNAL RESIDENTIAL CARE,939129,130245330,04-May-16,"6,816.99",THE REGARD PARTNERSHIP,SP0000588
WANDSWORTH COUNCIL,ASC,SOCIAL SERVICES,PRIVATE,Revenue,EXTERNAL RESIDENTIAL CARE,939130,130245330,04-May-16,"6,911.11",THE REGARD PARTNERSHIP,SP0000588
WANDSWORTH COUNCIL,ASC,SOCIAL SERVICES,PRIVATE,Revenue,EXTERNAL RESIDENTIAL CARE,956237,130245330,25-May-16,"6,113.44",THE REGARD PARTNERSHIP,SP0000588
WANDSWORTH COUNCIL,ASC,SOCIAL SERVICES,PRIVATE,Revenue,EXTERNAL RESIDENTIAL CARE,958531,130245330,26-May-16,"(4,827.97)",THE REGARD PARTNERSHIP,SP0000588
WANDSWORTH COUNCIL,ASC,SOCIAL SERVICES,PRIVATE,Revenue,EXTERNAL RESIDENTIAL CARE,958532,130245330,26-May-16,"7,618.29",THE REGARD PARTNERSHIP,SP0000588
WANDSWORTH COUNCIL,ASC,SOCIAL SERVICES,PRIVATE,Revenue,EXTERNAL RESIDENTIAL CARE,958533,130245330,26-May-16,"8,131.23",THE REGARD PARTNERSHIP,SP0000588
WANDSWORTH COUNCIL,ASC,SOCIAL SERVICES,PRIVATE,Revenue,EXTERNAL RESIDENTIAL CARE,954869,130245330,23-May-16,"9,867.20",EVERGREEN PARTNERSHIP,SP0000597
WANDSWORTH COUNCIL,ASC,SOCIAL SERVICES,PRIVATE,Revenue,EXTERNAL RESIDENTIAL CARE,947310,130245330,16-May-16,"4,808.20",LAETUS LODGE,SP0000600
WANDSWORTH COUNCIL,ASC,SOCIAL SERVICES,PRIVATE,Revenue,EXTERNAL RESIDENTIAL CARE,947311,130245330,16-May-16,"6,096.48",LAETUS LODGE,SP0000600
WANDSWORTH COUNCIL,ASC,SOCIAL SERVICES,PRIVATE,Revenue,EXTERNAL RESIDENTIAL CARE,947312,130245330,16-May-16,"6,193.48",LAETUS LODGE,SP0000600
WANDSWORTH COUNCIL,ASC,SOCIAL SERVICES,PRIVATE,Revenue,EXTERNAL RESIDENTIAL CARE,947313,130245330,16-May-16,"3,669.12",LAETUS LODGE,SP0000600
WANDSWORTH COUNCIL,ASC,SOCIAL SERVICES,PRIVATE,Revenue,EXTERNAL RESIDENTIAL CARE,947314,130245330,16-May-16,"20,630.94",LAETUS LODGE,SP0000600
WANDSWORTH COUNCIL,ASC,SOCIAL SERVICES,PRIVATE,Revenue,EXTERNAL RESIDENTIAL CARE,947315,130245330,16-May-16,"5,256.56",LAETUS LODGE,SP0000600
WANDSWORTH COUNCIL,ASC,SOCIAL SERVICES,PRIVATE,Revenue,EXTERNAL RESIDENTIAL CARE,947316,130245330,16-May-16,"3,775.76",LAETUS LODGE,SP0000600
WANDSWORTH COUNCIL,ASC,SOCIAL SERVICES,PRIVATE,Revenue,EXTERNAL RESIDENTIAL CARE,954089,130245330,23-May-16,"4,558.48",LAETUS LODGE,SP0000600
WANDSWORTH COUNCIL,ASC,SOCIAL SERVICES,PRIVATE,Revenue,EXTERNAL RESIDENTIAL CARE,950445,130245330,18-May-16,"3,472.09",MENCAP,SP0000604
WANDSWORTH COUNCIL,ASC,SOCIAL SERVICES,PRIVATE,Revenue,EXTERNAL RESIDENTIAL CARE,950447,130245330,18-May-16,"2,409.54",MENCAP,SP0000604
WANDSWORTH COUNCIL,ASC,SOCIAL SERVICES,PRIVATE,Revenue,EXTERNAL RESIDENTIAL CARE,952435,130245330,20-May-16,"3,354.38",MENCAP,SP0000604
WANDSWORTH COUNCIL,ASC,SOCIAL SERVICES,PRIVATE,Revenue,EXTERNAL RESIDENTIAL CARE,952437,130245330,20-May-16,"2,326.11",MENCAP,SP0000604
WANDSWORTH COUNCIL,ASC,SOCIAL SERVICES,PRIVATE,Revenue,EXTERNAL RESIDENTIAL CARE,958511,130245330,26-May-16,"8,060.31",HEALTHLINC INDIVIDUAL CARE,SP0000617
WANDSWORTH COUNCIL,ASC,SOCIAL SERVICES,PRIVATE,Revenue,EXTERNAL RESIDENTIAL CARE,958513,130245330,26-May-16,"3,671.52",METROPOLITAN HOUSING TRUST,SP0000626
WANDSWORTH COUNCIL,ASC,SOCIAL SERVICES,PRIVATE,Revenue,EXTERNAL RESIDENTIAL CARE,958514,130245330,26-May-16,"3,672.72",METROPOLITAN HOUSING TRUST,SP0000626
WANDSWORTH COUNCIL,ASC,SOCIAL SERVICES,PRIVATE,Revenue,EXTERNAL RESIDENTIAL CARE,958515,130245330,26-May-16,"3,659.52",METROPOLITAN HOUSING TRUST,SP0000626
WANDSWORTH COUNCIL,ASC,SOCIAL SERVICES,PRIVATE,Revenue,EXTERNAL RESIDENTIAL CARE,958516,130245330,26-May-16,"3,659.68",METROPOLITAN HOUSING TRUST,SP0000626
WANDSWORTH COUNCIL,ASC,SOCIAL SERVICES,PRIVATE,Revenue,EXTERNAL RESIDENTIAL CARE,958517,130245330,26-May-16,"3,659.52",METROPOLITAN HOUSING TRUST,SP0000626
WANDSWORTH COUNCIL,ASC,SOCIAL SERVICES,PRIVATE,Revenue,EXTERNAL RESIDENTIAL CARE,958518,130245330,26-May-16,"3,659.52",METROPOLITAN HOUSING TRUST,SP0000626
WANDSWORTH COUNCIL,ASC,SOCIAL SERVICES,PRIVATE,Revenue,EXTERNAL RESIDENTIAL CARE,958519,130245330,26-May-16,"3,812.04",METROPOLITAN HOUSING TRUST,SP0000626
WANDSWORTH COUNCIL,ASC,SOCIAL SERVICES,PRIVATE,Revenue,EXTERNAL RESIDENTIAL CARE,958520,130245330,26-May-16,"3,659.52",METROPOLITAN HOUSING TRUST,SP0000626
WANDSWORTH COUNCIL,ASC,SOCIAL SERVICES,PRIVATE,Revenue,EXTERNAL RESIDENTIAL CARE,958521,130245330,26-May-16,"4,768.88",METROPOLITAN HOUSING TRUST,SP0000626
WANDSWORTH COUNCIL,ASC,SOCIAL SERVICES,PRIVATE,Revenue,EXTERNAL RESIDENTIAL CARE,958522,130245330,26-May-16,"4,770.08",METROPOLITAN HOUSING TRUST,SP0000626
WANDSWORTH COUNCIL,ASC,SOCIAL SERVICES,PRIVATE,Revenue,EXTERNAL RESIDENTIAL CARE,958523,130245330,26-May-16,"4,427.04",METROPOLITAN HOUSING TRUST,SP0000626
WANDSWORTH COUNCIL,ASC,SOCIAL SERVICES,PRIVATE,Revenue,EXTERNAL RESIDENTIAL CARE,958524,130245330,26-May-16,"4,709.79",METROPOLITAN HOUSING TRUST,SP0000626
WANDSWORTH COUNCIL,ASC,SOCIAL SERVICES,PRIVATE,Revenue,EXTERNAL RESIDENTIAL CARE,958526,130245330,26-May-16,"4,721.79",METROPOLITAN HOUSING TRUST,SP0000626
WANDSWORTH COUNCIL,ASC,SOCIAL SERVICES,PRIVATE,Revenue,EXTERNAL RESIDENTIAL CARE,940800,130245330,06-May-16,"5,832.27",SUSSEX AUTISTIC COMMUNITY TRUST(CARE SER,SP0000652
WANDSWORTH COUNCIL,ASC,SOCIAL SERVICES,PRIVATE,Revenue,EXTERNAL RESIDENTIAL CARE,940801,130245330,06-May-16,"6,234.50",SUSSEX AUTISTIC COMMUNITY TRUST(CARE SER,SP0000652
WANDSWORTH COUNCIL,ASC,SOCIAL SERVICES,PRIVATE,Revenue,EXTERNAL RESIDENTIAL CARE,940802,130245330,06-May-16,"6,061.59",SUSSEX AUTISTIC COMMUNITY TRUST(CARE SER,SP0000652
WANDSWORTH COUNCIL,ASC,SOCIAL SERVICES,PRIVATE,Revenue,EXTERNAL RESIDENTIAL CARE,954851,130245330,23-May-16,"2,395.60",LIVABILITY,SP0000669
WANDSWORTH COUNCIL,ASC,SOCIAL SERVICES,PRIVATE,Revenue,EXTERNAL RESIDENTIAL CARE,951702,130245330,19-May-16,"11,475.88",LOVING CARE LTD,SP0000670
WANDSWORTH COUNCIL,ASC,SOCIAL SERVICES,PRIVATE,Revenue,EXTERNAL RESIDENTIAL CARE,951703,130245330,19-May-16,"11,475.88",LOVING CARE LTD,SP0000670
WANDSWORTH COUNCIL,ASC,SOCIAL SERVICES,PRIVATE,Revenue,EXTERNAL RESIDENTIAL CARE,951704,130245330,19-May-16,"11,322.96",LOVING CARE LTD,SP0000670
WANDSWORTH COUNCIL,ASC,SOCIAL SERVICES,PRIVATE,Revenue,EXTERNAL RESIDENTIAL CARE,951705,130245330,19-May-16,"11,253.51",LOVING CARE LTD,SP0000670
WANDSWORTH COUNCIL,ASC,SOCIAL SERVICES,PRIVATE,Revenue,EXTERNAL RESIDENTIAL CARE,951706,130245330,19-May-16,"11,282.12",LOVING CARE LTD,SP0000670
WANDSWORTH COUNCIL,ASC,SOCIAL SERVICES,PRIVATE,Revenue,EXTERNAL RESIDENTIAL CARE,951707,130245330,19-May-16,"10,988.62",LOVING CARE LTD,SP0000670
WANDSWORTH COUNCIL,ASC,SOCIAL SERVICES,PRIVATE,Revenue,EXTERNAL RESIDENTIAL CARE,951708,130245330,19-May-16,"11,017.24",LOVING CARE LTD,SP0000670
WANDSWORTH COUNCIL,ASC,SOCIAL SERVICES,PRIVATE,Revenue,EXTERNAL RESIDENTIAL CARE,951709,130245330,19-May-16,"11,475.88",LOVING CARE LTD,SP0000670
WANDSWORTH COUNCIL,ASC,SOCIAL SERVICES,PRIVATE,Revenue,EXTERNAL RESIDENTIAL CARE,951710,130245330,19-May-16,"11,170.12",LOVING CARE LTD,SP0000670
WANDSWORTH COUNCIL,ASC,SOCIAL SERVICES,PRIVATE,Revenue,EXTERNAL RESIDENTIAL CARE,951117,130245330,19-May-16,"3,120.73",THE MANOR HOUSE,SP0000728
WANDSWORTH COUNCIL,ASC,SOCIAL SERVICES,PRIVATE,Revenue,EXTERNAL RESIDENTIAL CARE,938475,130245330,04-May-16,"8,312.63",RALEIGH HOUSE LTD,SP0000760
WANDSWORTH COUNCIL,ASC,SOCIAL SERVICES,PRIVATE,Revenue,EXTERNAL RESIDENTIAL CARE,954100,130245330,23-May-16,"8,596.21",RALEIGH HOUSE LTD,SP0000760
WANDSWORTH COUNCIL,ASC,SOCIAL SERVICES,PRIVATE,Revenue,EXTERNAL RESIDENTIAL CARE,938482,130245330,04-May-16,"4,835.04",WHITE ROSE CARE,SP0000780
WANDSWORTH COUNCIL,ASC,SOCIAL SERVICES,PRIVATE,Revenue,EXTERNAL RESIDENTIAL CARE,938476,130245330,04-May-16,"3,806.64",GLENCARE GROUP,SP0000791
WANDSWORTH COUNCIL,ASC,SOCIAL SERVICES,PRIVATE,Revenue,EXTERNAL RESIDENTIAL CARE,938477,130245330,04-May-16,"3,806.64",GLENCARE GROUP,SP0000791
WANDSWORTH COUNCIL,ASC,SOCIAL SERVICES,PRIVATE,Revenue,EXTERNAL RESIDENTIAL CARE,938478,130245330,04-May-16,"6,103.44",GLENCARE GROUP,SP0000791
WANDSWORTH COUNCIL,ASC,SOCIAL SERVICES,PRIVATE,Revenue,EXTERNAL RESIDENTIAL CARE,943704,130245330,11-May-16,"3,819.78",GLENCARE GROUP,SP0000791
WANDSWORTH COUNCIL,ASC,SOCIAL SERVICES,PRIVATE,Revenue,EXTERNAL RESIDENTIAL CARE,943705,130245330,11-May-16,"6,103.44",GLENCARE GROUP,SP0000791
WANDSWORTH COUNCIL,ASC,SOCIAL SERVICES,PRIVATE,Revenue,EXTERNAL RESIDENTIAL CARE,943706,130245330,11-May-16,"3,819.21",GLENCARE GROUP,SP0000791
WANDSWORTH COUNCIL,ASC,SOCIAL SERVICES,PRIVATE,Revenue,EXTERNAL RESIDENTIAL CARE,947827,130245330,16-May-16,"6,103.44",GLENCARE GROUP,SP0000791
WANDSWORTH COUNCIL,ASC,SOCIAL SERVICES,PRIVATE,Revenue,EXTERNAL RESIDENTIAL CARE,942111,130245330,09-May-16,"3,140.56",UNITED RESPONSE,SP0000797
WANDSWORTH COUNCIL,ASC,SOCIAL SERVICES,PRIVATE,Revenue,EXTERNAL RESIDENTIAL CARE,952446,130245330,20-May-16,"3,166.96",PROSPECTS,SP0000800
WANDSWORTH COUNCIL,ASC,SOCIAL SERVICES,PRIVATE,Revenue,EXTERNAL RESIDENTIAL CARE,956685,130245330,25-May-16,"3,182.72",PROSPECTS,SP0000800
WANDSWORTH COUNCIL,ASC,SOCIAL SERVICES,PRIVATE,Revenue,EXTERNAL RESIDENTIAL CARE,951071,130245330,19-May-16,"6,338.92",WESSEX AUTISTIC SOCIETY,SP0000805
WANDSWORTH COUNCIL,ASC,SOCIAL SERVICES,PRIVATE,Revenue,EXTERNAL RESIDENTIAL CARE,944387,130245330,11-May-16,"9,200.00",CHATSWORTH CARE,SP0000831
WANDSWORTH COUNCIL,ASC,SOCIAL SERVICES,PRIVATE,Revenue,EXTERNAL RESIDENTIAL CARE,951047,130245330,19-May-16,"7,959.12",CHATSWORTH CARE,SP0000831
WANDSWORTH COUNCIL,ASC,SOCIAL SERVICES,PRIVATE,Revenue,EXTERNAL RESIDENTIAL CARE,951043,130245330,19-May-16,"8,051.14",FIRCROFT,SP0000840
WANDSWORTH COUNCIL,ASC,SOCIAL SERVICES,PRIVATE,Revenue,EXTERNAL RESIDENTIAL CARE,950446,130245330,18-May-16,"3,472.09",ROYAL MENCAP SOCIETY,SP0000842
WANDSWORTH COUNCIL,ASC,SOCIAL SERVICES,PRIVATE,Revenue,EXTERNAL RESIDENTIAL CARE,952436,130245330,20-May-16,"3,354.38",ROYAL MENCAP SOCIETY,SP0000842
WANDSWORTH COUNCIL,ASC,SOCIAL SERVICES,PRIVATE,Revenue,EXTERNAL RESIDENTIAL CARE,952447,130245330,20-May-16,"5,856.68",ROYAL MENCAP SOCIETY,SP0000842
WANDSWORTH COUNCIL,ASC,SOCIAL SERVICES,PRIVATE,Revenue,EXTERNAL RESIDENTIAL CARE,940620,130245330,06-May-16,"11,311.24",ASHCROFT CARE SERVICES,SP0000872
WANDSWORTH COUNCIL,ASC,SOCIAL SERVICES,PRIVATE,Revenue,EXTERNAL RESIDENTIAL CARE,951103,130245330,19-May-16,"4,504.30",229 MITCHAM LANE LTD,SP0000884
WANDSWORTH COUNCIL,ASC,SOCIAL SERVICES,PRIVATE,Revenue,EXTERNAL RESIDENTIAL CARE,951104,130245330,19-May-16,"5,272.92",229 MITCHAM LANE LTD,SP0000884
WANDSWORTH COUNCIL,ASC,SOCIAL SERVICES,PRIVATE,Revenue,EXTERNAL RESIDENTIAL CARE,951106,130245330,19-May-16,"5,597.80",229 MITCHAM LANE LTD,SP0000884
WANDSWORTH COUNCIL,ASC,SOCIAL SERVICES,PRIVATE,Revenue,EXTERNAL RESIDENTIAL CARE,951107,130245330,19-May-16,"5,272.92",229 MITCHAM LANE LTD,SP0000884
WANDSWORTH COUNCIL,ASC,SOCIAL SERVICES,PRIVATE,Revenue,EXTERNAL RESIDENTIAL CARE,940795,130245330,06-May-16,"5,599.36",WINSLOW COURT,SP0000886
WANDSWORTH COUNCIL,ASC,SOCIAL SERVICES,PRIVATE,Revenue,EXTERNAL RESIDENTIAL CARE,940796,130245330,06-May-16,"5,599.36",WINSLOW COURT,SP0000886
WANDSWORTH COUNCIL,ASC,SOCIAL SERVICES,PRIVATE,Revenue,EXTERNAL RESIDENTIAL CARE,940797,130245330,06-May-16,"5,823.32",WINSLOW COURT,SP0000886
WANDSWORTH COUNCIL,ASC,SOCIAL SERVICES,PRIVATE,Revenue,EXTERNAL RESIDENTIAL CARE,940798,130245330,06-May-16,"5,835.32",WINSLOW COURT,SP0000886
WANDSWORTH COUNCIL,ASC,SOCIAL SERVICES,PRIVATE,Revenue,EXTERNAL RESIDENTIAL CARE,951116,130245330,19-May-16,"3,957.32",THE LEO TRUST,SP0000908
WANDSWORTH COUNCIL,ASC,SOCIAL SERVICES,PRIVATE,Revenue,EXTERNAL RESIDENTIAL CARE,951045,130245330,19-May-16,"5,345.51",TRACS,SP0000914
WANDSWORTH COUNCIL,ASC,SOCIAL SERVICES,PRIVATE,Revenue,EXTERNAL RESIDENTIAL CARE,947327,130245330,16-May-16,"7,271.56",CORICH COMMUNITY CARE LTD,SP0000915
WANDSWORTH COUNCIL,ASC,SOCIAL SERVICES,PRIVATE,Revenue,EXTERNAL RESIDENTIAL CARE,947323,130245330,16-May-16,"8,233.08",PROGRESS HOUSING MARLOW,SP0000952
WANDSWORTH COUNCIL,ASC,SOCIAL SERVICES,PRIVATE,Revenue,EXTERNAL RESIDENTIAL CARE,947324,130245330,16-May-16,"8,533.13",PROGRESS HOUSING MARLOW,SP0000952
WANDSWORTH COUNCIL,ASC,SOCIAL SERVICES,PRIVATE,Revenue,EXTERNAL RESIDENTIAL CARE,947835,130245330,16-May-16,"2,930.00",MISSION CARE,SP0000958
WANDSWORTH COUNCIL,ASC,SOCIAL SERVICES,PRIVATE,Revenue,EXTERNAL RESIDENTIAL CARE,947836,130245330,16-May-16,"2,930.00",MISSION CARE,SP0000958
WANDSWORTH COUNCIL,ASC,SOCIAL SERVICES,PRIVATE,Revenue,EXTERNAL RESIDENTIAL CARE,954090,130245330,23-May-16,"2,930.00",MISSION CARE,SP0000958
WANDSWORTH COUNCIL,ASC,SOCIAL SERVICES,PRIVATE,Revenue,EXTERNAL RESIDENTIAL CARE,939143,130245330,04-May-16,"3,899.79",DOWNING (CHERTSEY ROAD) LTD,SP0000959
WANDSWORTH COUNCIL,ASC,SOCIAL SERVICES,PRIVATE,Revenue,EXTERNAL RESIDENTIAL CARE,951062,130245330,19-May-16,"4,029.78",DOWNING (CHERTSEY ROAD) LTD,SP0000959
WANDSWORTH COUNCIL,ASC,SOCIAL SERVICES,PRIVATE,Revenue,EXTERNAL RESIDENTIAL CARE,954844,130245330,23-May-16,"4,230.63",LEONARD CHESHIRE,SP0000976
WANDSWORTH COUNCIL,ASC,SOCIAL SERVICES,PRIVATE,Revenue,EXTERNAL RESIDENTIAL CARE,954845,130245330,23-May-16,"6,402.96",LEONARD CHESHIRE,SP0000976
WANDSWORTH COUNCIL,ASC,SOCIAL SERVICES,PRIVATE,Revenue,EXTERNAL RESIDENTIAL CARE,954846,130245330,23-May-16,"6,196.41",LEONARD CHESHIRE,SP0000976
WANDSWORTH COUNCIL,ASC,SOCIAL SERVICES,PRIVATE,Revenue,EXTERNAL RESIDENTIAL CARE,954852,130245330,23-May-16,"4,550.91",LEONARD CHESHIRE,SP0000976
WANDSWORTH COUNCIL,ASC,SOCIAL SERVICES,PRIVATE,Revenue,EXTERNAL RESIDENTIAL CARE,938479,130245330,04-May-16,"5,544.13",M JINGREE T/A SUNLIGHT HOUSE,SP0001024
WANDSWORTH COUNCIL,ASC,SOCIAL SERVICES,PRIVATE,Revenue,EXTERNAL RESIDENTIAL CARE,940806,130245330,06-May-16,"5,365.29",M JINGREE T/A SUNLIGHT HOUSE,SP0001024
WANDSWORTH COUNCIL,ASC,SOCIAL SERVICES,PRIVATE,Revenue,EXTERNAL RESIDENTIAL CARE,954848,130245330,23-May-16,"5,865.12",LIVING AMBITIONS LIMITED,SP0001039
WANDSWORTH COUNCIL,ASC,SOCIAL SERVICES,PRIVATE,Revenue,EXTERNAL RESIDENTIAL CARE,942132,130245330,09-May-16,749.46,SAXON COURT,SP0001100
WANDSWORTH COUNCIL,ASC,SOCIAL SERVICES,PRIVATE,Revenue,EXTERNAL RESIDENTIAL CARE,942133,130245330,09-May-16,"1,509.40",SAXON COURT,SP0001100
WANDSWORTH COUNCIL,ASC,SOCIAL SERVICES,PRIVATE,Revenue,EXTERNAL RESIDENTIAL CARE,942134,130245330,09-May-16,"2,339.57",SAXON COURT,SP0001100
WANDSWORTH COUNCIL,ASC,SOCIAL SERVICES,PRIVATE,Revenue,EXTERNAL RESIDENTIAL CARE,940605,130245330,06-May-16,"12,093.72",ILG LTD,SP0001103
WANDSWORTH COUNCIL,ASC,SOCIAL SERVICES,PRIVATE,Revenue,EXTERNAL RESIDENTIAL CARE,954875,130245330,23-May-16,"12,485.03",ILG LTD,SP0001103
WANDSWORTH COUNCIL,ASC,SOCIAL SERVICES,PRIVATE,Revenue,EXTERNAL RESIDENTIAL CARE,954876,130245330,23-May-16,"11,679.54",ILG LTD,SP0001103
WANDSWORTH COUNCIL,ASC,SOCIAL SERVICES,PRIVATE,Revenue,EXTERNAL RESIDENTIAL CARE,947318,130245330,16-May-16,"7,395.80",TOTTERDOWN,SP0001113
WANDSWORTH COUNCIL,ASC,SOCIAL SERVICES,PRIVATE,Revenue,EXTERNAL RESIDENTIAL CARE,947319,130245330,16-May-16,"3,653.44",TOTTERDOWN,SP0001113
WANDSWORTH COUNCIL,ASC,SOCIAL SERVICES,PRIVATE,Revenue,EXTERNAL RESIDENTIAL CARE,940610,130245330,06-May-16,"7,405.98",SUSSEX HEALTH CARE,SP0001115
WANDSWORTH COUNCIL,ASC,SOCIAL SERVICES,PRIVATE,Revenue,EXTERNAL RESIDENTIAL CARE,954861,130245330,23-May-16,"6,777.85",LONDON CARE PARTNERSHIP LTD,SP0001138
WANDSWORTH COUNCIL,ASC,SOCIAL SERVICES,PRIVATE,Revenue,EXTERNAL RESIDENTIAL CARE,954862,130245330,23-May-16,"8,951.22",LONDON CARE PARTNERSHIP LTD,SP0001138
WANDSWORTH COUNCIL,ASC,SOCIAL SERVICES,PRIVATE,Revenue,EXTERNAL RESIDENTIAL CARE,954863,130245330,23-May-16,"8,184.25",LONDON CARE PARTNERSHIP LTD,SP0001138
WANDSWORTH COUNCIL,ASC,SOCIAL SERVICES,PRIVATE,Revenue,EXTERNAL RESIDENTIAL CARE,954864,130245330,23-May-16,"8,297.10",LONDON CARE PARTNERSHIP LTD,SP0001138
WANDSWORTH COUNCIL,ASC,SOCIAL SERVICES,PRIVATE,Revenue,EXTERNAL RESIDENTIAL CARE,954865,130245330,23-May-16,"8,297.10",LONDON CARE PARTNERSHIP LTD,SP0001138
WANDSWORTH COUNCIL,ASC,SOCIAL SERVICES,PRIVATE,Revenue,EXTERNAL RESIDENTIAL CARE,954866,130245330,23-May-16,"8,511.38",LONDON CARE PARTNERSHIP LTD,SP0001138
WANDSWORTH COUNCIL,ASC,SOCIAL SERVICES,PRIVATE,Revenue,EXTERNAL RESIDENTIAL CARE,954867,130245330,23-May-16,"9,175.67",LONDON CARE PARTNERSHIP LTD,SP0001138
WANDSWORTH COUNCIL,ASC,SOCIAL SERVICES,PRIVATE,Revenue,EXTERNAL RESIDENTIAL CARE,957810,130245330,26-May-16,"7,186.73",LONDON CARE PARTNERSHIP LTD,SP0001138
WANDSWORTH COUNCIL,ASC,SOCIAL SERVICES,PRIVATE,Revenue,EXTERNAL RESIDENTIAL CARE,957811,130245330,26-May-16,"9,249.60",LONDON CARE PARTNERSHIP LTD,SP0001138
WANDSWORTH COUNCIL,ASC,SOCIAL SERVICES,PRIVATE,Revenue,EXTERNAL RESIDENTIAL CARE,957812,130245330,26-May-16,"8,462.95",LONDON CARE PARTNERSHIP LTD,SP0001138
WANDSWORTH COUNCIL,ASC,SOCIAL SERVICES,PRIVATE,Revenue,EXTERNAL RESIDENTIAL CARE,957813,130245330,26-May-16,"8,573.67",LONDON CARE PARTNERSHIP LTD,SP0001138
WANDSWORTH COUNCIL,ASC,SOCIAL SERVICES,PRIVATE,Revenue,EXTERNAL RESIDENTIAL CARE,957814,130245330,26-May-16,"8,573.67",LONDON CARE PARTNERSHIP LTD,SP0001138
WANDSWORTH COUNCIL,ASC,SOCIAL SERVICES,PRIVATE,Revenue,EXTERNAL RESIDENTIAL CARE,957815,130245330,26-May-16,"8,795.10",LONDON CARE PARTNERSHIP LTD,SP0001138
WANDSWORTH COUNCIL,ASC,SOCIAL SERVICES,PRIVATE,Revenue,EXTERNAL RESIDENTIAL CARE,957816,130245330,26-May-16,"9,481.53",LONDON CARE PARTNERSHIP LTD,SP0001138
WANDSWORTH COUNCIL,ASC,SOCIAL SERVICES,PRIVATE,Revenue,EXTERNAL RESIDENTIAL CARE,958510,130245330,26-May-16,"8,923.35",LONDON CARE PARTNERSHIP LTD,SP0001138
WANDSWORTH COUNCIL,ASC,SOCIAL SERVICES,PRIVATE,Revenue,EXTERNAL RESIDENTIAL CARE,941233,130245330,09-May-16,"7,223.22",CHOICE CARE GROUP,SP0001367
WANDSWORTH COUNCIL,ASC,SOCIAL SERVICES,PRIVATE,Revenue,EXTERNAL RESIDENTIAL CARE,947346,130245330,16-May-16,"5,769.56",LARKFIELD HALL LTD T/A PEPENBURY,SP0001378
WANDSWORTH COUNCIL,ASC,SOCIAL SERVICES,PRIVATE,Revenue,EXTERNAL RESIDENTIAL CARE,947347,130245330,16-May-16,"5,002.24",LARKFIELD HALL LTD T/A PEPENBURY,SP0001378
WANDSWORTH COUNCIL,ASC,SOCIAL SERVICES,PRIVATE,Revenue,EXTERNAL RESIDENTIAL CARE,959458,130245330,27-May-16,"5,002.24",LARKFIELD HALL LTD T/A PEPENBURY,SP0001378
WANDSWORTH COUNCIL,ASC,SOCIAL SERVICES,PRIVATE,Revenue,EXTERNAL RESIDENTIAL CARE,947320,130245330,16-May-16,"7,603.87",MIGHOUSE RESIDENTIAL CARE HOME LTD,SP0001402
WANDSWORTH COUNCIL,ASC,SOCIAL SERVICES,PRIVATE,Revenue,EXTERNAL RESIDENTIAL CARE,947321,130245330,16-May-16,"7,358.58",MIGHOUSE RESIDENTIAL CARE HOME LTD,SP0001402
WANDSWORTH COUNCIL,ASC,SOCIAL SERVICES,PRIVATE,Revenue,EXTERNAL RESIDENTIAL CARE,937616,130245330,04-May-16,"10,177.43",THE WEST OF ENGLAND SCHOOL & COLLEGE,SP0001486
WANDSWORTH COUNCIL,ASC,SOCIAL SERVICES,PRIVATE,Revenue,EXTERNAL RESIDENTIAL CARE,940808,130245330,06-May-16,"8,680.13",THE WEST OF ENGLAND SCHOOL & COLLEGE,SP0001486
WANDSWORTH COUNCIL,ASC,SOCIAL SERVICES,PRIVATE,Revenue,EXTERNAL RESIDENTIAL CARE,940625,130245330,06-May-16,"8,784.65",ROOKERY HOVE PRIORY,SP0001498
WANDSWORTH COUNCIL,ASC,SOCIAL SERVICES,PRIVATE,Revenue,EXTERNAL RESIDENTIAL CARE,954075,130245330,23-May-16,"8,217.90",ROOKERY HOVE PRIORY,SP0001498
WANDSWORTH COUNCIL,ASC,SOCIAL SERVICES,PRIVATE,Revenue,EXTERNAL RESIDENTIAL CARE,954076,130245330,23-May-16,"8,501.27",ROOKERY HOVE PRIORY,SP0001498
WANDSWORTH COUNCIL,ASC,SOCIAL SERVICES,PRIVATE,Revenue,EXTERNAL RESIDENTIAL CARE,959454,130245330,27-May-16,"7,531.88",MCCH SOCIETY LIMITED,SP0001531
WANDSWORTH COUNCIL,ASC,SOCIAL SERVICES,PRIVATE,Revenue,EXTERNAL RESIDENTIAL CARE,959455,130245330,27-May-16,"7,539.88",MCCH SOCIETY LIMITED,SP0001531
WANDSWORTH COUNCIL,ASC,SOCIAL SERVICES,PRIVATE,Revenue,EXTERNAL RESIDENTIAL CARE,945467,130245330,12-May-16,"3,523.28",CRAEGMOOR OLD RECTORY BREDE PRIORY,SP0001621
WANDSWORTH COUNCIL,ASC,SOCIAL SERVICES,PRIVATE,Revenue,EXTERNAL RESIDENTIAL CARE,940619,130245330,06-May-16,"12,833.78",ACH OF LONDON LLP,SP0001688
WANDSWORTH COUNCIL,ASC,SOCIAL SERVICES,PRIVATE,Revenue,EXTERNAL RESIDENTIAL CARE,940810,130245330,06-May-16,"4,931.52",ACH OF LONDON LLP,SP0001688
WANDSWORTH COUNCIL,ASC,SOCIAL SERVICES,PRIVATE,Revenue,EXTERNAL RESIDENTIAL CARE,954087,130245330,23-May-16,"5,095.91",ACH OF LONDON LLP,SP0001688
WANDSWORTH COUNCIL,ASC,SOCIAL SERVICES,PRIVATE,Revenue,EXTERNAL RESIDENTIAL CARE,951067,130245330,19-May-16,"7,184.16",PATHWAY HEALTHCARE,SP0001779
WANDSWORTH COUNCIL,ASC,SOCIAL SERVICES,PRIVATE,Revenue,EXTERNAL RESIDENTIAL CARE,951686,130245330,19-May-16,"6,936.30",PATHWAY HEALTHCARE,SP0001779
WANDSWORTH COUNCIL,ASC,SOCIAL SERVICES,PRIVATE,Revenue,EXTERNAL RESIDENTIAL CARE,960815,130245330,31-May-16,"7,298.77",PATHWAY HEALTHCARE,SP0001779
WANDSWORTH COUNCIL,ASC,SOCIAL SERVICES,PRIVATE,Revenue,EXTERNAL RESIDENTIAL CARE,960816,130245330,31-May-16,"7,706.93",PATHWAY HEALTHCARE,SP0001779
WANDSWORTH COUNCIL,ASC,SOCIAL SERVICES,PRIVATE,Revenue,EXTERNAL RESIDENTIAL CARE,938483,130245330,04-May-16,"11,057.48",KISIMUL GROUP LTD,SP0002487
WANDSWORTH COUNCIL,ASC,SOCIAL SERVICES,PRIVATE,Revenue,EXTERNAL RESIDENTIAL CARE,940626,130245330,06-May-16,"11,057.48",KISIMUL GROUP LTD,SP0002487
WANDSWORTH COUNCIL,ASC,SOCIAL SERVICES,PRIVATE,Revenue,EXTERNAL RESIDENTIAL CARE,951114,130245330,19-May-16,"6,408.96",THE BRANDON TRUST,SP0005337
WANDSWORTH COUNCIL,ASC,SOCIAL SERVICES,PRIVATE,Revenue,EXTERNAL RESIDENTIAL CARE,954868,130245330,23-May-16,"3,631.96",CARE UNLIMITED DOMCARE LIMITED,SP0005359
WANDSWORTH COUNCIL,ASC,SOCIAL SERVICES,PRIVATE,Revenue,EXTERNAL RESIDENTIAL CARE,952434,130245330,20-May-16,"2,774.84",HASTINGS & BEXHILL MENCAP SOCIETY,SP0005380
WANDSWORTH COUNCIL,ASC,SOCIAL SERVICES,PRIVATE,Revenue,EXTERNAL RESIDENTIAL CARE,951120,130245330,19-May-16,"5,980.80",ENHAM,SP0005845
WANDSWORTH COUNCIL,ASC,SOCIAL SERVICES,PRIVATE,Revenue,EXTERNAL RESIDENTIAL CARE,960809,130245330,31-May-16,"7,512.01",NORCREST (2000) HOME LTD,SP0008343
WANDSWORTH COUNCIL,ASC,SOCIAL SERVICES,PRIVATE,Revenue,EXTERNAL RESIDENTIAL CARE,960810,130245330,31-May-16,"7,517.72",NORCREST (2000) HOME LTD,SP0008343
WANDSWORTH COUNCIL,ASC,SOCIAL SERVICES,PRIVATE,Revenue,EXTERNAL RESIDENTIAL CARE,954102,130245330,23-May-16,"10,225.71",SEQUENCE CARE GROUP,SP0009709
WANDSWORTH COUNCIL,ASC,SOCIAL SERVICES,PRIVATE,Revenue,EXTERNAL RESIDENTIAL CARE,954103,130245330,23-May-16,"10,566.57",SEQUENCE CARE GROUP,SP0009709
WANDSWORTH COUNCIL,ASC,SOCIAL SERVICES,PRIVATE,Revenue,EXTERNAL RESIDENTIAL CARE,957829,130245330,26-May-16,"3,137.36",INSPIRE CARE OUTREACH LIMITED,SP0010404
WANDSWORTH COUNCIL,ASC,SOCIAL SERVICES,PRIVATE,Revenue,EXTERNAL RESIDENTIAL CARE,947340,130245330,16-May-16,"7,471.91",C.H.O.I.C.E LIMITED,SP0010438
WANDSWORTH COUNCIL,ASC,SOCIAL SERVICES,PRIVATE,Revenue,EXTERNAL RESIDENTIAL CARE,945466,130245330,12-May-16,"9,861.00","CRAEGMOOR, PARKCARE HOMES (NO2) LTD TA W",SP0010529
WANDSWORTH COUNCIL,ASC,SOCIAL SERVICES,PRIVATE,Revenue,EXTERNAL RESI RESPITE CARE,950448,130245340,18-May-16,(953.02),RUSKIN MILL COLLEGE,SP0000803
WANDSWORTH COUNCIL,ASC,SOCIAL SERVICES,PRIVATE,Revenue,ONE TO ONE CARE,952588,130246220,20-May-16,"2,740.15",RAINBOW MEDICAL SERVICES,SP0000037
WANDSWORTH COUNCIL,ASC,SOCIAL SERVICES,PRIVATE,Revenue,ONE TO ONE CARE,952590,130246220,20-May-16,"1,994.25",RAINBOW MEDICAL SERVICES,SP0000037
WANDSWORTH COUNCIL,ASC,SOCIAL SERVICES,PRIVATE,Revenue,ONE TO ONE CARE,954189,130246220,23-May-16,674.20,ST MARYS RESIDENTIAL HOME,SP0000215
WANDSWORTH COUNCIL,ASC,SOCIAL SERVICES,PRIVATE,Revenue,ONE TO ONE CARE,954190,130246220,23-May-16,630.85,ST MARYS RESIDENTIAL HOME,SP0000215
WANDSWORTH COUNCIL,ASC,SOCIAL SERVICES,PRIVATE,Revenue,ONE TO ONE CARE,959505,130246220,27-May-16,698.12,ST MARYS RESIDENTIAL HOME,SP0000215
WANDSWORTH COUNCIL,ASC,SOCIAL SERVICES,PRIVATE,Revenue,ONE TO ONE CARE,959506,130246220,27-May-16,653.39,ST MARYS RESIDENTIAL HOME,SP0000215
WANDSWORTH COUNCIL,ASC,SOCIAL SERVICES,PRIVATE,Revenue,ONE TO ONE CARE,938790,130246220,04-May-16,547.60,LIFEWAYS COMMUNITY CARE LTD,SP0000364
WANDSWORTH COUNCIL,ASC,SOCIAL SERVICES,PRIVATE,Revenue,ONE TO ONE CARE,940662,130246220,06-May-16,"1,028.57",VOYAGE CARE LTD,SP0000366
WANDSWORTH COUNCIL,ASC,SOCIAL SERVICES,PRIVATE,Revenue,ONE TO ONE CARE,954990,130246220,23-May-16,"1,062.86",VOYAGE CARE LTD,SP0000366
WANDSWORTH COUNCIL,ASC,SOCIAL SERVICES,PRIVATE,Revenue,ONE TO ONE CARE,947480,130246220,16-May-16,"1,172.55",THE COMMUNITY CARE COMPANY UK LTD,SP0000576
WANDSWORTH COUNCIL,ASC,SOCIAL SERVICES,PRIVATE,Revenue,ONE TO ONE CARE,947481,130246220,16-May-16,"1,337.25",THE COMMUNITY CARE COMPANY UK LTD,SP0000576
WANDSWORTH COUNCIL,ASC,SOCIAL SERVICES,PRIVATE,Revenue,ONE TO ONE CARE,950613,130246220,18-May-16,"7,259.56",LAETUS LODGE,SP0000600
WANDSWORTH COUNCIL,ASC,SOCIAL SERVICES,PRIVATE,Revenue,ONE TO ONE CARE,958600,130246220,26-May-16,"2,463.84",METROPOLITAN HOUSING TRUST,SP0000626
WANDSWORTH COUNCIL,ASC,SOCIAL SERVICES,PRIVATE,Revenue,ONE TO ONE CARE,958604,130246220,26-May-16,"1,844.64",METROPOLITAN HOUSING TRUST,SP0000626
WANDSWORTH COUNCIL,ASC,SOCIAL SERVICES,PRIVATE,Revenue,ONE TO ONE CARE,941412,130246220,09-May-16,"2,400.00",STALLCOMBE HOUSE,SP0000843
WANDSWORTH COUNCIL,ASC,SOCIAL SERVICES,PRIVATE,Revenue,ONE TO ONE CARE,947328,130246220,16-May-16,"1,600.44",CORICH COMMUNITY CARE LTD,SP0000915
WANDSWORTH COUNCIL,ASC,SOCIAL SERVICES,PRIVATE,Revenue,ONE TO ONE CARE,939276,130246220,04-May-16,"2,791.71",DOWNING (CHERTSEY ROAD) LTD,SP0000959
WANDSWORTH COUNCIL,ASC,SOCIAL SERVICES,PRIVATE,Revenue,ONE TO ONE CARE,947472,130246220,16-May-16,"2,884.77",DOWNING (CHERTSEY ROAD) LTD,SP0000959
WANDSWORTH COUNCIL,ASC,SOCIAL SERVICES,PRIVATE,Revenue,ONE TO ONE CARE,947422,130246220,16-May-16,"1,597.44",TOTTERDOWN,SP0001113
WANDSWORTH COUNCIL,ASC,SOCIAL SERVICES,PRIVATE,Revenue,ONE TO ONE CARE,954197,130246220,23-May-16,708.24,FRONTIER SUPPORT SERVICES LTD,SP0001132
WANDSWORTH COUNCIL,ASC,SOCIAL SERVICES,PRIVATE,Revenue,ONE TO ONE CARE,954206,130246220,23-May-16,500.14,FRONTIER SUPPORT SERVICES LTD,SP0001132
WANDSWORTH COUNCIL,ASC,SOCIAL SERVICES,PRIVATE,Revenue,ONE TO ONE CARE,958580,130246220,26-May-16,720.88,FRONTIER SUPPORT SERVICES LTD,SP0001132
WANDSWORTH COUNCIL,ASC,SOCIAL SERVICES,PRIVATE,Revenue,ONE TO ONE CARE,958592,130246220,26-May-16,155.16,FRONTIER SUPPORT SERVICES LTD,SP0001132
WANDSWORTH COUNCIL,ASC,SOCIAL SERVICES,PRIVATE,Revenue,ONE TO ONE CARE,958597,130246220,26-May-16,500.14,FRONTIER SUPPORT SERVICES LTD,SP0001132
WANDSWORTH COUNCIL,ASC,SOCIAL SERVICES,PRIVATE,Revenue,ONE TO ONE CARE,951743,130246220,19-May-16,996.06,HARROW MENCAP,SP0001347
WANDSWORTH COUNCIL,ASC,SOCIAL SERVICES,PRIVATE,Revenue,ONE TO ONE CARE,952561,130246220,20-May-16,996.06,HARROW MENCAP,SP0001347
WANDSWORTH COUNCIL,ASC,SOCIAL SERVICES,PRIVATE,Revenue,ONE TO ONE CARE,947470,130246220,16-May-16,802.08,LARKFIELD HALL LTD T/A PEPENBURY,SP0001378
WANDSWORTH COUNCIL,ASC,SOCIAL SERVICES,PRIVATE,Revenue,ONE TO ONE CARE,947471,130246220,16-May-16,807.68,LARKFIELD HALL LTD T/A PEPENBURY,SP0001378
WANDSWORTH COUNCIL,ASC,SOCIAL SERVICES,PRIVATE,Revenue,ONE TO ONE CARE,959492,130246220,27-May-16,807.68,LARKFIELD HALL LTD T/A PEPENBURY,SP0001378
WANDSWORTH COUNCIL,ASC,SOCIAL SERVICES,PRIVATE,Revenue,ONE TO ONE CARE,945469,130246220,12-May-16,"3,000.00",CRAEGMOOR OLD RECTORY BREDE PRIORY,SP0001621
WANDSWORTH COUNCIL,ASC,SOCIAL SERVICES,PRIVATE,Revenue,ONE TO ONE CARE,958605,130246220,26-May-16,"3,000.00",CRAEGMOOR OLD RECTORY BREDE PRIORY,SP0001621
WANDSWORTH COUNCIL,ASC,SOCIAL SERVICES,PRIVATE,Revenue,ONE TO ONE CARE,940657,130246220,06-May-16,"1,953.00",ACH OF LONDON LLP,SP0001688
WANDSWORTH COUNCIL,ASC,SOCIAL SERVICES,PRIVATE,Revenue,ONE TO ONE CARE,954181,130246220,23-May-16,"2,018.10",ACH OF LONDON LLP,SP0001688
WANDSWORTH COUNCIL,ASC,SOCIAL SERVICES,PRIVATE,Revenue,ONE TO ONE CARE,943723,130246220,11-May-16,324.00,THE BRANDON TRUST,SP0005337
WANDSWORTH COUNCIL,ASC,SOCIAL SERVICES,PRIVATE,Revenue,ONE TO ONE CARE,943747,130246220,11-May-16,"1,032.68",THE BRANDON TRUST,SP0005337
WANDSWORTH COUNCIL,ASC,SOCIAL SERVICES,PRIVATE,Revenue,ONE TO ONE CARE,943763,130246220,11-May-16,"1,987.20",THE BRANDON TRUST,SP0005337
WANDSWORTH COUNCIL,ASC,SOCIAL SERVICES,PRIVATE,Revenue,ONE TO ONE CARE,943764,130246220,11-May-16,"1,312.00",THE BRANDON TRUST,SP0005337
WANDSWORTH COUNCIL,ASC,SOCIAL SERVICES,PRIVATE,Revenue,ONE TO ONE CARE,943767,130246220,11-May-16,"2,450.88",THE BRANDON TRUST,SP0005337
WANDSWORTH COUNCIL,ASC,SOCIAL SERVICES,PRIVATE,Revenue,ONE TO ONE CARE,947443,130246220,16-May-16,600.04,THE BRANDON TRUST,SP0005337
WANDSWORTH COUNCIL,ASC,SOCIAL SERVICES,PRIVATE,Revenue,ONE TO ONE CARE,947449,130246220,16-May-16,331.20,THE BRANDON TRUST,SP0005337
WANDSWORTH COUNCIL,ASC,SOCIAL SERVICES,PRIVATE,Revenue,ONE TO ONE CARE,947451,130246220,16-May-16,331.20,THE BRANDON TRUST,SP0005337
WANDSWORTH COUNCIL,ASC,SOCIAL SERVICES,VOL ASS,Revenue,SUPPORTED HOUSING PROGRAMME,937630,130248030,04-May-16,"5,543.72",NORWOOD SCHOOLS LTD,SP0000332
WANDSWORTH COUNCIL,ASC,SOCIAL SERVICES,VOL ASS,Revenue,SUPPORTED HOUSING PROGRAMME,938791,130248030,04-May-16,"3,885.44",LIFEWAYS COMMUNITY CARE LTD,SP0000364
WANDSWORTH COUNCIL,ASC,SOCIAL SERVICES,VOL ASS,Revenue,SUPPORTED HOUSING PROGRAMME,938792,130248030,04-May-16,"2,596.04",LIFEWAYS COMMUNITY CARE LTD,SP0000364
WANDSWORTH COUNCIL,ASC,SOCIAL SERVICES,VOL ASS,Revenue,SUPPORTED HOUSING PROGRAMME,938793,130248030,04-May-16,"2,166.24",LIFEWAYS COMMUNITY CARE LTD,SP0000364
WANDSWORTH COUNCIL,ASC,SOCIAL SERVICES,VOL ASS,Revenue,SUPPORTED HOUSING PROGRAMME,938794,130248030,04-May-16,"2,227.64",LIFEWAYS COMMUNITY CARE LTD,SP0000364
WANDSWORTH COUNCIL,ASC,SOCIAL SERVICES,VOL ASS,Revenue,SUPPORTED HOUSING PROGRAMME,938795,130248030,04-May-16,"1,982.04",LIFEWAYS COMMUNITY CARE LTD,SP0000364
WANDSWORTH COUNCIL,ASC,SOCIAL SERVICES,VOL ASS,Revenue,SUPPORTED HOUSING PROGRAMME,938797,130248030,04-May-16,"2,289.04",LIFEWAYS COMMUNITY CARE LTD,SP0000364
WANDSWORTH COUNCIL,ASC,SOCIAL SERVICES,VOL ASS,Revenue,SUPPORTED HOUSING PROGRAMME,938798,130248030,04-May-16,"1,982.04",LIFEWAYS COMMUNITY CARE LTD,SP0000364
WANDSWORTH COUNCIL,ASC,SOCIAL SERVICES,VOL ASS,Revenue,SUPPORTED HOUSING PROGRAMME,938799,130248030,04-May-16,"2,227.64",LIFEWAYS COMMUNITY CARE LTD,SP0000364
WANDSWORTH COUNCIL,ASC,SOCIAL SERVICES,VOL ASS,Revenue,SUPPORTED HOUSING PROGRAMME,938800,130248030,04-May-16,"2,411.84",LIFEWAYS COMMUNITY CARE LTD,SP0000364
WANDSWORTH COUNCIL,ASC,SOCIAL SERVICES,VOL ASS,Revenue,SUPPORTED HOUSING PROGRAMME,938801,130248030,04-May-16,"1,736.44",LIFEWAYS COMMUNITY CARE LTD,SP0000364
WANDSWORTH COUNCIL,ASC,SOCIAL SERVICES,VOL ASS,Revenue,SUPPORTED HOUSING PROGRAMME,938802,130248030,04-May-16,"1,920.64",LIFEWAYS COMMUNITY CARE LTD,SP0000364
WANDSWORTH COUNCIL,ASC,SOCIAL SERVICES,VOL ASS,Revenue,SUPPORTED HOUSING PROGRAMME,938803,130248030,04-May-16,"3,210.04",LIFEWAYS COMMUNITY CARE LTD,SP0000364
WANDSWORTH COUNCIL,ASC,SOCIAL SERVICES,VOL ASS,Revenue,SUPPORTED HOUSING PROGRAMME,938806,130248030,04-May-16,"2,394.20",LIFEWAYS COMMUNITY CARE LTD,SP0000364
WANDSWORTH COUNCIL,ASC,SOCIAL SERVICES,VOL ASS,Revenue,SUPPORTED HOUSING PROGRAMME,938807,130248030,04-May-16,"2,551.16",LIFEWAYS COMMUNITY CARE LTD,SP0000364
WANDSWORTH COUNCIL,ASC,SOCIAL SERVICES,VOL ASS,Revenue,SUPPORTED HOUSING PROGRAMME,938808,130248030,04-May-16,"3,335.96",LIFEWAYS COMMUNITY CARE LTD,SP0000364
WANDSWORTH COUNCIL,ASC,SOCIAL SERVICES,VOL ASS,Revenue,SUPPORTED HOUSING PROGRAMME,938809,130248030,04-May-16,"2,603.48",LIFEWAYS COMMUNITY CARE LTD,SP0000364
WANDSWORTH COUNCIL,ASC,SOCIAL SERVICES,VOL ASS,Revenue,SUPPORTED HOUSING PROGRAMME,938810,130248030,04-May-16,"2,969.72",LIFEWAYS COMMUNITY CARE LTD,SP0000364
WANDSWORTH COUNCIL,ASC,SOCIAL SERVICES,VOL ASS,Revenue,SUPPORTED HOUSING PROGRAMME,938811,130248030,04-May-16,"2,341.88",LIFEWAYS COMMUNITY CARE LTD,SP0000364
WANDSWORTH COUNCIL,ASC,SOCIAL SERVICES,VOL ASS,Revenue,SUPPORTED HOUSING PROGRAMME,938812,130248030,04-May-16,"2,551.16",LIFEWAYS COMMUNITY CARE LTD,SP0000364
WANDSWORTH COUNCIL,ASC,SOCIAL SERVICES,VOL ASS,Revenue,SUPPORTED HOUSING PROGRAMME,938813,130248030,04-May-16,"1,444.56",LIFEWAYS COMMUNITY CARE LTD,SP0000364
WANDSWORTH COUNCIL,ASC,SOCIAL SERVICES,VOL ASS,Revenue,SUPPORTED HOUSING PROGRAMME,938814,130248030,04-May-16,"2,025.24",LIFEWAYS COMMUNITY CARE LTD,SP0000364
WANDSWORTH COUNCIL,ASC,SOCIAL SERVICES,VOL ASS,Revenue,SUPPORTED HOUSING PROGRAMME,938815,130248030,04-May-16,"2,025.24",LIFEWAYS COMMUNITY CARE LTD,SP0000364
WANDSWORTH COUNCIL,ASC,SOCIAL SERVICES,VOL ASS,Revenue,SUPPORTED HOUSING PROGRAMME,938816,130248030,04-May-16,"2,025.24",LIFEWAYS COMMUNITY CARE LTD,SP0000364
WANDSWORTH COUNCIL,ASC,SOCIAL SERVICES,VOL ASS,Revenue,SUPPORTED HOUSING PROGRAMME,938817,130248030,04-May-16,"2,244.28",LIFEWAYS COMMUNITY CARE LTD,SP0000364
WANDSWORTH COUNCIL,ASC,SOCIAL SERVICES,VOL ASS,Revenue,SUPPORTED HOUSING PROGRAMME,938818,130248030,04-May-16,"2,518.08",LIFEWAYS COMMUNITY CARE LTD,SP0000364
WANDSWORTH COUNCIL,ASC,SOCIAL SERVICES,VOL ASS,Revenue,SUPPORTED HOUSING PROGRAMME,938819,130248030,04-May-16,"2,244.28",LIFEWAYS COMMUNITY CARE LTD,SP0000364
WANDSWORTH COUNCIL,ASC,SOCIAL SERVICES,VOL ASS,Revenue,SUPPORTED HOUSING PROGRAMME,938820,130248030,04-May-16,"1,860.96",LIFEWAYS COMMUNITY CARE LTD,SP0000364
WANDSWORTH COUNCIL,ASC,SOCIAL SERVICES,VOL ASS,Revenue,SUPPORTED HOUSING PROGRAMME,938821,130248030,04-May-16,"2,345.32",LIFEWAYS COMMUNITY CARE LTD,SP0000364
WANDSWORTH COUNCIL,ASC,SOCIAL SERVICES,VOL ASS,Revenue,SUPPORTED HOUSING PROGRAMME,938822,130248030,04-May-16,"2,867.20",LIFEWAYS COMMUNITY CARE LTD,SP0000364
WANDSWORTH COUNCIL,ASC,SOCIAL SERVICES,VOL ASS,Revenue,SUPPORTED HOUSING PROGRAMME,938824,130248030,04-May-16,"2,025.24",LIFEWAYS COMMUNITY CARE LTD,SP0000364
WANDSWORTH COUNCIL,ASC,SOCIAL SERVICES,VOL ASS,Revenue,SUPPORTED HOUSING PROGRAMME,951748,130248030,19-May-16,"2,207.73",LIFEWAYS COMMUNITY CARE LTD,SP0000364
WANDSWORTH COUNCIL,ASC,SOCIAL SERVICES,VOL ASS,Revenue,SUPPORTED HOUSING PROGRAMME,954885,130248030,23-May-16,"7,336.00",LIFEWAYS COMMUNITY CARE LTD,SP0000364
WANDSWORTH COUNCIL,ASC,SOCIAL SERVICES,VOL ASS,Revenue,SUPPORTED HOUSING PROGRAMME,940622,130248030,06-May-16,"7,967.67",CHOICE SUPPORT,SP0000398
WANDSWORTH COUNCIL,ASC,SOCIAL SERVICES,VOL ASS,Revenue,SUPPORTED HOUSING PROGRAMME,940077,130248030,05-May-16,"1,687.76",C M CARE LTD,SP0000455
WANDSWORTH COUNCIL,ASC,SOCIAL SERVICES,VOL ASS,Revenue,SUPPORTED HOUSING PROGRAMME,940937,130248030,06-May-16,"4,226.22",CAREOLINE,SP0000483
WANDSWORTH COUNCIL,ASC,SOCIAL SERVICES,VOL ASS,Revenue,SUPPORTED HOUSING PROGRAMME,940938,130248030,06-May-16,"5,000.00",CAREOLINE,SP0000483
WANDSWORTH COUNCIL,ASC,SOCIAL SERVICES,VOL ASS,Revenue,SUPPORTED HOUSING PROGRAMME,947469,130248030,16-May-16,"2,570.08",ROTHERHAM METROPOLITAN BOROUGH COUNCIL,SP0000720
WANDSWORTH COUNCIL,ASC,SOCIAL SERVICES,VOL ASS,Revenue,SUPPORTED HOUSING PROGRAMME,952569,130248030,20-May-16,"2,441.20",ROYAL MENCAP SOCIETY,SP0000842
WANDSWORTH COUNCIL,ASC,SOCIAL SERVICES,VOL ASS,Revenue,SUPPORTED HOUSING PROGRAMME,952570,130248030,20-May-16,"2,491.28",ROYAL MENCAP SOCIETY,SP0000842
WANDSWORTH COUNCIL,ASC,SOCIAL SERVICES,VOL ASS,Revenue,SUPPORTED HOUSING PROGRAMME,952571,130248030,20-May-16,"5,204.28",ROYAL MENCAP SOCIETY,SP0000842
WANDSWORTH COUNCIL,ASC,SOCIAL SERVICES,VOL ASS,Revenue,SUPPORTED HOUSING PROGRAMME,952572,130248030,20-May-16,"2,251.52",ROYAL MENCAP SOCIETY,SP0000842
WANDSWORTH COUNCIL,ASC,SOCIAL SERVICES,VOL ASS,Revenue,SUPPORTED HOUSING PROGRAMME,952573,130248030,20-May-16,"3,273.32",ROYAL MENCAP SOCIETY,SP0000842
WANDSWORTH COUNCIL,ASC,SOCIAL SERVICES,VOL ASS,Revenue,SUPPORTED HOUSING PROGRAMME,952574,130248030,20-May-16,"7,069.80",ROYAL MENCAP SOCIETY,SP0000842
WANDSWORTH COUNCIL,ASC,SOCIAL SERVICES,VOL ASS,Revenue,SUPPORTED HOUSING PROGRAMME,952575,130248030,20-May-16,"1,748.04",ROYAL MENCAP SOCIETY,SP0000842
WANDSWORTH COUNCIL,ASC,SOCIAL SERVICES,VOL ASS,Revenue,SUPPORTED HOUSING PROGRAMME,952576,130248030,20-May-16,897.32,ROYAL MENCAP SOCIETY,SP0000842
WANDSWORTH COUNCIL,ASC,SOCIAL SERVICES,VOL ASS,Revenue,SUPPORTED HOUSING PROGRAMME,952577,130248030,20-May-16,"3,246.40",ROYAL MENCAP SOCIETY,SP0000842
WANDSWORTH COUNCIL,ASC,SOCIAL SERVICES,VOL ASS,Revenue,SUPPORTED HOUSING PROGRAMME,952567,130248030,20-May-16,"5,274.03",ST ELIZABETHS CENTRE,SP0001019
WANDSWORTH COUNCIL,ASC,SOCIAL SERVICES,VOL ASS,Revenue,SUPPORTED HOUSING PROGRAMME,954191,130248030,23-May-16,"1,363.36",FRONTIER SUPPORT SERVICES LTD,SP0001132
WANDSWORTH COUNCIL,ASC,SOCIAL SERVICES,VOL ASS,Revenue,SUPPORTED HOUSING PROGRAMME,954193,130248030,23-May-16,"1,545.80",FRONTIER SUPPORT SERVICES LTD,SP0001132
WANDSWORTH COUNCIL,ASC,SOCIAL SERVICES,VOL ASS,Revenue,SUPPORTED HOUSING PROGRAMME,954194,130248030,23-May-16,"1,105.20",FRONTIER SUPPORT SERVICES LTD,SP0001132
WANDSWORTH COUNCIL,ASC,SOCIAL SERVICES,VOL ASS,Revenue,SUPPORTED HOUSING PROGRAMME,954195,130248030,23-May-16,"15,981.92",FRONTIER SUPPORT SERVICES LTD,SP0001132
WANDSWORTH COUNCIL,ASC,SOCIAL SERVICES,VOL ASS,Revenue,SUPPORTED HOUSING PROGRAMME,954196,130248030,23-May-16,"1,543.72",FRONTIER SUPPORT SERVICES LTD,SP0001132
WANDSWORTH COUNCIL,ASC,SOCIAL SERVICES,VOL ASS,Revenue,SUPPORTED HOUSING PROGRAMME,954197,130248030,23-May-16,"1,110.24",FRONTIER SUPPORT SERVICES LTD,SP0001132
WANDSWORTH COUNCIL,ASC,SOCIAL SERVICES,VOL ASS,Revenue,SUPPORTED HOUSING PROGRAMME,954199,130248030,23-May-16,662.40,FRONTIER SUPPORT SERVICES LTD,SP0001132
WANDSWORTH COUNCIL,ASC,SOCIAL SERVICES,VOL ASS,Revenue,SUPPORTED HOUSING PROGRAMME,954201,130248030,23-May-16,"1,697.72",FRONTIER SUPPORT SERVICES LTD,SP0001132
WANDSWORTH COUNCIL,ASC,SOCIAL SERVICES,VOL ASS,Revenue,SUPPORTED HOUSING PROGRAMME,954202,130248030,23-May-16,"1,259.88",FRONTIER SUPPORT SERVICES LTD,SP0001132
WANDSWORTH COUNCIL,ASC,SOCIAL SERVICES,VOL ASS,Revenue,SUPPORTED HOUSING PROGRAMME,954205,130248030,23-May-16,"1,557.88",FRONTIER SUPPORT SERVICES LTD,SP0001132
WANDSWORTH COUNCIL,ASC,SOCIAL SERVICES,VOL ASS,Revenue,SUPPORTED HOUSING PROGRAMME,954207,130248030,23-May-16,"1,382.80",FRONTIER SUPPORT SERVICES LTD,SP0001132
WANDSWORTH COUNCIL,ASC,SOCIAL SERVICES,VOL ASS,Revenue,SUPPORTED HOUSING PROGRAMME,954208,130248030,23-May-16,"1,877.92",FRONTIER SUPPORT SERVICES LTD,SP0001132
WANDSWORTH COUNCIL,ASC,SOCIAL SERVICES,VOL ASS,Revenue,SUPPORTED HOUSING PROGRAMME,958580,130248030,26-May-16,"1,097.60",FRONTIER SUPPORT SERVICES LTD,SP0001132
WANDSWORTH COUNCIL,ASC,SOCIAL SERVICES,VOL ASS,Revenue,SUPPORTED HOUSING PROGRAMME,958582,130248030,26-May-16,"1,259.88",FRONTIER SUPPORT SERVICES LTD,SP0001132
WANDSWORTH COUNCIL,ASC,SOCIAL SERVICES,VOL ASS,Revenue,SUPPORTED HOUSING PROGRAMME,958583,130248030,26-May-16,"1,877.92",FRONTIER SUPPORT SERVICES LTD,SP0001132
WANDSWORTH COUNCIL,ASC,SOCIAL SERVICES,VOL ASS,Revenue,SUPPORTED HOUSING PROGRAMME,958586,130248030,26-May-16,"1,362.80",FRONTIER SUPPORT SERVICES LTD,SP0001132
WANDSWORTH COUNCIL,ASC,SOCIAL SERVICES,VOL ASS,Revenue,SUPPORTED HOUSING PROGRAMME,958587,130248030,26-May-16,"1,363.36",FRONTIER SUPPORT SERVICES LTD,SP0001132
WANDSWORTH COUNCIL,ASC,SOCIAL SERVICES,VOL ASS,Revenue,SUPPORTED HOUSING PROGRAMME,958589,130248030,26-May-16,"1,543.72",FRONTIER SUPPORT SERVICES LTD,SP0001132
WANDSWORTH COUNCIL,ASC,SOCIAL SERVICES,VOL ASS,Revenue,SUPPORTED HOUSING PROGRAMME,958591,130248030,26-May-16,"1,105.20",FRONTIER SUPPORT SERVICES LTD,SP0001132
WANDSWORTH COUNCIL,ASC,SOCIAL SERVICES,VOL ASS,Revenue,SUPPORTED HOUSING PROGRAMME,958592,130248030,26-May-16,"1,402.72",FRONTIER SUPPORT SERVICES LTD,SP0001132
WANDSWORTH COUNCIL,ASC,SOCIAL SERVICES,VOL ASS,Revenue,SUPPORTED HOUSING PROGRAMME,958593,130248030,26-May-16,"1,697.72",FRONTIER SUPPORT SERVICES LTD,SP0001132
WANDSWORTH COUNCIL,ASC,SOCIAL SERVICES,VOL ASS,Revenue,SUPPORTED HOUSING PROGRAMME,958594,130248030,26-May-16,"15,981.92",FRONTIER SUPPORT SERVICES LTD,SP0001132
WANDSWORTH COUNCIL,ASC,SOCIAL SERVICES,VOL ASS,Revenue,SUPPORTED HOUSING PROGRAMME,958595,130248030,26-May-16,662.40,FRONTIER SUPPORT SERVICES LTD,SP0001132
WANDSWORTH COUNCIL,ASC,SOCIAL SERVICES,VOL ASS,Revenue,SUPPORTED HOUSING PROGRAMME,958596,130248030,26-May-16,"1,545.80",FRONTIER SUPPORT SERVICES LTD,SP0001132
WANDSWORTH COUNCIL,ASC,SOCIAL SERVICES,VOL ASS,Revenue,SUPPORTED HOUSING PROGRAMME,938837,130248030,04-May-16,"8,744.83",PRECIOUS HOMES LTD,SP0001459
WANDSWORTH COUNCIL,ASC,SOCIAL SERVICES,VOL ASS,Revenue,SUPPORTED HOUSING PROGRAMME,938838,130248030,04-May-16,"2,777.14",PRECIOUS HOMES LTD,SP0001459
WANDSWORTH COUNCIL,ASC,SOCIAL SERVICES,VOL ASS,Revenue,SUPPORTED HOUSING PROGRAMME,959493,130248030,27-May-16,"5,710.84",INDEPENDENCE HOMES LTD,SP0004378
WANDSWORTH COUNCIL,ASC,SOCIAL SERVICES,VOL ASS,Revenue,SUPPORTED HOUSING PROGRAMME,940658,130248030,06-May-16,"5,630.08",THE BRANDON TRUST,SP0005337
WANDSWORTH COUNCIL,ASC,,VOL ASS,Revenue,SUPPORTED HOUSING PROGRAMME,941636,130248030,13-May-16,"10,557.40",THE BRANDON TRUST,SP0005337
WANDSWORTH COUNCIL,ASC,SOCIAL SERVICES,VOL ASS,Revenue,SUPPORTED HOUSING PROGRAMME,943720,130248030,11-May-16,"1,551.32",THE BRANDON TRUST,SP0005337
WANDSWORTH COUNCIL,ASC,SOCIAL SERVICES,VOL ASS,Revenue,SUPPORTED HOUSING PROGRAMME,943721,130248030,11-May-16,"1,936.52",THE BRANDON TRUST,SP0005337
WANDSWORTH COUNCIL,ASC,SOCIAL SERVICES,VOL ASS,Revenue,SUPPORTED HOUSING PROGRAMME,943722,130248030,11-May-16,"7,764.16",THE BRANDON TRUST,SP0005337
WANDSWORTH COUNCIL,ASC,SOCIAL SERVICES,VOL ASS,Revenue,SUPPORTED HOUSING PROGRAMME,943723,130248030,11-May-16,"2,327.04",THE BRANDON TRUST,SP0005337
WANDSWORTH COUNCIL,ASC,SOCIAL SERVICES,VOL ASS,Revenue,SUPPORTED HOUSING PROGRAMME,943724,130248030,11-May-16,"5,629.64",THE BRANDON TRUST,SP0005337
WANDSWORTH COUNCIL,ASC,SOCIAL SERVICES,VOL ASS,Revenue,SUPPORTED HOUSING PROGRAMME,943725,130248030,11-May-16,"2,969.16",THE BRANDON TRUST,SP0005337
WANDSWORTH COUNCIL,ASC,SOCIAL SERVICES,VOL ASS,Revenue,SUPPORTED HOUSING PROGRAMME,943726,130248030,11-May-16,"2,979.92",THE BRANDON TRUST,SP0005337
WANDSWORTH COUNCIL,ASC,SOCIAL SERVICES,VOL ASS,Revenue,SUPPORTED HOUSING PROGRAMME,943727,130248030,11-May-16,"2,140.32",THE BRANDON TRUST,SP0005337
WANDSWORTH COUNCIL,ASC,SOCIAL SERVICES,VOL ASS,Revenue,SUPPORTED HOUSING PROGRAMME,943728,130248030,11-May-16,"2,160.00",THE BRANDON TRUST,SP0005337
WANDSWORTH COUNCIL,ASC,SOCIAL SERVICES,VOL ASS,Revenue,SUPPORTED HOUSING PROGRAMME,943729,130248030,11-May-16,"1,125.08",THE BRANDON TRUST,SP0005337
WANDSWORTH COUNCIL,ASC,SOCIAL SERVICES,VOL ASS,Revenue,SUPPORTED HOUSING PROGRAMME,943730,130248030,11-May-16,"1,155.88",THE BRANDON TRUST,SP0005337
WANDSWORTH COUNCIL,ASC,SOCIAL SERVICES,VOL ASS,Revenue,SUPPORTED HOUSING PROGRAMME,943731,130248030,11-May-16,"1,854.72",THE BRANDON TRUST,SP0005337
WANDSWORTH COUNCIL,ASC,SOCIAL SERVICES,VOL ASS,Revenue,SUPPORTED HOUSING PROGRAMME,943732,130248030,11-May-16,"1,380.64",THE BRANDON TRUST,SP0005337
WANDSWORTH COUNCIL,ASC,SOCIAL SERVICES,VOL ASS,Revenue,SUPPORTED HOUSING PROGRAMME,943733,130248030,11-May-16,"1,466.16",THE BRANDON TRUST,SP0005337
WANDSWORTH COUNCIL,ASC,SOCIAL SERVICES,VOL ASS,Revenue,SUPPORTED HOUSING PROGRAMME,943734,130248030,11-May-16,"1,513.68",THE BRANDON TRUST,SP0005337
WANDSWORTH COUNCIL,ASC,SOCIAL SERVICES,VOL ASS,Revenue,SUPPORTED HOUSING PROGRAMME,943735,130248030,11-May-16,"1,513.68",THE BRANDON TRUST,SP0005337
WANDSWORTH COUNCIL,ASC,SOCIAL SERVICES,VOL ASS,Revenue,SUPPORTED HOUSING PROGRAMME,943736,130248030,11-May-16,"2,856.96",THE BRANDON TRUST,SP0005337
WANDSWORTH COUNCIL,ASC,SOCIAL SERVICES,VOL ASS,Revenue,SUPPORTED HOUSING PROGRAMME,943737,130248030,11-May-16,"2,260.80",THE BRANDON TRUST,SP0005337
WANDSWORTH COUNCIL,ASC,SOCIAL SERVICES,VOL ASS,Revenue,SUPPORTED HOUSING PROGRAMME,943738,130248030,11-May-16,"3,453.12",THE BRANDON TRUST,SP0005337
WANDSWORTH COUNCIL,ASC,SOCIAL SERVICES,VOL ASS,Revenue,SUPPORTED HOUSING PROGRAMME,943739,130248030,11-May-16,"2,804.72",THE BRANDON TRUST,SP0005337
WANDSWORTH COUNCIL,ASC,SOCIAL SERVICES,VOL ASS,Revenue,SUPPORTED HOUSING PROGRAMME,943741,130248030,11-May-16,"1,886.40",THE BRANDON TRUST,SP0005337
WANDSWORTH COUNCIL,ASC,SOCIAL SERVICES,VOL ASS,Revenue,SUPPORTED HOUSING PROGRAMME,943742,130248030,11-May-16,"1,797.12",THE BRANDON TRUST,SP0005337
WANDSWORTH COUNCIL,ASC,SOCIAL SERVICES,VOL ASS,Revenue,SUPPORTED HOUSING PROGRAMME,943743,130248030,11-May-16,"2,062.08",THE BRANDON TRUST,SP0005337
WANDSWORTH COUNCIL,ASC,SOCIAL SERVICES,VOL ASS,Revenue,SUPPORTED HOUSING PROGRAMME,943744,130248030,11-May-16,"3,520.16",THE BRANDON TRUST,SP0005337
WANDSWORTH COUNCIL,ASC,SOCIAL SERVICES,VOL ASS,Revenue,SUPPORTED HOUSING PROGRAMME,943745,130248030,11-May-16,"2,580.17",THE BRANDON TRUST,SP0005337
WANDSWORTH COUNCIL,ASC,SOCIAL SERVICES,VOL ASS,Revenue,SUPPORTED HOUSING PROGRAMME,943746,130248030,11-May-16,"3,453.12",THE BRANDON TRUST,SP0005337
WANDSWORTH COUNCIL,ASC,SOCIAL SERVICES,VOL ASS,Revenue,SUPPORTED HOUSING PROGRAMME,943747,130248030,11-May-16,"3,143.96",THE BRANDON TRUST,SP0005337
WANDSWORTH COUNCIL,ASC,SOCIAL SERVICES,VOL ASS,Revenue,SUPPORTED HOUSING PROGRAMME,943748,130248030,11-May-16,"2,923.88",THE BRANDON TRUST,SP0005337
WANDSWORTH COUNCIL,ASC,SOCIAL SERVICES,VOL ASS,Revenue,SUPPORTED HOUSING PROGRAMME,943749,130248030,11-May-16,"4,688.56",THE BRANDON TRUST,SP0005337
WANDSWORTH COUNCIL,ASC,SOCIAL SERVICES,VOL ASS,Revenue,SUPPORTED HOUSING PROGRAMME,943758,130248030,11-May-16,"3,320.64",THE BRANDON TRUST,SP0005337
WANDSWORTH COUNCIL,ASC,SOCIAL SERVICES,VOL ASS,Revenue,SUPPORTED HOUSING PROGRAMME,943759,130248030,11-May-16,"3,702.20",THE BRANDON TRUST,SP0005337
WANDSWORTH COUNCIL,ASC,SOCIAL SERVICES,VOL ASS,Revenue,SUPPORTED HOUSING PROGRAMME,943760,130248030,11-May-16,"1,465.92",THE BRANDON TRUST,SP0005337
WANDSWORTH COUNCIL,ASC,SOCIAL SERVICES,VOL ASS,Revenue,SUPPORTED HOUSING PROGRAMME,943761,130248030,11-May-16,"3,718.08",THE BRANDON TRUST,SP0005337
WANDSWORTH COUNCIL,ASC,SOCIAL SERVICES,VOL ASS,Revenue,SUPPORTED HOUSING PROGRAMME,943762,130248030,11-May-16,"3,121.92",THE BRANDON TRUST,SP0005337
WANDSWORTH COUNCIL,ASC,SOCIAL SERVICES,VOL ASS,Revenue,SUPPORTED HOUSING PROGRAMME,943763,130248030,11-May-16,"5,688.08",THE BRANDON TRUST,SP0005337
WANDSWORTH COUNCIL,ASC,SOCIAL SERVICES,VOL ASS,Revenue,SUPPORTED HOUSING PROGRAMME,943764,130248030,11-May-16,"5,983.44",THE BRANDON TRUST,SP0005337
WANDSWORTH COUNCIL,ASC,SOCIAL SERVICES,VOL ASS,Revenue,SUPPORTED HOUSING PROGRAMME,943765,130248030,11-May-16,"4,827.60",THE BRANDON TRUST,SP0005337
WANDSWORTH COUNCIL,ASC,SOCIAL SERVICES,VOL ASS,Revenue,SUPPORTED HOUSING PROGRAMME,943766,130248030,11-May-16,"6,344.92",THE BRANDON TRUST,SP0005337
WANDSWORTH COUNCIL,ASC,SOCIAL SERVICES,VOL ASS,Revenue,SUPPORTED HOUSING PROGRAMME,943767,130248030,11-May-16,"3,324.96",THE BRANDON TRUST,SP0005337
WANDSWORTH COUNCIL,ASC,SOCIAL SERVICES,VOL ASS,Revenue,SUPPORTED HOUSING PROGRAMME,943768,130248030,11-May-16,"2,886.04",THE BRANDON TRUST,SP0005337
WANDSWORTH COUNCIL,ASC,SOCIAL SERVICES,VOL ASS,Revenue,SUPPORTED HOUSING PROGRAMME,943769,130248030,11-May-16,"2,856.96",THE BRANDON TRUST,SP0005337
WANDSWORTH COUNCIL,ASC,SOCIAL SERVICES,VOL ASS,Revenue,SUPPORTED HOUSING PROGRAMME,943770,130248030,11-May-16,"2,128.32",THE BRANDON TRUST,SP0005337
WANDSWORTH COUNCIL,ASC,SOCIAL SERVICES,VOL ASS,Revenue,SUPPORTED HOUSING PROGRAMME,943771,130248030,11-May-16,"6,198.76",THE BRANDON TRUST,SP0005337
WANDSWORTH COUNCIL,ASC,SOCIAL SERVICES,VOL ASS,Revenue,SUPPORTED HOUSING PROGRAMME,943772,130248030,11-May-16,"1,465.92",THE BRANDON TRUST,SP0005337
WANDSWORTH COUNCIL,ASC,SOCIAL SERVICES,VOL ASS,Revenue,SUPPORTED HOUSING PROGRAMME,943773,130248030,11-May-16,"1,548.72",THE BRANDON TRUST,SP0005337
WANDSWORTH COUNCIL,ASC,SOCIAL SERVICES,VOL ASS,Revenue,SUPPORTED HOUSING PROGRAMME,943774,130248030,11-May-16,"2,592.60",THE BRANDON TRUST,SP0005337
WANDSWORTH COUNCIL,ASC,SOCIAL SERVICES,VOL ASS,Revenue,SUPPORTED HOUSING PROGRAMME,943775,130248030,11-May-16,"2,724.48",THE BRANDON TRUST,SP0005337
WANDSWORTH COUNCIL,ASC,SOCIAL SERVICES,VOL ASS,Revenue,SUPPORTED HOUSING PROGRAMME,943776,130248030,11-May-16,"3,564.56",THE BRANDON TRUST,SP0005337
WANDSWORTH COUNCIL,ASC,SOCIAL SERVICES,VOL ASS,Revenue,SUPPORTED HOUSING PROGRAMME,943777,130248030,11-May-16,"3,416.80",THE BRANDON TRUST,SP0005337
WANDSWORTH COUNCIL,ASC,SOCIAL SERVICES,VOL ASS,Revenue,SUPPORTED HOUSING PROGRAMME,943778,130248030,11-May-16,"2,848.72",THE BRANDON TRUST,SP0005337
WANDSWORTH COUNCIL,ASC,SOCIAL SERVICES,VOL ASS,Revenue,SUPPORTED HOUSING PROGRAMME,943779,130248030,11-May-16,"2,327.24",THE BRANDON TRUST,SP0005337
WANDSWORTH COUNCIL,ASC,SOCIAL SERVICES,VOL ASS,Revenue,SUPPORTED HOUSING PROGRAMME,943780,130248030,11-May-16,"2,327.24",THE BRANDON TRUST,SP0005337
WANDSWORTH COUNCIL,ASC,SOCIAL SERVICES,VOL ASS,Revenue,SUPPORTED HOUSING PROGRAMME,943781,130248030,11-May-16,"2,065.12",THE BRANDON TRUST,SP0005337
WANDSWORTH COUNCIL,ASC,SOCIAL SERVICES,VOL ASS,Revenue,SUPPORTED HOUSING PROGRAMME,944505,130248030,11-May-16,"1,499.04",THE BRANDON TRUST,SP0005337
WANDSWORTH COUNCIL,ASC,SOCIAL SERVICES,VOL ASS,Revenue,SUPPORTED HOUSING PROGRAMME,944509,130248030,11-May-16,591.04,THE BRANDON TRUST,SP0005337
WANDSWORTH COUNCIL,ASC,SOCIAL SERVICES,VOL ASS,Revenue,SUPPORTED HOUSING PROGRAMME,944512,130248030,11-May-16,"1,034.48",THE BRANDON TRUST,SP0005337
WANDSWORTH COUNCIL,ASC,SOCIAL SERVICES,VOL ASS,Revenue,SUPPORTED HOUSING PROGRAMME,947444,130248030,16-May-16,"1,625.36",THE BRANDON TRUST,SP0005337
WANDSWORTH COUNCIL,ASC,SOCIAL SERVICES,VOL ASS,Revenue,SUPPORTED HOUSING PROGRAMME,947445,130248030,16-May-16,"1,674.84",THE BRANDON TRUST,SP0005337
WANDSWORTH COUNCIL,ASC,SOCIAL SERVICES,VOL ASS,Revenue,SUPPORTED HOUSING PROGRAMME,947446,130248030,16-May-16,"5,630.08",THE BRANDON TRUST,SP0005337
WANDSWORTH COUNCIL,ASC,SOCIAL SERVICES,VOL ASS,Revenue,SUPPORTED HOUSING PROGRAMME,947449,130248030,16-May-16,"2,459.52",THE BRANDON TRUST,SP0005337
WANDSWORTH COUNCIL,ASC,SOCIAL SERVICES,VOL ASS,Revenue,SUPPORTED HOUSING PROGRAMME,947450,130248030,16-May-16,"3,883.68",THE BRANDON TRUST,SP0005337
WANDSWORTH COUNCIL,ASC,SOCIAL SERVICES,VOL ASS,Revenue,SUPPORTED HOUSING PROGRAMME,947451,130248030,16-May-16,"2,618.48",THE BRANDON TRUST,SP0005337
WANDSWORTH COUNCIL,ASC,SOCIAL SERVICES,VOL ASS,Revenue,SUPPORTED HOUSING PROGRAMME,947452,130248030,16-May-16,"1,730.88",THE BRANDON TRUST,SP0005337
WANDSWORTH COUNCIL,ASC,SOCIAL SERVICES,VOL ASS,Revenue,SUPPORTED HOUSING PROGRAMME,947459,130248030,16-May-16,"1,465.92",THE BRANDON TRUST,SP0005337
WANDSWORTH COUNCIL,ASC,SOCIAL SERVICES,VOL ASS,Revenue,SUPPORTED HOUSING PROGRAMME,947460,130248030,16-May-16,"2,606.80",THE BRANDON TRUST,SP0005337
WANDSWORTH COUNCIL,ASC,SOCIAL SERVICES,VOL ASS,Revenue,SUPPORTED HOUSING PROGRAMME,947462,130248030,16-May-16,"2,631.48",THE BRANDON TRUST,SP0005337
WANDSWORTH COUNCIL,ASC,SOCIAL SERVICES,VOL ASS,Revenue,SUPPORTED HOUSING PROGRAMME,947464,130248030,16-May-16,"4,177.52",THE BRANDON TRUST,SP0005337
WANDSWORTH COUNCIL,ASC,SOCIAL SERVICES,VOL ASS,Revenue,SUPPORTED HOUSING PROGRAMME,947478,130248030,16-May-16,"2,112.52",THE BRANDON TRUST,SP0005337
WANDSWORTH COUNCIL,ASC,SOCIAL SERVICES,VOL ASS,Revenue,SUPPORTED HOUSING PROGRAMME,947479,130248030,16-May-16,"1,893.16",THE BRANDON TRUST,SP0005337
WANDSWORTH COUNCIL,ASC,SOCIAL SERVICES,VOL ASS,Revenue,SUPPORTED HOUSING PROGRAMME,954986,130248030,23-May-16,"6,120.00",RELIABLE PERSONNEL LTD,SP0005657
WANDSWORTH COUNCIL,ASC,SOCIAL SERVICES,VOL ASS,Revenue,SUPPORTED HOUSING PROGRAMME,943756,130248030,11-May-16,619.44,MCCALLUM CARE LTD CAREMARK (WANDSWORTH),SP0006036
WANDSWORTH COUNCIL,ASC,SOCIAL SERVICES,VOL ASS,Revenue,SUPPORTED HOUSING PROGRAMME,954187,130248030,23-May-16,585.10,MCCALLUM CARE LTD CAREMARK (WANDSWORTH),SP0006036
WANDSWORTH COUNCIL,ASC,SOCIAL SERVICES,VOL ASS,Revenue,SUPPORTED HOUSING PROGRAMME,954188,130248030,23-May-16,589.72,MCCALLUM CARE LTD CAREMARK (WANDSWORTH),SP0006036
WANDSWORTH COUNCIL,ASC,SOCIAL SERVICES,VOL ASS,Revenue,SUPPORTED HOUSING PROGRAMME,951742,130248030,19-May-16,"4,400.00",MORTON GARDENS,SP0008639
WANDSWORTH COUNCIL,ASC,SOCIAL SERVICES,VOL ASS,Revenue,SUPPORTED HOUSING PROGRAMME,958575,130248030,26-May-16,"4,400.00",MORTON GARDENS,SP0008639
WANDSWORTH COUNCIL,ASC,SOCIAL SERVICES,VOL ASS,Revenue,SUPPORTED HOUSING PROGRAMME,937641,130248030,04-May-16,"2,700.00",LIVE TOO LIMITED,SP0010112
WANDSWORTH COUNCIL,ASC,SOCIAL SERVICES,VOL ASS,Revenue,SUPPORTED HOUSING PROGRAMME,937642,130248030,04-May-16,"1,620.00",LIVE TOO LIMITED,SP0010112
WANDSWORTH COUNCIL,ASC,SOCIAL SERVICES,VOL ASS,Revenue,SUPPORTED HOUSING PROGRAMME,937643,130248030,04-May-16,"11,760.00",LIVE TOO LIMITED,SP0010112
WANDSWORTH COUNCIL,ASC,SOCIAL SERVICES,VOL ASS,Revenue,SUPPORTED HOUSING PROGRAMME,937645,130248030,04-May-16,"1,260.00",LIVE TOO LIMITED,SP0010112
WANDSWORTH COUNCIL,ASC,SOCIAL SERVICES,VOL ASS,Revenue,SUPPORTED HOUSING PROGRAMME,937646,130248030,04-May-16,930.00,LIVE TOO LIMITED,SP0010112
WANDSWORTH COUNCIL,ASC,SOCIAL SERVICES,VOL ASS,Revenue,SUPPORTED HOUSING PROGRAMME,937647,130248030,04-May-16,"1,320.00",LIVE TOO LIMITED,SP0010112
WANDSWORTH COUNCIL,ASC,SOCIAL SERVICES,VOL ASS,Revenue,SUPPORTED HOUSING PROGRAMME,937649,130248030,04-May-16,"1,710.00",LIVE TOO LIMITED,SP0010112
WANDSWORTH COUNCIL,ASC,SOCIAL SERVICES,VOL ASS,Revenue,SUPPORTED HOUSING PROGRAMME,937652,130248030,04-May-16,"1,350.00",LIVE TOO LIMITED,SP0010112
WANDSWORTH COUNCIL,ASC,SOCIAL SERVICES,VOL ASS,Revenue,SUPPORTED HOUSING PROGRAMME,937655,130248030,04-May-16,"1,200.00",LIVE TOO LIMITED,SP0010112
WANDSWORTH COUNCIL,ASC,SOCIAL SERVICES,VOL ASS,Revenue,SUPPORTED HOUSING PROGRAMME,937656,130248030,04-May-16,"1,440.00",LIVE TOO LIMITED,SP0010112
WANDSWORTH COUNCIL,ASC,SOCIAL SERVICES,VOL ASS,Revenue,SUPPORTED HOUSING PROGRAMME,937657,130248030,04-May-16,720.00,LIVE TOO LIMITED,SP0010112
WANDSWORTH COUNCIL,ASC,SOCIAL SERVICES,VOL ASS,Revenue,SUPPORTED HOUSING PROGRAMME,937658,130248030,04-May-16,"2,400.00",LIVE TOO LIMITED,SP0010112
WANDSWORTH COUNCIL,ASC,SOCIAL SERVICES,VOL ASS,Revenue,SUPPORTED HOUSING PROGRAMME,937660,130248030,04-May-16,"2,162.64",LIVE TOO LIMITED,SP0010112
WANDSWORTH COUNCIL,ASC,SOCIAL SERVICES,VOL ASS,Revenue,SUPPORTED HOUSING PROGRAMME,937662,130248030,04-May-16,700.00,LIVE TOO LIMITED,SP0010112
WANDSWORTH COUNCIL,ASC,SOCIAL SERVICES,VOL ASS,Revenue,SUPPORTED HOUSING PROGRAMME,937663,130248030,04-May-16,"1,568.00",LIVE TOO LIMITED,SP0010112
WANDSWORTH COUNCIL,ASC,SOCIAL SERVICES,VOL ASS,Revenue,SUPPORTED HOUSING PROGRAMME,937664,130248030,04-May-16,522.64,LIVE TOO LIMITED,SP0010112
WANDSWORTH COUNCIL,ASC,SOCIAL SERVICES,VOL ASS,Revenue,SUPPORTED HOUSING PROGRAMME,937672,130248030,04-May-16,784.00,LIVE TOO LIMITED,SP0010112
WANDSWORTH COUNCIL,ASC,SOCIAL SERVICES,VOL ASS,Revenue,SUPPORTED HOUSING PROGRAMME,940945,130248030,06-May-16,"11,760.00",LIVE TOO LIMITED,SP0010112
WANDSWORTH COUNCIL,ASC,SOCIAL SERVICES,VOL ASS,Revenue,SUPPORTED HOUSING PROGRAMME,940946,130248030,06-May-16,"2,700.00",LIVE TOO LIMITED,SP0010112
WANDSWORTH COUNCIL,ASC,SOCIAL SERVICES,VOL ASS,Revenue,SUPPORTED HOUSING PROGRAMME,940948,130248030,06-May-16,930.00,LIVE TOO LIMITED,SP0010112
WANDSWORTH COUNCIL,ASC,SOCIAL SERVICES,VOL ASS,Revenue,SUPPORTED HOUSING PROGRAMME,940949,130248030,06-May-16,"1,200.00",LIVE TOO LIMITED,SP0010112
WANDSWORTH COUNCIL,ASC,SOCIAL SERVICES,VOL ASS,Revenue,SUPPORTED HOUSING PROGRAMME,940951,130248030,06-May-16,720.00,LIVE TOO LIMITED,SP0010112
WANDSWORTH COUNCIL,ASC,SOCIAL SERVICES,VOL ASS,Revenue,SUPPORTED HOUSING PROGRAMME,940952,130248030,06-May-16,"1,710.00",LIVE TOO LIMITED,SP0010112
WANDSWORTH COUNCIL,ASC,SOCIAL SERVICES,VOL ASS,Revenue,SUPPORTED HOUSING PROGRAMME,940954,130248030,06-May-16,"1,320.00",LIVE TOO LIMITED,SP0010112
WANDSWORTH COUNCIL,ASC,SOCIAL SERVICES,VOL ASS,Revenue,SUPPORTED HOUSING PROGRAMME,940955,130248030,06-May-16,"1,350.00",LIVE TOO LIMITED,SP0010112
WANDSWORTH COUNCIL,ASC,SOCIAL SERVICES,VOL ASS,Revenue,SUPPORTED HOUSING PROGRAMME,940959,130248030,06-May-16,"1,620.00",LIVE TOO LIMITED,SP0010112
WANDSWORTH COUNCIL,ASC,SOCIAL SERVICES,VOL ASS,Revenue,SUPPORTED HOUSING PROGRAMME,940960,130248030,06-May-16,"1,440.00",LIVE TOO LIMITED,SP0010112
WANDSWORTH COUNCIL,ASC,SOCIAL SERVICES,VOL ASS,Revenue,SUPPORTED HOUSING PROGRAMME,940961,130248030,06-May-16,"1,260.00",LIVE TOO LIMITED,SP0010112
WANDSWORTH COUNCIL,ASC,SOCIAL SERVICES,VOL ASS,Revenue,SUPPORTED HOUSING PROGRAMME,940962,130248030,06-May-16,"2,162.64",LIVE TOO LIMITED,SP0010112
WANDSWORTH COUNCIL,ASC,SOCIAL SERVICES,VOL ASS,Revenue,SUPPORTED HOUSING PROGRAMME,940964,130248030,06-May-16,700.00,LIVE TOO LIMITED,SP0010112
WANDSWORTH COUNCIL,ASC,SOCIAL SERVICES,VOL ASS,Revenue,SUPPORTED HOUSING PROGRAMME,940965,130248030,06-May-16,"1,568.00",LIVE TOO LIMITED,SP0010112
WANDSWORTH COUNCIL,ASC,SOCIAL SERVICES,VOL ASS,Revenue,SUPPORTED HOUSING PROGRAMME,940966,130248030,06-May-16,522.64,LIVE TOO LIMITED,SP0010112
WANDSWORTH COUNCIL,ASC,SOCIAL SERVICES,VOL ASS,Revenue,SUPPORTED HOUSING PROGRAMME,940973,130248030,06-May-16,784.00,LIVE TOO LIMITED,SP0010112
WANDSWORTH COUNCIL,ASC,SOCIAL SERVICES,VOL ASS,Revenue,SUPPORTED HOUSING PROGRAMME,940974,130248030,06-May-16,663.80,LIVE TOO LIMITED,SP0010112
WANDSWORTH COUNCIL,ASC,SOCIAL SERVICES,VOL ASS,Revenue,SUPPORTED HOUSING PROGRAMME,940975,130248030,06-May-16,"5,310.40",LIVE TOO LIMITED,SP0010112
WANDSWORTH COUNCIL,ASC,SOCIAL SERVICES,VOL ASS,Revenue,SUPPORTED HOUSING PROGRAMME,958576,130248030,26-May-16,"1,912.50",LIVE TOO LIMITED,SP0010112
WANDSWORTH COUNCIL,ASC,SOCIAL SERVICES,VOL ASS,Revenue,SUPPORTED HOUSING PROGRAMME,958578,130248030,26-May-16,"2,220.00",LIVE TOO LIMITED,SP0010112
WANDSWORTH COUNCIL,ASC,SOCIAL SERVICES,VOL ASS,Revenue,SUPPORTED HOUSING PROGRAMME,947420,130248030,16-May-16,"7,822.08",CURANS CARE LTD,SP0010190
WANDSWORTH COUNCIL,ASC,SOCIAL SERVICES,VOL ASS,Revenue,SUPPORTED HOUSING PROGRAMME,947421,130248030,16-May-16,"3,714.12",CURANS CARE LTD,SP0010190
WANDSWORTH COUNCIL,ASC,SOCIAL SERVICES,VOL ASS,Revenue,SUPPORTED HOUSING PROGRAMME,947483,130248030,16-May-16,"3,940.00",STEP 4 YOU,SP0010196
WANDSWORTH COUNCIL,ASC,SOCIAL SERVICES,VOL ASS,Revenue,SUPPORTED HOUSING PROGRAMME,947492,130248030,16-May-16,"3,940.00",STEP 4 YOU,SP0010196
WANDSWORTH COUNCIL,ASC,SOCIAL SERVICES,VOL ASS,Revenue,SUPPORTED HOUSING PROGRAMME,947493,130248030,16-May-16,800.00,STEP 4 YOU,SP0010196
WANDSWORTH COUNCIL,ASC,SOCIAL SERVICES,VOL ASS,Revenue,SUPPORTED HOUSING PROGRAMME,950611,130248030,18-May-16,"4,000.00",STEP 4 YOU,SP0010196
WANDSWORTH COUNCIL,ASC,SOCIAL SERVICES,VOL ASS,Revenue,SUPPORTED HOUSING PROGRAMME,950612,130248030,18-May-16,"4,000.00",STEP 4 YOU,SP0010196
WANDSWORTH COUNCIL,ASC,SOCIAL SERVICES,VOL ASS,Revenue,SUPPORTED HOUSING PROGRAMME,959488,130248030,27-May-16,"4,085.64",STEP 4 YOU,SP0010196
WANDSWORTH COUNCIL,ASC,SOCIAL SERVICES,VOL ASS,Revenue,SUPPORTED HOUSING PROGRAMME,960865,130248030,31-May-16,"4,400.00",STEP 4 YOU,SP0010196
WANDSWORTH COUNCIL,ASC,SOCIAL SERVICES,DIRECT,Revenue,DIRECT PAYMENTS,949064,130250380,17-May-16,"1,876.72",HESTIA HOUSING & SUPPORT,SP0000258
WANDSWORTH COUNCIL,ASC,SOCIAL SERVICES,DIRECT,Revenue,DIRECT PAYMENTS,949067,130250380,17-May-16,732.84,HESTIA HOUSING & SUPPORT,SP0000258
WANDSWORTH COUNCIL,ASC,SOCIAL SERVICES,DIRECT,Revenue,DIRECT PAYMENTS,949070,130250380,17-May-16,"2,248.36",HESTIA HOUSING & SUPPORT,SP0000258
WANDSWORTH COUNCIL,ASC,SOCIAL SERVICES,DIRECT,Revenue,DIRECT PAYMENTS,949071,130250380,17-May-16,"1,020.80",HESTIA HOUSING & SUPPORT,SP0000258
WANDSWORTH COUNCIL,ASC,SOCIAL SERVICES,DIRECT,Revenue,DIRECT PAYMENTS,937682,130250380,04-May-16,508.41,VIBRANCE,SP0005489
WANDSWORTH COUNCIL,ASC,SOCIAL SERVICES,DIRECT,Revenue,DIRECT PAYMENTS,949341,130250380,17-May-16,838.12,VIBRANCE,SP0005489
WANDSWORTH COUNCIL,ASC,SOCIAL SERVICES,DIRECT,Revenue,DIRECT PAYMENTS,949348,130250380,17-May-16,760.24,VIBRANCE,SP0005489
WANDSWORTH COUNCIL,ASC,SOCIAL SERVICES,DIRECT,Revenue,DIRECT PAYMENTS,949352,130250380,17-May-16,"1,065.52",VIBRANCE,SP0005489
WANDSWORTH COUNCIL,ASC,SOCIAL SERVICES,DIRECT,Revenue,DIRECT PAYMENTS,949361,130250380,17-May-16,"2,703.44",VIBRANCE,SP0005489
WANDSWORTH COUNCIL,ASC,SOCIAL SERVICES,DIRECT,Revenue,DIRECT PAYMENTS,949367,130250380,17-May-16,769.76,VIBRANCE,SP0005489
WANDSWORTH COUNCIL,ASC,SOCIAL SERVICES,DIRECT,Revenue,DIRECT PAYMENTS,949368,130250380,17-May-16,783.68,VIBRANCE,SP0005489
WANDSWORTH COUNCIL,ASC,SOCIAL SERVICES,DIRECT,Revenue,DIRECT PAYMENTS,949369,130250380,17-May-16,644.16,VIBRANCE,SP0005489
WANDSWORTH COUNCIL,ASC,SOCIAL SERVICES,DIRECT,Revenue,DIRECT PAYMENTS,949371,130250380,17-May-16,606.56,VIBRANCE,SP0005489
WANDSWORTH COUNCIL,ASC,SOCIAL SERVICES,DIRECT,Revenue,DIRECT PAYMENTS,949379,130250380,17-May-16,608.72,VIBRANCE,SP0005489
WANDSWORTH COUNCIL,ASC,SOCIAL SERVICES,DIRECT,Revenue,DIRECT PAYMENTS,949383,130250380,17-May-16,"1,003.76",VIBRANCE,SP0005489
WANDSWORTH COUNCIL,ASC,SOCIAL SERVICES,DIRECT,Revenue,DIRECT PAYMENTS,949385,130250380,17-May-16,"3,704.84",VIBRANCE,SP0005489
WANDSWORTH COUNCIL,ASC,SOCIAL SERVICES,DIRECT,Revenue,DIRECT PAYMENTS,949388,130250380,17-May-16,714.00,VIBRANCE,SP0005489
WANDSWORTH COUNCIL,ASC,SOCIAL SERVICES,DIRECT,Revenue,DIRECT PAYMENTS,949391,130250380,17-May-16,719.16,VIBRANCE,SP0005489
WANDSWORTH COUNCIL,ASC,SOCIAL SERVICES,DIRECT,Revenue,DIRECT PAYMENTS,949399,130250380,17-May-16,"1,856.16",VIBRANCE,SP0005489
WANDSWORTH COUNCIL,ASC,SOCIAL SERVICES,DIRECT,Revenue,DIRECT PAYMENTS,949401,130250380,17-May-16,930.56,VIBRANCE,SP0005489
WANDSWORTH COUNCIL,ASC,SOCIAL SERVICES,DIRECT,Revenue,DIRECT PAYMENTS,949410,130250380,17-May-16,720.96,VIBRANCE,SP0005489
WANDSWORTH COUNCIL,ASC,SOCIAL SERVICES,DIRECT,Revenue,DIRECT PAYMENTS,949411,130250380,17-May-16,720.96,VIBRANCE,SP0005489
WANDSWORTH COUNCIL,ASC,SOCIAL SERVICES,DIRECT,Revenue,DIRECT PAYMENTS,950627,130250380,18-May-16,"1,402.20",VIBRANCE,SP0005489
WANDSWORTH COUNCIL,ASC,SOCIAL SERVICES,DIRECT,Revenue,DIRECT PAYMENTS,949527,130250380,17-May-16,"5,009.04",I DECIDE LTD (DIRECT PAYMENT),SP0006159
WANDSWORTH COUNCIL,ASC,SOCIAL SERVICES,DIRECT,Revenue,DIRECT PAYMENTS,949528,130250380,17-May-16,"5,009.04",I DECIDE LTD (DIRECT PAYMENT),SP0006159
WANDSWORTH COUNCIL,ASC,SOCIAL SERVICES,DIRECT,Revenue,DIRECT PAYMENTS,949027,130250380,17-May-16,"2,218.20",EPAYROLLUK LTD,SP0009092
WANDSWORTH COUNCIL,ASC,SOCIAL SERVICES,CUSTOMER & CLIENT RECPTS - EXT,Revenue,CL CONT EXT RESIDEN S28A 100%,947831,130280680,16-May-16,(505.20),ELEANOR NURSING & SOCIAL CARE,SP0000110
WANDSWORTH COUNCIL,ASC,SOCIAL SERVICES,CUSTOMER & CLIENT RECPTS - EXT,Revenue,CL CONT EXT RESIDEN S28A 100%,940603,130280680,06-May-16,(528.43),VOYAGE CARE LTD,SP0000366
WANDSWORTH COUNCIL,ASC,SOCIAL SERVICES,CUSTOMER & CLIENT RECPTS - EXT,Revenue,CL CONT EXT RESIDEN S28A 100%,940609,130280680,06-May-16,(429.21),VOYAGE CARE LTD,SP0000366
WANDSWORTH COUNCIL,ASC,SOCIAL SERVICES,CUSTOMER & CLIENT RECPTS - EXT,Revenue,CL CONT EXT RESIDEN S28A 100%,954872,130280680,23-May-16,(546.04),VOYAGE CARE LTD,SP0000366
WANDSWORTH COUNCIL,ASC,SOCIAL SERVICES,CUSTOMER & CLIENT RECPTS - EXT,Revenue,CL CONT EXT RESIDEN S28A 100%,954879,130280680,23-May-16,(354.63),VOYAGE CARE LTD,SP0000366
WANDSWORTH COUNCIL,ASC,SOCIAL SERVICES,CUSTOMER & CLIENT RECPTS - EXT,Revenue,CL CONT EXTERNAL RESIDENT S28A,954112,130280710,23-May-16,(553.86),ST MARYS RESIDENTIAL HOME,SP0000215
WANDSWORTH COUNCIL,ASC,SOCIAL SERVICES,CUSTOMER & CLIENT RECPTS - EXT,Revenue,CL CONT EXTERNAL RESIDENT S28A,960799,130280710,31-May-16,(578.81),ST MARYS RESIDENTIAL HOME,SP0000215
WANDSWORTH COUNCIL,ASC,SOCIAL SERVICES,CUSTOMER & CLIENT RECPTS - EXT,Revenue,CL CONT EXTERNAL RESIDENT S28A,951108,130280710,19-May-16,(578.81),THE COMMUNITY CARE COMPANY UK LTD,SP0000576
WANDSWORTH COUNCIL,ASC,SOCIAL SERVICES,CUSTOMER & CLIENT RECPTS - EXT,Revenue,CL CONT EXTERNAL RESIDENT S28A,958517,130280710,26-May-16,(510.64),METROPOLITAN HOUSING TRUST,SP0000626
WANDSWORTH COUNCIL,ASC,SOCIAL SERVICES,CUSTOMER & CLIENT RECPTS - EXT,Revenue,CL CONT EXTERNAL RESIDENT S28A,958525,130280710,26-May-16,(321.80),METROPOLITAN HOUSING TRUST,SP0000626
WANDSWORTH COUNCIL,ASC,SOCIAL SERVICES,CUSTOMER & CLIENT RECPTS - EXT,Revenue,CL CONT EXTERNAL RESIDENT S28A,957825,130280710,26-May-16,(522.80),ASHTON CARE,SP0000695
WANDSWORTH COUNCIL,ASC,SOCIAL SERVICES,CUSTOMER & CLIENT RECPTS - EXT,Revenue,CL CONT EXTERNAL RESIDENTIAL,939131,130280720,04-May-16,(400.60),CMG HOMES LTD,SP0000075
WANDSWORTH COUNCIL,ASC,SOCIAL SERVICES,CUSTOMER & CLIENT RECPTS - EXT,Revenue,CL CONT EXTERNAL RESIDENTIAL,939132,130280720,04-May-16,(343.80),CMG HOMES LTD,SP0000075
WANDSWORTH COUNCIL,ASC,SOCIAL SERVICES,CUSTOMER & CLIENT RECPTS - EXT,Revenue,CL CONT EXTERNAL RESIDENTIAL,939134,130280720,04-May-16,(400.60),CMG HOMES LTD,SP0000075
WANDSWORTH COUNCIL,ASC,SOCIAL SERVICES,CUSTOMER & CLIENT RECPTS - EXT,Revenue,CL CONT EXTERNAL RESIDENTIAL,939135,130280720,04-May-16,(132.00),CMG HOMES LTD,SP0000075
WANDSWORTH COUNCIL,ASC,SOCIAL SERVICES,CUSTOMER & CLIENT RECPTS - EXT,Revenue,CL CONT EXTERNAL RESIDENTIAL,939136,130280720,04-May-16,(400.60),CMG HOMES LTD,SP0000075
WANDSWORTH COUNCIL,ASC,SOCIAL SERVICES,CUSTOMER & CLIENT RECPTS - EXT,Revenue,CL CONT EXTERNAL RESIDENTIAL,939137,130280720,04-May-16,(400.60),CMG HOMES LTD,SP0000075
WANDSWORTH COUNCIL,ASC,SOCIAL SERVICES,CUSTOMER & CLIENT RECPTS - EXT,Revenue,CL CONT EXTERNAL RESIDENTIAL,939138,130280720,04-May-16,(323.51),CMG HOMES LTD,SP0000075
WANDSWORTH COUNCIL,ASC,SOCIAL SERVICES,CUSTOMER & CLIENT RECPTS - EXT,Revenue,CL CONT EXTERNAL RESIDENTIAL,939139,130280720,04-May-16,(507.08),CMG HOMES LTD,SP0000075
WANDSWORTH COUNCIL,ASC,SOCIAL SERVICES,CUSTOMER & CLIENT RECPTS - EXT,Revenue,CL CONT EXTERNAL RESIDENTIAL,939140,130280720,04-May-16,(359.80),CMG HOMES LTD,SP0000075
WANDSWORTH COUNCIL,ASC,SOCIAL SERVICES,CUSTOMER & CLIENT RECPTS - EXT,Revenue,CL CONT EXTERNAL RESIDENTIAL,939141,130280720,04-May-16,(323.51),CMG HOMES LTD,SP0000075
WANDSWORTH COUNCIL,ASC,SOCIAL SERVICES,CUSTOMER & CLIENT RECPTS - EXT,Revenue,CL CONT EXTERNAL RESIDENTIAL,959468,130280720,27-May-16,241.35,CMG HOMES LTD,SP0000075
WANDSWORTH COUNCIL,ASC,SOCIAL SERVICES,CUSTOMER & CLIENT RECPTS - EXT,Revenue,CL CONT EXTERNAL RESIDENTIAL,951064,130280720,19-May-16,(385.95),NATIONAL SOCIETY FOR EPILEPSY,SP0000120
WANDSWORTH COUNCIL,ASC,SOCIAL SERVICES,CUSTOMER & CLIENT RECPTS - EXT,Revenue,CL CONT EXTERNAL RESIDENTIAL,954098,130280720,23-May-16,(373.50),NATIONAL SOCIETY FOR EPILEPSY,SP0000120
WANDSWORTH COUNCIL,ASC,SOCIAL SERVICES,CUSTOMER & CLIENT RECPTS - EXT,Revenue,CL CONT EXTERNAL RESIDENTIAL,953050,130280720,20-May-16,(337.80),SANCTUARY CARE LTD,SP0000121
WANDSWORTH COUNCIL,ASC,SOCIAL SERVICES,CUSTOMER & CLIENT RECPTS - EXT,Revenue,CL CONT EXTERNAL RESIDENTIAL,947325,130280720,16-May-16,(368.36),IN CHORUS LTD,SP0000129
WANDSWORTH COUNCIL,ASC,SOCIAL SERVICES,CUSTOMER & CLIENT RECPTS - EXT,Revenue,CL CONT EXTERNAL RESIDENTIAL,947326,130280720,16-May-16,(380.64),IN CHORUS LTD,SP0000129
WANDSWORTH COUNCIL,ASC,SOCIAL SERVICES,CUSTOMER & CLIENT RECPTS - EXT,Revenue,CL CONT EXTERNAL RESIDENTIAL,938484,130280720,04-May-16,(114.93),CENTRUST CARE HOMES LTD,SP0000141
WANDSWORTH COUNCIL,ASC,SOCIAL SERVICES,CUSTOMER & CLIENT RECPTS - EXT,Revenue,CL CONT EXTERNAL RESIDENTIAL,938485,130280720,04-May-16,(241.29),CENTRUST CARE HOMES LTD,SP0000141
WANDSWORTH COUNCIL,ASC,SOCIAL SERVICES,CUSTOMER & CLIENT RECPTS - EXT,Revenue,CL CONT EXTERNAL RESIDENTIAL,959453,130280720,27-May-16,(373.99),CENTRUST CARE HOMES LTD,SP0000141
WANDSWORTH COUNCIL,ASC,SOCIAL SERVICES,CUSTOMER & CLIENT RECPTS - EXT,Revenue,CL CONT EXTERNAL RESIDENTIAL,951679,130280720,19-May-16,(361.71),FRANCES TAYLOR FOUNDATION,SP0000142
WANDSWORTH COUNCIL,ASC,SOCIAL SERVICES,CUSTOMER & CLIENT RECPTS - EXT,Revenue,CL CONT EXTERNAL RESIDENTIAL,951680,130280720,19-May-16,(356.22),FRANCES TAYLOR FOUNDATION,SP0000142
WANDSWORTH COUNCIL,ASC,SOCIAL SERVICES,CUSTOMER & CLIENT RECPTS - EXT,Revenue,CL CONT EXTERNAL RESIDENTIAL,951681,130280720,19-May-16,(429.21),FRANCES TAYLOR FOUNDATION,SP0000142
WANDSWORTH COUNCIL,ASC,SOCIAL SERVICES,CUSTOMER & CLIENT RECPTS - EXT,Revenue,CL CONT EXTERNAL RESIDENTIAL,938488,130280720,04-May-16,(321.80),RESIDENTIAL CARE SERVICES T/A FRANKLYN L,SP0000147
WANDSWORTH COUNCIL,ASC,SOCIAL SERVICES,CUSTOMER & CLIENT RECPTS - EXT,Revenue,CL CONT EXTERNAL RESIDENTIAL,952439,130280720,20-May-16,(332.09),RESIDENTIAL CARE SERVICES T/A FRANKLYN L,SP0000147
WANDSWORTH COUNCIL,ASC,SOCIAL SERVICES,CUSTOMER & CLIENT RECPTS - EXT,Revenue,CL CONT EXTERNAL RESIDENTIAL,956683,130280720,25-May-16,(325.80),ORCHARD VALE TRUST,SP0000214
WANDSWORTH COUNCIL,ASC,SOCIAL SERVICES,CUSTOMER & CLIENT RECPTS - EXT,Revenue,CL CONT EXTERNAL RESIDENTIAL,956684,130280720,25-May-16,(337.80),ORCHARD VALE TRUST,SP0000214
WANDSWORTH COUNCIL,ASC,SOCIAL SERVICES,CUSTOMER & CLIENT RECPTS - EXT,Revenue,CL CONT EXTERNAL RESIDENTIAL,954104,130280720,23-May-16,(261.00),ST MARYS RESIDENTIAL HOME,SP0000215
WANDSWORTH COUNCIL,ASC,SOCIAL SERVICES,CUSTOMER & CLIENT RECPTS - EXT,Revenue,CL CONT EXTERNAL RESIDENTIAL,954105,130280720,23-May-16,(344.79),ST MARYS RESIDENTIAL HOME,SP0000215
WANDSWORTH COUNCIL,ASC,SOCIAL SERVICES,CUSTOMER & CLIENT RECPTS - EXT,Revenue,CL CONT EXTERNAL RESIDENTIAL,954106,130280720,23-May-16,(553.86),ST MARYS RESIDENTIAL HOME,SP0000215
WANDSWORTH COUNCIL,ASC,SOCIAL SERVICES,CUSTOMER & CLIENT RECPTS - EXT,Revenue,CL CONT EXTERNAL RESIDENTIAL,954107,130280720,23-May-16,(361.71),ST MARYS RESIDENTIAL HOME,SP0000215
WANDSWORTH COUNCIL,ASC,SOCIAL SERVICES,CUSTOMER & CLIENT RECPTS - EXT,Revenue,CL CONT EXTERNAL RESIDENTIAL,954108,130280720,23-May-16,(401.07),ST MARYS RESIDENTIAL HOME,SP0000215
WANDSWORTH COUNCIL,ASC,SOCIAL SERVICES,CUSTOMER & CLIENT RECPTS - EXT,Revenue,CL CONT EXTERNAL RESIDENTIAL,954110,130280720,23-May-16,(713.72),ST MARYS RESIDENTIAL HOME,SP0000215
WANDSWORTH COUNCIL,ASC,SOCIAL SERVICES,CUSTOMER & CLIENT RECPTS - EXT,Revenue,CL CONT EXTERNAL RESIDENTIAL,954114,130280720,23-May-16,(562.43),ST MARYS RESIDENTIAL HOME,SP0000215
WANDSWORTH COUNCIL,ASC,SOCIAL SERVICES,CUSTOMER & CLIENT RECPTS - EXT,Revenue,CL CONT EXTERNAL RESIDENTIAL,954115,130280720,23-May-16,"(1,348.68)",ST MARYS RESIDENTIAL HOME,SP0000215
WANDSWORTH COUNCIL,ASC,SOCIAL SERVICES,CUSTOMER & CLIENT RECPTS - EXT,Revenue,CL CONT EXTERNAL RESIDENTIAL,954116,130280720,23-May-16,(333.80),ST MARYS RESIDENTIAL HOME,SP0000215
WANDSWORTH COUNCIL,ASC,SOCIAL SERVICES,CUSTOMER & CLIENT RECPTS - EXT,Revenue,CL CONT EXTERNAL RESIDENTIAL,960790,130280720,31-May-16,(275.32),ST MARYS RESIDENTIAL HOME,SP0000215
WANDSWORTH COUNCIL,ASC,SOCIAL SERVICES,CUSTOMER & CLIENT RECPTS - EXT,Revenue,CL CONT EXTERNAL RESIDENTIAL,960791,130280720,31-May-16,(578.81),ST MARYS RESIDENTIAL HOME,SP0000215
WANDSWORTH COUNCIL,ASC,SOCIAL SERVICES,CUSTOMER & CLIENT RECPTS - EXT,Revenue,CL CONT EXTERNAL RESIDENTIAL,960792,130280720,31-May-16,(373.77),ST MARYS RESIDENTIAL HOME,SP0000215
WANDSWORTH COUNCIL,ASC,SOCIAL SERVICES,CUSTOMER & CLIENT RECPTS - EXT,Revenue,CL CONT EXTERNAL RESIDENTIAL,960793,130280720,31-May-16,(356.28),ST MARYS RESIDENTIAL HOME,SP0000215
WANDSWORTH COUNCIL,ASC,SOCIAL SERVICES,CUSTOMER & CLIENT RECPTS - EXT,Revenue,CL CONT EXTERNAL RESIDENTIAL,960794,130280720,31-May-16,(443.52),ST MARYS RESIDENTIAL HOME,SP0000215
WANDSWORTH COUNCIL,ASC,SOCIAL SERVICES,CUSTOMER & CLIENT RECPTS - EXT,Revenue,CL CONT EXTERNAL RESIDENTIAL,960795,130280720,31-May-16,(578.81),ST MARYS RESIDENTIAL HOME,SP0000215
WANDSWORTH COUNCIL,ASC,SOCIAL SERVICES,CUSTOMER & CLIENT RECPTS - EXT,Revenue,CL CONT EXTERNAL RESIDENTIAL,960797,130280720,31-May-16,(764.70),ST MARYS RESIDENTIAL HOME,SP0000215
WANDSWORTH COUNCIL,ASC,SOCIAL SERVICES,CUSTOMER & CLIENT RECPTS - EXT,Revenue,CL CONT EXTERNAL RESIDENTIAL,960801,130280720,31-May-16,(578.81),ST MARYS RESIDENTIAL HOME,SP0000215
WANDSWORTH COUNCIL,ASC,SOCIAL SERVICES,CUSTOMER & CLIENT RECPTS - EXT,Revenue,CL CONT EXTERNAL RESIDENTIAL,960802,130280720,31-May-16,"(1,348.68)",ST MARYS RESIDENTIAL HOME,SP0000215
WANDSWORTH COUNCIL,ASC,SOCIAL SERVICES,CUSTOMER & CLIENT RECPTS - EXT,Revenue,CL CONT EXTERNAL RESIDENTIAL,960803,130280720,31-May-16,(337.80),ST MARYS RESIDENTIAL HOME,SP0000215
WANDSWORTH COUNCIL,ASC,SOCIAL SERVICES,CUSTOMER & CLIENT RECPTS - EXT,Revenue,CL CONT EXTERNAL RESIDENTIAL,960811,130280720,31-May-16,(321.80),SPRING LAKE,SP0000223
WANDSWORTH COUNCIL,ASC,SOCIAL SERVICES,CUSTOMER & CLIENT RECPTS - EXT,Revenue,CL CONT EXTERNAL RESIDENTIAL,960812,130280720,31-May-16,(366.40),SPRING LAKE,SP0000223
WANDSWORTH COUNCIL,ASC,SOCIAL SERVICES,CUSTOMER & CLIENT RECPTS - EXT,Revenue,CL CONT EXTERNAL RESIDENTIAL,960813,130280720,31-May-16,(321.80),SPRING LAKE,SP0000223
WANDSWORTH COUNCIL,ASC,SOCIAL SERVICES,CUSTOMER & CLIENT RECPTS - EXT,Revenue,CL CONT EXTERNAL RESIDENTIAL,960814,130280720,31-May-16,(366.40),SPRING LAKE,SP0000223
WANDSWORTH COUNCIL,ASC,SOCIAL SERVICES,CUSTOMER & CLIENT RECPTS - EXT,Revenue,CL CONT EXTERNAL RESIDENTIAL,939119,130280720,04-May-16,(638.48),CAMERON LODGE LIMITED,SP0000271
WANDSWORTH COUNCIL,ASC,SOCIAL SERVICES,CUSTOMER & CLIENT RECPTS - EXT,Revenue,CL CONT EXTERNAL RESIDENTIAL,947832,130280720,16-May-16,(321.80),CRAEGMOOR FACILITIES CO LTD,SP0000306
WANDSWORTH COUNCIL,ASC,SOCIAL SERVICES,CUSTOMER & CLIENT RECPTS - EXT,Revenue,CL CONT EXTERNAL RESIDENTIAL,939117,130280720,04-May-16,(321.80),DOLPHIN HOMES LTD,SP0000331
WANDSWORTH COUNCIL,ASC,SOCIAL SERVICES,CUSTOMER & CLIENT RECPTS - EXT,Revenue,CL CONT EXTERNAL RESIDENTIAL,939118,130280720,04-May-16,(321.80),DOLPHIN HOMES LTD,SP0000331
WANDSWORTH COUNCIL,ASC,SOCIAL SERVICES,CUSTOMER & CLIENT RECPTS - EXT,Revenue,CL CONT EXTERNAL RESIDENTIAL,940623,130280720,06-May-16,(321.80),DOLPHIN HOMES LTD,SP0000331
WANDSWORTH COUNCIL,ASC,SOCIAL SERVICES,CUSTOMER & CLIENT RECPTS - EXT,Revenue,CL CONT EXTERNAL RESIDENTIAL,940624,130280720,06-May-16,(321.80),DOLPHIN HOMES LTD,SP0000331
WANDSWORTH COUNCIL,ASC,SOCIAL SERVICES,CUSTOMER & CLIENT RECPTS - EXT,Revenue,CL CONT EXTERNAL RESIDENTIAL,938491,130280720,04-May-16,(321.80),NORWOOD SCHOOLS LTD,SP0000332
WANDSWORTH COUNCIL,ASC,SOCIAL SERVICES,CUSTOMER & CLIENT RECPTS - EXT,Revenue,CL CONT EXTERNAL RESIDENTIAL,938492,130280720,04-May-16,(323.51),NORWOOD SCHOOLS LTD,SP0000332
WANDSWORTH COUNCIL,ASC,SOCIAL SERVICES,CUSTOMER & CLIENT RECPTS - EXT,Revenue,CL CONT EXTERNAL RESIDENTIAL,947338,130280720,16-May-16,(321.80),NORWOOD SCHOOLS LTD,SP0000332
WANDSWORTH COUNCIL,ASC,SOCIAL SERVICES,CUSTOMER & CLIENT RECPTS - EXT,Revenue,CL CONT EXTERNAL RESIDENTIAL,947339,130280720,16-May-16,(321.80),NORWOOD SCHOOLS LTD,SP0000332
WANDSWORTH COUNCIL,ASC,SOCIAL SERVICES,CUSTOMER & CLIENT RECPTS - EXT,Revenue,CL CONT EXTERNAL RESIDENTIAL,947308,130280720,16-May-16,(553.86),HEYWOODS GRANGE LTD,SP0000361
WANDSWORTH COUNCIL,ASC,SOCIAL SERVICES,CUSTOMER & CLIENT RECPTS - EXT,Revenue,CL CONT EXTERNAL RESIDENTIAL,940604,130280720,06-May-16,(552.34),VOYAGE CARE LTD,SP0000366
WANDSWORTH COUNCIL,ASC,SOCIAL SERVICES,CUSTOMER & CLIENT RECPTS - EXT,Revenue,CL CONT EXTERNAL RESIDENTIAL,940607,130280720,06-May-16,(356.22),VOYAGE CARE LTD,SP0000366
WANDSWORTH COUNCIL,ASC,SOCIAL SERVICES,CUSTOMER & CLIENT RECPTS - EXT,Revenue,CL CONT EXTERNAL RESIDENTIAL,954873,130280720,23-May-16,(570.75),VOYAGE CARE LTD,SP0000366
WANDSWORTH COUNCIL,ASC,SOCIAL SERVICES,CUSTOMER & CLIENT RECPTS - EXT,Revenue,CL CONT EXTERNAL RESIDENTIAL,954877,130280720,23-May-16,(356.28),VOYAGE CARE LTD,SP0000366
WANDSWORTH COUNCIL,ASC,SOCIAL SERVICES,CUSTOMER & CLIENT RECPTS - EXT,Revenue,CL CONT EXTERNAL RESIDENTIAL,956693,130280720,25-May-16,(400.60),VOYAGE CARE LTD,SP0000366
WANDSWORTH COUNCIL,ASC,SOCIAL SERVICES,CUSTOMER & CLIENT RECPTS - EXT,Revenue,CL CONT EXTERNAL RESIDENTIAL,956696,130280720,25-May-16,(343.80),VOYAGE CARE LTD,SP0000366
WANDSWORTH COUNCIL,ASC,SOCIAL SERVICES,CUSTOMER & CLIENT RECPTS - EXT,Revenue,CL CONT EXTERNAL RESIDENTIAL,956697,130280720,25-May-16,(348.60),VOYAGE CARE LTD,SP0000366
WANDSWORTH COUNCIL,ASC,SOCIAL SERVICES,CUSTOMER & CLIENT RECPTS - EXT,Revenue,CL CONT EXTERNAL RESIDENTIAL,940611,130280720,06-May-16,(356.22),ST DAVIDS CARE IN THE COMMUNITY,SP0000379
WANDSWORTH COUNCIL,ASC,SOCIAL SERVICES,CUSTOMER & CLIENT RECPTS - EXT,Revenue,CL CONT EXTERNAL RESIDENTIAL,940612,130280720,06-May-16,(356.22),ST DAVIDS CARE IN THE COMMUNITY,SP0000379
WANDSWORTH COUNCIL,ASC,SOCIAL SERVICES,CUSTOMER & CLIENT RECPTS - EXT,Revenue,CL CONT EXTERNAL RESIDENTIAL,940613,130280720,06-May-16,(356.22),ST DAVIDS CARE IN THE COMMUNITY,SP0000379
WANDSWORTH COUNCIL,ASC,SOCIAL SERVICES,CUSTOMER & CLIENT RECPTS - EXT,Revenue,CL CONT EXTERNAL RESIDENTIAL,937617,130280720,04-May-16,(344.79),ESSEX CARE CONSORTIUM,SP0000387
WANDSWORTH COUNCIL,ASC,SOCIAL SERVICES,CUSTOMER & CLIENT RECPTS - EXT,Revenue,CL CONT EXTERNAL RESIDENTIAL,954088,130280720,23-May-16,(356.28),ESSEX CARE CONSORTIUM,SP0000387
WANDSWORTH COUNCIL,ASC,SOCIAL SERVICES,CUSTOMER & CLIENT RECPTS - EXT,Revenue,CL CONT EXTERNAL RESIDENTIAL,947341,130280720,16-May-16,(333.80),POTENSIAL LTD,SP0000395
WANDSWORTH COUNCIL,ASC,SOCIAL SERVICES,CUSTOMER & CLIENT RECPTS - EXT,Revenue,CL CONT EXTERNAL RESIDENTIAL,938486,130280720,04-May-16,(321.80),KENILWORTH RESIDENTIAL HOME,SP0000432
WANDSWORTH COUNCIL,ASC,SOCIAL SERVICES,CUSTOMER & CLIENT RECPTS - EXT,Revenue,CL CONT EXTERNAL RESIDENTIAL,938487,130280720,04-May-16,(505.20),KENILWORTH RESIDENTIAL HOME,SP0000432
WANDSWORTH COUNCIL,ASC,SOCIAL SERVICES,CUSTOMER & CLIENT RECPTS - EXT,Revenue,CL CONT EXTERNAL RESIDENTIAL,944388,130280720,11-May-16,(366.40),THE WELL HOUSE,SP0000448
WANDSWORTH COUNCIL,ASC,SOCIAL SERVICES,CUSTOMER & CLIENT RECPTS - EXT,Revenue,CL CONT EXTERNAL RESIDENTIAL,944389,130280720,11-May-16,(337.80),THE WELL HOUSE,SP0000448
WANDSWORTH COUNCIL,ASC,SOCIAL SERVICES,CUSTOMER & CLIENT RECPTS - EXT,Revenue,CL CONT EXTERNAL RESIDENTIAL,950450,130280720,18-May-16,(321.80),SURREY & BORDERS PARTNERSHIP NHS TRUST,SP0000501
WANDSWORTH COUNCIL,ASC,SOCIAL SERVICES,CUSTOMER & CLIENT RECPTS - EXT,Revenue,CL CONT EXTERNAL RESIDENTIAL,950451,130280720,18-May-16,(505.20),SURREY & BORDERS PARTNERSHIP NHS TRUST,SP0000501
WANDSWORTH COUNCIL,ASC,SOCIAL SERVICES,CUSTOMER & CLIENT RECPTS - EXT,Revenue,CL CONT EXTERNAL RESIDENTIAL,951125,130280720,19-May-16,(321.80),SURREY & BORDERS PARTNERSHIP NHS TRUST,SP0000501
WANDSWORTH COUNCIL,ASC,SOCIAL SERVICES,CUSTOMER & CLIENT RECPTS - EXT,Revenue,CL CONT EXTERNAL RESIDENTIAL,951126,130280720,19-May-16,(505.20),SURREY & BORDERS PARTNERSHIP NHS TRUST,SP0000501
WANDSWORTH COUNCIL,ASC,SOCIAL SERVICES,CUSTOMER & CLIENT RECPTS - EXT,Revenue,CL CONT EXTERNAL RESIDENTIAL,942125,130280720,09-May-16,(373.99),AIMS CARE PARTNERSHIP,SP0000561
WANDSWORTH COUNCIL,ASC,SOCIAL SERVICES,CUSTOMER & CLIENT RECPTS - EXT,Revenue,CL CONT EXTERNAL RESIDENTIAL,954081,130280720,23-May-16,(333.29),AIMS CARE PARTNERSHIP,SP0000561
WANDSWORTH COUNCIL,ASC,SOCIAL SERVICES,CUSTOMER & CLIENT RECPTS - EXT,Revenue,CL CONT EXTERNAL RESIDENTIAL,937619,130280720,04-May-16,(419.57),SEEABILITY,SP0000572
WANDSWORTH COUNCIL,ASC,SOCIAL SERVICES,CUSTOMER & CLIENT RECPTS - EXT,Revenue,CL CONT EXTERNAL RESIDENTIAL,951111,130280720,19-May-16,(578.81),THE COMMUNITY CARE COMPANY UK LTD,SP0000576
WANDSWORTH COUNCIL,ASC,SOCIAL SERVICES,CUSTOMER & CLIENT RECPTS - EXT,Revenue,CL CONT EXTERNAL RESIDENTIAL,951112,130280720,19-May-16,(443.52),THE COMMUNITY CARE COMPANY UK LTD,SP0000576
WANDSWORTH COUNCIL,ASC,SOCIAL SERVICES,CUSTOMER & CLIENT RECPTS - EXT,Revenue,CL CONT EXTERNAL RESIDENTIAL,951113,130280720,19-May-16,(373.99),THE COMMUNITY CARE COMPANY UK LTD,SP0000576
WANDSWORTH COUNCIL,ASC,SOCIAL SERVICES,CUSTOMER & CLIENT RECPTS - EXT,Revenue,CL CONT EXTERNAL RESIDENTIAL,951115,130280720,19-May-16,(373.77),THE COMMUNITY CARE COMPANY UK LTD,SP0000576
WANDSWORTH COUNCIL,ASC,SOCIAL SERVICES,CUSTOMER & CLIENT RECPTS - EXT,Revenue,CL CONT EXTERNAL RESIDENTIAL,951118,130280720,19-May-16,(373.99),THE COMMUNITY CARE COMPANY UK LTD,SP0000576
WANDSWORTH COUNCIL,ASC,SOCIAL SERVICES,CUSTOMER & CLIENT RECPTS - EXT,Revenue,CL CONT EXTERNAL RESIDENTIAL,939128,130280720,04-May-16,(429.21),THE REGARD PARTNERSHIP,SP0000588
WANDSWORTH COUNCIL,ASC,SOCIAL SERVICES,CUSTOMER & CLIENT RECPTS - EXT,Revenue,CL CONT EXTERNAL RESIDENTIAL,939129,130280720,04-May-16,(344.79),THE REGARD PARTNERSHIP,SP0000588
WANDSWORTH COUNCIL,ASC,SOCIAL SERVICES,CUSTOMER & CLIENT RECPTS - EXT,Revenue,CL CONT EXTERNAL RESIDENTIAL,939130,130280720,04-May-16,(553.86),THE REGARD PARTNERSHIP,SP0000588
WANDSWORTH COUNCIL,ASC,SOCIAL SERVICES,CUSTOMER & CLIENT RECPTS - EXT,Revenue,CL CONT EXTERNAL RESIDENTIAL,958531,130280720,26-May-16,286.14,THE REGARD PARTNERSHIP,SP0000588
WANDSWORTH COUNCIL,ASC,SOCIAL SERVICES,CUSTOMER & CLIENT RECPTS - EXT,Revenue,CL CONT EXTERNAL RESIDENTIAL,958532,130280720,26-May-16,(429.21),THE REGARD PARTNERSHIP,SP0000588
WANDSWORTH COUNCIL,ASC,SOCIAL SERVICES,CUSTOMER & CLIENT RECPTS - EXT,Revenue,CL CONT EXTERNAL RESIDENTIAL,958533,130280720,26-May-16,(443.52),THE REGARD PARTNERSHIP,SP0000588
WANDSWORTH COUNCIL,ASC,SOCIAL SERVICES,CUSTOMER & CLIENT RECPTS - EXT,Revenue,CL CONT EXTERNAL RESIDENTIAL,954869,130280720,23-May-16,(337.80),EVERGREEN PARTNERSHIP,SP0000597
WANDSWORTH COUNCIL,ASC,SOCIAL SERVICES,CUSTOMER & CLIENT RECPTS - EXT,Revenue,CL CONT EXTERNAL RESIDENTIAL,947310,130280720,16-May-16,(337.80),LAETUS LODGE,SP0000600
WANDSWORTH COUNCIL,ASC,SOCIAL SERVICES,CUSTOMER & CLIENT RECPTS - EXT,Revenue,CL CONT EXTERNAL RESIDENTIAL,947311,130280720,16-May-16,(321.80),LAETUS LODGE,SP0000600
WANDSWORTH COUNCIL,ASC,SOCIAL SERVICES,CUSTOMER & CLIENT RECPTS - EXT,Revenue,CL CONT EXTERNAL RESIDENTIAL,947313,130280720,16-May-16,(366.40),LAETUS LODGE,SP0000600
WANDSWORTH COUNCIL,ASC,SOCIAL SERVICES,CUSTOMER & CLIENT RECPTS - EXT,Revenue,CL CONT EXTERNAL RESIDENTIAL,947315,130280720,16-May-16,(337.80),LAETUS LODGE,SP0000600
WANDSWORTH COUNCIL,ASC,SOCIAL SERVICES,CUSTOMER & CLIENT RECPTS - EXT,Revenue,CL CONT EXTERNAL RESIDENTIAL,947316,130280720,16-May-16,(337.80),LAETUS LODGE,SP0000600
WANDSWORTH COUNCIL,ASC,SOCIAL SERVICES,CUSTOMER & CLIENT RECPTS - EXT,Revenue,CL CONT EXTERNAL RESIDENTIAL,950445,130280720,18-May-16,(373.99),MENCAP,SP0000604
WANDSWORTH COUNCIL,ASC,SOCIAL SERVICES,CUSTOMER & CLIENT RECPTS - EXT,Revenue,CL CONT EXTERNAL RESIDENTIAL,950447,130280720,18-May-16,(373.99),MENCAP,SP0000604
WANDSWORTH COUNCIL,ASC,SOCIAL SERVICES,CUSTOMER & CLIENT RECPTS - EXT,Revenue,CL CONT EXTERNAL RESIDENTIAL,952435,130280720,20-May-16,(356.22),MENCAP,SP0000604
WANDSWORTH COUNCIL,ASC,SOCIAL SERVICES,CUSTOMER & CLIENT RECPTS - EXT,Revenue,CL CONT EXTERNAL RESIDENTIAL,952437,130280720,20-May-16,(356.22),MENCAP,SP0000604
WANDSWORTH COUNCIL,ASC,SOCIAL SERVICES,CUSTOMER & CLIENT RECPTS - EXT,Revenue,CL CONT EXTERNAL RESIDENTIAL,958513,130280720,26-May-16,(333.80),METROPOLITAN HOUSING TRUST,SP0000626
WANDSWORTH COUNCIL,ASC,SOCIAL SERVICES,CUSTOMER & CLIENT RECPTS - EXT,Revenue,CL CONT EXTERNAL RESIDENTIAL,958514,130280720,26-May-16,(518.40),METROPOLITAN HOUSING TRUST,SP0000626
WANDSWORTH COUNCIL,ASC,SOCIAL SERVICES,CUSTOMER & CLIENT RECPTS - EXT,Revenue,CL CONT EXTERNAL RESIDENTIAL,958515,130280720,26-May-16,(321.80),METROPOLITAN HOUSING TRUST,SP0000626
WANDSWORTH COUNCIL,ASC,SOCIAL SERVICES,CUSTOMER & CLIENT RECPTS - EXT,Revenue,CL CONT EXTERNAL RESIDENTIAL,958516,130280720,26-May-16,(400.60),METROPOLITAN HOUSING TRUST,SP0000626
WANDSWORTH COUNCIL,ASC,SOCIAL SERVICES,CUSTOMER & CLIENT RECPTS - EXT,Revenue,CL CONT EXTERNAL RESIDENTIAL,958518,130280720,26-May-16,(400.60),METROPOLITAN HOUSING TRUST,SP0000626
WANDSWORTH COUNCIL,ASC,SOCIAL SERVICES,CUSTOMER & CLIENT RECPTS - EXT,Revenue,CL CONT EXTERNAL RESIDENTIAL,958521,130280720,26-May-16,(333.80),METROPOLITAN HOUSING TRUST,SP0000626
WANDSWORTH COUNCIL,ASC,SOCIAL SERVICES,CUSTOMER & CLIENT RECPTS - EXT,Revenue,CL CONT EXTERNAL RESIDENTIAL,958522,130280720,26-May-16,(518.40),METROPOLITAN HOUSING TRUST,SP0000626
WANDSWORTH COUNCIL,ASC,SOCIAL SERVICES,CUSTOMER & CLIENT RECPTS - EXT,Revenue,CL CONT EXTERNAL RESIDENTIAL,958523,130280720,26-May-16,(321.80),METROPOLITAN HOUSING TRUST,SP0000626
WANDSWORTH COUNCIL,ASC,SOCIAL SERVICES,CUSTOMER & CLIENT RECPTS - EXT,Revenue,CL CONT EXTERNAL RESIDENTIAL,958524,130280720,26-May-16,(321.80),METROPOLITAN HOUSING TRUST,SP0000626
WANDSWORTH COUNCIL,ASC,SOCIAL SERVICES,CUSTOMER & CLIENT RECPTS - EXT,Revenue,CL CONT EXTERNAL RESIDENTIAL,958526,130280720,26-May-16,(333.80),METROPOLITAN HOUSING TRUST,SP0000626
WANDSWORTH COUNCIL,ASC,SOCIAL SERVICES,CUSTOMER & CLIENT RECPTS - EXT,Revenue,CL CONT EXTERNAL RESIDENTIAL,940800,130280720,06-May-16,(333.29),SUSSEX AUTISTIC COMMUNITY TRUST(CARE SER,SP0000652
WANDSWORTH COUNCIL,ASC,SOCIAL SERVICES,CUSTOMER & CLIENT RECPTS - EXT,Revenue,CL CONT EXTERNAL RESIDENTIAL,940801,130280720,06-May-16,(356.28),SUSSEX AUTISTIC COMMUNITY TRUST(CARE SER,SP0000652
WANDSWORTH COUNCIL,ASC,SOCIAL SERVICES,CUSTOMER & CLIENT RECPTS - EXT,Revenue,CL CONT EXTERNAL RESIDENTIAL,940802,130280720,06-May-16,(344.79),SUSSEX AUTISTIC COMMUNITY TRUST(CARE SER,SP0000652
WANDSWORTH COUNCIL,ASC,SOCIAL SERVICES,CUSTOMER & CLIENT RECPTS - EXT,Revenue,CL CONT EXTERNAL RESIDENTIAL,954851,130280720,23-May-16,(321.80),LIVABILITY,SP0000669
WANDSWORTH COUNCIL,ASC,SOCIAL SERVICES,CUSTOMER & CLIENT RECPTS - EXT,Revenue,CL CONT EXTERNAL RESIDENTIAL,951702,130280720,19-May-16,(321.80),LOVING CARE LTD,SP0000670
WANDSWORTH COUNCIL,ASC,SOCIAL SERVICES,CUSTOMER & CLIENT RECPTS - EXT,Revenue,CL CONT EXTERNAL RESIDENTIAL,951703,130280720,19-May-16,(321.80),LOVING CARE LTD,SP0000670
WANDSWORTH COUNCIL,ASC,SOCIAL SERVICES,CUSTOMER & CLIENT RECPTS - EXT,Revenue,CL CONT EXTERNAL RESIDENTIAL,951704,130280720,19-May-16,(321.80),LOVING CARE LTD,SP0000670
WANDSWORTH COUNCIL,ASC,SOCIAL SERVICES,CUSTOMER & CLIENT RECPTS - EXT,Revenue,CL CONT EXTERNAL RESIDENTIAL,951705,130280720,19-May-16,(371.99),LOVING CARE LTD,SP0000670
WANDSWORTH COUNCIL,ASC,SOCIAL SERVICES,CUSTOMER & CLIENT RECPTS - EXT,Revenue,CL CONT EXTERNAL RESIDENTIAL,951706,130280720,19-May-16,(400.60),LOVING CARE LTD,SP0000670
WANDSWORTH COUNCIL,ASC,SOCIAL SERVICES,CUSTOMER & CLIENT RECPTS - EXT,Revenue,CL CONT EXTERNAL RESIDENTIAL,951707,130280720,19-May-16,(371.98),LOVING CARE LTD,SP0000670
WANDSWORTH COUNCIL,ASC,SOCIAL SERVICES,CUSTOMER & CLIENT RECPTS - EXT,Revenue,CL CONT EXTERNAL RESIDENTIAL,951708,130280720,19-May-16,(400.60),LOVING CARE LTD,SP0000670
WANDSWORTH COUNCIL,ASC,SOCIAL SERVICES,CUSTOMER & CLIENT RECPTS - EXT,Revenue,CL CONT EXTERNAL RESIDENTIAL,951709,130280720,19-May-16,(321.80),LOVING CARE LTD,SP0000670
WANDSWORTH COUNCIL,ASC,SOCIAL SERVICES,CUSTOMER & CLIENT RECPTS - EXT,Revenue,CL CONT EXTERNAL RESIDENTIAL,951710,130280720,19-May-16,(321.80),LOVING CARE LTD,SP0000670
WANDSWORTH COUNCIL,ASC,SOCIAL SERVICES,CUSTOMER & CLIENT RECPTS - EXT,Revenue,CL CONT EXTERNAL RESIDENTIAL,951117,130280720,19-May-16,(373.99),THE MANOR HOUSE,SP0000728
WANDSWORTH COUNCIL,ASC,SOCIAL SERVICES,CUSTOMER & CLIENT RECPTS - EXT,Revenue,CL CONT EXTERNAL RESIDENTIAL,938475,130280720,04-May-16,(553.86),RALEIGH HOUSE LTD,SP0000760
WANDSWORTH COUNCIL,ASC,SOCIAL SERVICES,CUSTOMER & CLIENT RECPTS - EXT,Revenue,CL CONT EXTERNAL RESIDENTIAL,954100,130280720,23-May-16,(578.81),RALEIGH HOUSE LTD,SP0000760
WANDSWORTH COUNCIL,ASC,SOCIAL SERVICES,CUSTOMER & CLIENT RECPTS - EXT,Revenue,CL CONT EXTERNAL RESIDENTIAL,938482,130280720,04-May-16,(348.60),WHITE ROSE CARE,SP0000780
WANDSWORTH COUNCIL,ASC,SOCIAL SERVICES,CUSTOMER & CLIENT RECPTS - EXT,Revenue,CL CONT EXTERNAL RESIDENTIAL,938476,130280720,04-May-16,(321.80),GLENCARE GROUP,SP0000791
WANDSWORTH COUNCIL,ASC,SOCIAL SERVICES,CUSTOMER & CLIENT RECPTS - EXT,Revenue,CL CONT EXTERNAL RESIDENTIAL,938477,130280720,04-May-16,(321.80),GLENCARE GROUP,SP0000791
WANDSWORTH COUNCIL,ASC,SOCIAL SERVICES,CUSTOMER & CLIENT RECPTS - EXT,Revenue,CL CONT EXTERNAL RESIDENTIAL,938478,130280720,04-May-16,(506.88),GLENCARE GROUP,SP0000791
WANDSWORTH COUNCIL,ASC,SOCIAL SERVICES,CUSTOMER & CLIENT RECPTS - EXT,Revenue,CL CONT EXTERNAL RESIDENTIAL,943704,130280720,11-May-16,(334.94),GLENCARE GROUP,SP0000791
WANDSWORTH COUNCIL,ASC,SOCIAL SERVICES,CUSTOMER & CLIENT RECPTS - EXT,Revenue,CL CONT EXTERNAL RESIDENTIAL,943705,130280720,11-May-16,(506.88),GLENCARE GROUP,SP0000791
WANDSWORTH COUNCIL,ASC,SOCIAL SERVICES,CUSTOMER & CLIENT RECPTS - EXT,Revenue,CL CONT EXTERNAL RESIDENTIAL,943706,130280720,11-May-16,(334.37),GLENCARE GROUP,SP0000791
WANDSWORTH COUNCIL,ASC,SOCIAL SERVICES,CUSTOMER & CLIENT RECPTS - EXT,Revenue,CL CONT EXTERNAL RESIDENTIAL,947827,130280720,16-May-16,(506.88),GLENCARE GROUP,SP0000791
WANDSWORTH COUNCIL,ASC,SOCIAL SERVICES,CUSTOMER & CLIENT RECPTS - EXT,Revenue,CL CONT EXTERNAL RESIDENTIAL,942111,130280720,09-May-16,(400.60),UNITED RESPONSE,SP0000797
WANDSWORTH COUNCIL,ASC,SOCIAL SERVICES,CUSTOMER & CLIENT RECPTS - EXT,Revenue,CL CONT EXTERNAL RESIDENTIAL,952446,130280720,20-May-16,(329.80),PROSPECTS,SP0000800
WANDSWORTH COUNCIL,ASC,SOCIAL SERVICES,CUSTOMER & CLIENT RECPTS - EXT,Revenue,CL CONT EXTERNAL RESIDENTIAL,956685,130280720,25-May-16,(337.80),PROSPECTS,SP0000800
WANDSWORTH COUNCIL,ASC,SOCIAL SERVICES,CUSTOMER & CLIENT RECPTS - EXT,Revenue,CL CONT EXTERNAL RESIDENTIAL,951071,130280720,19-May-16,(356.28),WESSEX AUTISTIC SOCIETY,SP0000805
WANDSWORTH COUNCIL,ASC,SOCIAL SERVICES,CUSTOMER & CLIENT RECPTS - EXT,Revenue,CL CONT EXTERNAL RESIDENTIAL,944387,130280720,11-May-16,(400.60),CHATSWORTH CARE,SP0000831
WANDSWORTH COUNCIL,ASC,SOCIAL SERVICES,CUSTOMER & CLIENT RECPTS - EXT,Revenue,CL CONT EXTERNAL RESIDENTIAL,951047,130280720,19-May-16,(405.66),CHATSWORTH CARE,SP0000831
WANDSWORTH COUNCIL,ASC,SOCIAL SERVICES,CUSTOMER & CLIENT RECPTS - EXT,Revenue,CL CONT EXTERNAL RESIDENTIAL,951043,130280720,19-May-16,(368.50),FIRCROFT,SP0000840
WANDSWORTH COUNCIL,ASC,SOCIAL SERVICES,CUSTOMER & CLIENT RECPTS - EXT,Revenue,CL CONT EXTERNAL RESIDENTIAL,950446,130280720,18-May-16,(373.99),ROYAL MENCAP SOCIETY,SP0000842
WANDSWORTH COUNCIL,ASC,SOCIAL SERVICES,CUSTOMER & CLIENT RECPTS - EXT,Revenue,CL CONT EXTERNAL RESIDENTIAL,952436,130280720,20-May-16,(356.22),ROYAL MENCAP SOCIETY,SP0000842
WANDSWORTH COUNCIL,ASC,SOCIAL SERVICES,CUSTOMER & CLIENT RECPTS - EXT,Revenue,CL CONT EXTERNAL RESIDENTIAL,952447,130280720,20-May-16,(337.80),ROYAL MENCAP SOCIETY,SP0000842
WANDSWORTH COUNCIL,ASC,SOCIAL SERVICES,CUSTOMER & CLIENT RECPTS - EXT,Revenue,CL CONT EXTERNAL RESIDENTIAL,940620,130280720,06-May-16,(356.28),ASHCROFT CARE SERVICES,SP0000872
WANDSWORTH COUNCIL,ASC,SOCIAL SERVICES,CUSTOMER & CLIENT RECPTS - EXT,Revenue,CL CONT EXTERNAL RESIDENTIAL,951104,130280720,19-May-16,(373.99),229 MITCHAM LANE LTD,SP0000884
WANDSWORTH COUNCIL,ASC,SOCIAL SERVICES,CUSTOMER & CLIENT RECPTS - EXT,Revenue,CL CONT EXTERNAL RESIDENTIAL,951106,130280720,19-May-16,(373.99),229 MITCHAM LANE LTD,SP0000884
WANDSWORTH COUNCIL,ASC,SOCIAL SERVICES,CUSTOMER & CLIENT RECPTS - EXT,Revenue,CL CONT EXTERNAL RESIDENTIAL,951107,130280720,19-May-16,(373.99),229 MITCHAM LANE LTD,SP0000884
WANDSWORTH COUNCIL,ASC,SOCIAL SERVICES,CUSTOMER & CLIENT RECPTS - EXT,Revenue,CL CONT EXTERNAL RESIDENTIAL,940797,130280720,06-May-16,(325.80),WINSLOW COURT,SP0000886
WANDSWORTH COUNCIL,ASC,SOCIAL SERVICES,CUSTOMER & CLIENT RECPTS - EXT,Revenue,CL CONT EXTERNAL RESIDENTIAL,940798,130280720,06-May-16,(337.80),WINSLOW COURT,SP0000886
WANDSWORTH COUNCIL,ASC,SOCIAL SERVICES,CUSTOMER & CLIENT RECPTS - EXT,Revenue,CL CONT EXTERNAL RESIDENTIAL,951116,130280720,19-May-16,(321.80),THE LEO TRUST,SP0000908
WANDSWORTH COUNCIL,ASC,SOCIAL SERVICES,CUSTOMER & CLIENT RECPTS - EXT,Revenue,CL CONT EXTERNAL RESIDENTIAL,951045,130280720,19-May-16,(405.66),TRACS,SP0000914
WANDSWORTH COUNCIL,ASC,SOCIAL SERVICES,CUSTOMER & CLIENT RECPTS - EXT,Revenue,CL CONT EXTERNAL RESIDENTIAL,947323,130280720,16-May-16,(356.22),PROGRESS HOUSING MARLOW,SP0000952
WANDSWORTH COUNCIL,ASC,SOCIAL SERVICES,CUSTOMER & CLIENT RECPTS - EXT,Revenue,CL CONT EXTERNAL RESIDENTIAL,947324,130280720,16-May-16,(373.99),PROGRESS HOUSING MARLOW,SP0000952
WANDSWORTH COUNCIL,ASC,SOCIAL SERVICES,CUSTOMER & CLIENT RECPTS - EXT,Revenue,CL CONT EXTERNAL RESIDENTIAL,947835,130280720,16-May-16,(321.80),MISSION CARE,SP0000958
WANDSWORTH COUNCIL,ASC,SOCIAL SERVICES,CUSTOMER & CLIENT RECPTS - EXT,Revenue,CL CONT EXTERNAL RESIDENTIAL,947836,130280720,16-May-16,(321.80),MISSION CARE,SP0000958
WANDSWORTH COUNCIL,ASC,SOCIAL SERVICES,CUSTOMER & CLIENT RECPTS - EXT,Revenue,CL CONT EXTERNAL RESIDENTIAL,954090,130280720,23-May-16,(321.80),MISSION CARE,SP0000958
WANDSWORTH COUNCIL,ASC,SOCIAL SERVICES,CUSTOMER & CLIENT RECPTS - EXT,Revenue,CL CONT EXTERNAL RESIDENTIAL,939143,130280720,04-May-16,(344.79),DOWNING (CHERTSEY ROAD) LTD,SP0000959
WANDSWORTH COUNCIL,ASC,SOCIAL SERVICES,CUSTOMER & CLIENT RECPTS - EXT,Revenue,CL CONT EXTERNAL RESIDENTIAL,951062,130280720,19-May-16,(356.28),DOWNING (CHERTSEY ROAD) LTD,SP0000959
WANDSWORTH COUNCIL,ASC,SOCIAL SERVICES,CUSTOMER & CLIENT RECPTS - EXT,Revenue,CL CONT EXTERNAL RESIDENTIAL,954844,130280720,23-May-16,(356.22),LEONARD CHESHIRE,SP0000976
WANDSWORTH COUNCIL,ASC,SOCIAL SERVICES,CUSTOMER & CLIENT RECPTS - EXT,Revenue,CL CONT EXTERNAL RESIDENTIAL,942132,130280720,09-May-16,(114.93),SAXON COURT,SP0001100
WANDSWORTH COUNCIL,ASC,SOCIAL SERVICES,CUSTOMER & CLIENT RECPTS - EXT,Revenue,CL CONT EXTERNAL RESIDENTIAL,942133,130280720,09-May-16,(241.29),SAXON COURT,SP0001100
WANDSWORTH COUNCIL,ASC,SOCIAL SERVICES,CUSTOMER & CLIENT RECPTS - EXT,Revenue,CL CONT EXTERNAL RESIDENTIAL,942134,130280720,09-May-16,(373.99),SAXON COURT,SP0001100
WANDSWORTH COUNCIL,ASC,SOCIAL SERVICES,CUSTOMER & CLIENT RECPTS - EXT,Revenue,CL CONT EXTERNAL RESIDENTIAL,940605,130280720,06-May-16,(356.22),ILG LTD,SP0001103
WANDSWORTH COUNCIL,ASC,SOCIAL SERVICES,CUSTOMER & CLIENT RECPTS - EXT,Revenue,CL CONT EXTERNAL RESIDENTIAL,954875,130280720,23-May-16,(356.28),ILG LTD,SP0001103
WANDSWORTH COUNCIL,ASC,SOCIAL SERVICES,CUSTOMER & CLIENT RECPTS - EXT,Revenue,CL CONT EXTERNAL RESIDENTIAL,954876,130280720,23-May-16,(333.29),ILG LTD,SP0001103
WANDSWORTH COUNCIL,ASC,SOCIAL SERVICES,CUSTOMER & CLIENT RECPTS - EXT,Revenue,CL CONT EXTERNAL RESIDENTIAL,947319,130280720,16-May-16,(348.60),TOTTERDOWN,SP0001113
WANDSWORTH COUNCIL,ASC,SOCIAL SERVICES,CUSTOMER & CLIENT RECPTS - EXT,Revenue,CL CONT EXTERNAL RESIDENTIAL,940610,130280720,06-May-16,(443.52),SUSSEX HEALTH CARE,SP0001115
WANDSWORTH COUNCIL,ASC,SOCIAL SERVICES,CUSTOMER & CLIENT RECPTS - EXT,Revenue,CL CONT EXTERNAL RESIDENTIAL,954861,130280720,23-May-16,(392.57),LONDON CARE PARTNERSHIP LTD,SP0001138
WANDSWORTH COUNCIL,ASC,SOCIAL SERVICES,CUSTOMER & CLIENT RECPTS - EXT,Revenue,CL CONT EXTERNAL RESIDENTIAL,954862,130280720,23-May-16,(429.21),LONDON CARE PARTNERSHIP LTD,SP0001138
WANDSWORTH COUNCIL,ASC,SOCIAL SERVICES,CUSTOMER & CLIENT RECPTS - EXT,Revenue,CL CONT EXTERNAL RESIDENTIAL,954863,130280720,23-May-16,(356.22),LONDON CARE PARTNERSHIP LTD,SP0001138
WANDSWORTH COUNCIL,ASC,SOCIAL SERVICES,CUSTOMER & CLIENT RECPTS - EXT,Revenue,CL CONT EXTERNAL RESIDENTIAL,954864,130280720,23-May-16,(429.21),LONDON CARE PARTNERSHIP LTD,SP0001138
WANDSWORTH COUNCIL,ASC,SOCIAL SERVICES,CUSTOMER & CLIENT RECPTS - EXT,Revenue,CL CONT EXTERNAL RESIDENTIAL,954865,130280720,23-May-16,(206.57),LONDON CARE PARTNERSHIP LTD,SP0001138
WANDSWORTH COUNCIL,ASC,SOCIAL SERVICES,CUSTOMER & CLIENT RECPTS - EXT,Revenue,CL CONT EXTERNAL RESIDENTIAL,954866,130280720,23-May-16,(392.57),LONDON CARE PARTNERSHIP LTD,SP0001138
WANDSWORTH COUNCIL,ASC,SOCIAL SERVICES,CUSTOMER & CLIENT RECPTS - EXT,Revenue,CL CONT EXTERNAL RESIDENTIAL,957810,130280720,26-May-16,(405.66),LONDON CARE PARTNERSHIP LTD,SP0001138
WANDSWORTH COUNCIL,ASC,SOCIAL SERVICES,CUSTOMER & CLIENT RECPTS - EXT,Revenue,CL CONT EXTERNAL RESIDENTIAL,957811,130280720,26-May-16,(443.52),LONDON CARE PARTNERSHIP LTD,SP0001138
WANDSWORTH COUNCIL,ASC,SOCIAL SERVICES,CUSTOMER & CLIENT RECPTS - EXT,Revenue,CL CONT EXTERNAL RESIDENTIAL,957812,130280720,26-May-16,(373.99),LONDON CARE PARTNERSHIP LTD,SP0001138
WANDSWORTH COUNCIL,ASC,SOCIAL SERVICES,CUSTOMER & CLIENT RECPTS - EXT,Revenue,CL CONT EXTERNAL RESIDENTIAL,957813,130280720,26-May-16,(443.52),LONDON CARE PARTNERSHIP LTD,SP0001138
WANDSWORTH COUNCIL,ASC,SOCIAL SERVICES,CUSTOMER & CLIENT RECPTS - EXT,Revenue,CL CONT EXTERNAL RESIDENTIAL,957814,130280720,26-May-16,(213.46),LONDON CARE PARTNERSHIP LTD,SP0001138
WANDSWORTH COUNCIL,ASC,SOCIAL SERVICES,CUSTOMER & CLIENT RECPTS - EXT,Revenue,CL CONT EXTERNAL RESIDENTIAL,957815,130280720,26-May-16,(405.66),LONDON CARE PARTNERSHIP LTD,SP0001138
WANDSWORTH COUNCIL,ASC,SOCIAL SERVICES,CUSTOMER & CLIENT RECPTS - EXT,Revenue,CL CONT EXTERNAL RESIDENTIAL,958510,130280720,26-May-16,(443.52),LONDON CARE PARTNERSHIP LTD,SP0001138
WANDSWORTH COUNCIL,ASC,SOCIAL SERVICES,CUSTOMER & CLIENT RECPTS - EXT,Revenue,CL CONT EXTERNAL RESIDENTIAL,941233,130280720,09-May-16,(577.48),CHOICE CARE GROUP,SP0001367
WANDSWORTH COUNCIL,ASC,SOCIAL SERVICES,CUSTOMER & CLIENT RECPTS - EXT,Revenue,CL CONT EXTERNAL RESIDENTIAL,947343,130280720,16-May-16,(356.22),HOME FROM HOME CARE LIMITED,SP0001373
WANDSWORTH COUNCIL,ASC,SOCIAL SERVICES,CUSTOMER & CLIENT RECPTS - EXT,Revenue,CL CONT EXTERNAL RESIDENTIAL,947344,130280720,16-May-16,(373.99),HOME FROM HOME CARE LIMITED,SP0001373
WANDSWORTH COUNCIL,ASC,SOCIAL SERVICES,CUSTOMER & CLIENT RECPTS - EXT,Revenue,CL CONT EXTERNAL RESIDENTIAL,947346,130280720,16-May-16,"(1,168.48)",LARKFIELD HALL LTD T/A PEPENBURY,SP0001378
WANDSWORTH COUNCIL,ASC,SOCIAL SERVICES,CUSTOMER & CLIENT RECPTS - EXT,Revenue,CL CONT EXTERNAL RESIDENTIAL,947347,130280720,16-May-16,(366.40),LARKFIELD HALL LTD T/A PEPENBURY,SP0001378
WANDSWORTH COUNCIL,ASC,SOCIAL SERVICES,CUSTOMER & CLIENT RECPTS - EXT,Revenue,CL CONT EXTERNAL RESIDENTIAL,959458,130280720,27-May-16,(366.40),LARKFIELD HALL LTD T/A PEPENBURY,SP0001378
WANDSWORTH COUNCIL,ASC,SOCIAL SERVICES,CUSTOMER & CLIENT RECPTS - EXT,Revenue,CL CONT EXTERNAL RESIDENTIAL,947320,130280720,16-May-16,(443.52),MIGHOUSE RESIDENTIAL CARE HOME LTD,SP0001402
WANDSWORTH COUNCIL,ASC,SOCIAL SERVICES,CUSTOMER & CLIENT RECPTS - EXT,Revenue,CL CONT EXTERNAL RESIDENTIAL,947321,130280720,16-May-16,(429.21),MIGHOUSE RESIDENTIAL CARE HOME LTD,SP0001402
WANDSWORTH COUNCIL,ASC,SOCIAL SERVICES,CUSTOMER & CLIENT RECPTS - EXT,Revenue,CL CONT EXTERNAL RESIDENTIAL,937616,130280720,04-May-16,(146.14),THE WEST OF ENGLAND SCHOOL & COLLEGE,SP0001486
WANDSWORTH COUNCIL,ASC,SOCIAL SERVICES,CUSTOMER & CLIENT RECPTS - EXT,Revenue,CL CONT EXTERNAL RESIDENTIAL,940808,130280720,06-May-16,(215.89),THE WEST OF ENGLAND SCHOOL & COLLEGE,SP0001486
WANDSWORTH COUNCIL,ASC,SOCIAL SERVICES,CUSTOMER & CLIENT RECPTS - EXT,Revenue,CL CONT EXTERNAL RESIDENTIAL,940625,130280720,06-May-16,(405.66),ROOKERY HOVE PRIORY,SP0001498
WANDSWORTH COUNCIL,ASC,SOCIAL SERVICES,CUSTOMER & CLIENT RECPTS - EXT,Revenue,CL CONT EXTERNAL RESIDENTIAL,954075,130280720,23-May-16,(379.49),ROOKERY HOVE PRIORY,SP0001498
WANDSWORTH COUNCIL,ASC,SOCIAL SERVICES,CUSTOMER & CLIENT RECPTS - EXT,Revenue,CL CONT EXTERNAL RESIDENTIAL,954076,130280720,23-May-16,(392.57),ROOKERY HOVE PRIORY,SP0001498
WANDSWORTH COUNCIL,ASC,SOCIAL SERVICES,CUSTOMER & CLIENT RECPTS - EXT,Revenue,CL CONT EXTERNAL RESIDENTIAL,959454,130280720,27-May-16,(329.80),MCCH SOCIETY LIMITED,SP0001531
WANDSWORTH COUNCIL,ASC,SOCIAL SERVICES,CUSTOMER & CLIENT RECPTS - EXT,Revenue,CL CONT EXTERNAL RESIDENTIAL,959455,130280720,27-May-16,(337.80),MCCH SOCIETY LIMITED,SP0001531
WANDSWORTH COUNCIL,ASC,SOCIAL SERVICES,CUSTOMER & CLIENT RECPTS - EXT,Revenue,CL CONT EXTERNAL RESIDENTIAL,945467,130280720,12-May-16,(287.60),CRAEGMOOR OLD RECTORY BREDE PRIORY,SP0001621
WANDSWORTH COUNCIL,ASC,SOCIAL SERVICES,CUSTOMER & CLIENT RECPTS - EXT,Revenue,CL CONT EXTERNAL RESIDENTIAL,940619,130280720,06-May-16,(443.52),ACH OF LONDON LLP,SP0001688
WANDSWORTH COUNCIL,ASC,SOCIAL SERVICES,CUSTOMER & CLIENT RECPTS - EXT,Revenue,CL CONT EXTERNAL RESIDENTIAL,940810,130280720,06-May-16,(429.21),ACH OF LONDON LLP,SP0001688
WANDSWORTH COUNCIL,ASC,SOCIAL SERVICES,CUSTOMER & CLIENT RECPTS - EXT,Revenue,CL CONT EXTERNAL RESIDENTIAL,954087,130280720,23-May-16,(443.52),ACH OF LONDON LLP,SP0001688
WANDSWORTH COUNCIL,ASC,SOCIAL SERVICES,CUSTOMER & CLIENT RECPTS - EXT,Revenue,CL CONT EXTERNAL RESIDENTIAL,960815,130280720,31-May-16,(283.83),PATHWAY HEALTHCARE,SP0001779
WANDSWORTH COUNCIL,ASC,SOCIAL SERVICES,CUSTOMER & CLIENT RECPTS - EXT,Revenue,CL CONT EXTERNAL RESIDENTIAL,960816,130280720,31-May-16,(446.38),PATHWAY HEALTHCARE,SP0001779
WANDSWORTH COUNCIL,ASC,SOCIAL SERVICES,CUSTOMER & CLIENT RECPTS - EXT,Revenue,CL CONT EXTERNAL RESIDENTIAL,951114,130280720,19-May-16,(321.80),THE BRANDON TRUST,SP0005337
WANDSWORTH COUNCIL,ASC,SOCIAL SERVICES,CUSTOMER & CLIENT RECPTS - EXT,Revenue,CL CONT EXTERNAL RESIDENTIAL,954868,130280720,23-May-16,(559.33),CARE UNLIMITED DOMCARE LIMITED,SP0005359
WANDSWORTH COUNCIL,ASC,SOCIAL SERVICES,CUSTOMER & CLIENT RECPTS - EXT,Revenue,CL CONT EXTERNAL RESIDENTIAL,951120,130280720,19-May-16,(400.60),ENHAM,SP0005845
WANDSWORTH COUNCIL,ASC,SOCIAL SERVICES,CUSTOMER & CLIENT RECPTS - EXT,Revenue,CL CONT EXTERNAL RESIDENTIAL,960809,130280720,31-May-16,(332.09),NORCREST (2000) HOME LTD,SP0008343
WANDSWORTH COUNCIL,ASC,SOCIAL SERVICES,CUSTOMER & CLIENT RECPTS - EXT,Revenue,CL CONT EXTERNAL RESIDENTIAL,960810,130280720,31-May-16,(337.80),NORCREST (2000) HOME LTD,SP0008343
WANDSWORTH COUNCIL,ASC,SOCIAL SERVICES,CUSTOMER & CLIENT RECPTS - EXT,Revenue,CL CONT EXTERNAL RESIDENTIAL,957829,130280720,26-May-16,(337.80),INSPIRE CARE OUTREACH LIMITED,SP0010404
WANDSWORTH COUNCIL,ASC,SOCIAL SERVICES,CUSTOMER & CLIENT RECPTS - EXT,Revenue,CL CONT EXTERNAL RESIDENTIAL,947340,130280720,16-May-16,(337.80),C.H.O.I.C.E LIMITED,SP0010438
WANDSWORTH COUNCIL,ASC,SOCIAL SERVICES,CUSTOMER & CLIENT RECPTS - EXT,Revenue,CL CONT EXTERNAL RESIDENTIAL,945466,130280720,12-May-16,(132.00),"CRAEGMOOR, PARKCARE HOMES (NO2) LTD TA W",SP0010529
WANDSWORTH COUNCIL,ASC,SOCIAL SERVICES,CUSTOMER & CLIENT RECPTS - EXT,Revenue,CLIENT CONTS - DIRECT PAYMENTS,949067,130280790,17-May-16,(38.80),HESTIA HOUSING & SUPPORT,SP0000258
WANDSWORTH COUNCIL,ASC,SOCIAL SERVICES,CUSTOMER & CLIENT RECPTS - EXT,Revenue,CLIENT CONTS - DIRECT PAYMENTS,949361,130280790,17-May-16,(235.40),VIBRANCE,SP0005489
WANDSWORTH COUNCIL,ASC,SOCIAL SERVICES,CUSTOMER & CLIENT RECPTS - EXT,Revenue,CLIENT CONTS - DIRECT PAYMENTS,949027,130280790,17-May-16,(151.08),EPAYROLLUK LTD,SP0009092
WANDSWORTH COUNCIL,ASC,SOCIAL SERVICES,CUSTOMER & CLIENT RECPTS - EXT,Revenue,CLIENT CONTS EXTERNAL NURSING,942131,130280820,09-May-16,(337.80),WINGHAM COURT,SP0000025
WANDSWORTH COUNCIL,ASC,SOCIAL SERVICES,CUSTOMER & CLIENT RECPTS - EXT,Revenue,CLIENT CONTS EXTERNAL NURSING,940601,130280820,06-May-16,(364.60),VOYAGE CARE LTD,SP0000366
WANDSWORTH COUNCIL,ASC,SOCIAL SERVICES,CUSTOMER & CLIENT RECPTS - EXT,Revenue,CLIENT CONTS EXTERNAL NURSING,954874,130280820,23-May-16,(236.04),VOYAGE CARE LTD,SP0000366
WANDSWORTH COUNCIL,ASC,SOCIAL SERVICES,CUSTOMER & CLIENT RECPTS - EXT,Revenue,CLIENT CONTS EXTERNAL NURSING,956695,130280820,25-May-16,(400.60),VOYAGE CARE LTD,SP0000366
WANDSWORTH COUNCIL,ASC,SOCIAL SERVICES,CUSTOMER & CLIENT RECPTS - EXT,Revenue,CLIENT CONTS EXTERNAL NURSING,953170,130280820,20-May-16,(522.80),BUPA CARE SERVICES BACS RECEIPTS,SP0000644
WANDSWORTH COUNCIL,ASC,SOCIAL SERVICES,CUSTOMER & CLIENT RECPTS - EXT,Revenue,CLIENT CONTS EXTERNAL NURSING,947322,130280820,16-May-16,(343.80),HIGH HURLANDS HOMES,SP0000668
WANDSWORTH COUNCIL,ASC,SOCIAL SERVICES,CUSTOMER & CLIENT RECPTS - EXT,Revenue,CLIENT CONTS EXTERNAL NURSING,952443,130280820,20-May-16,(343.80),HIGH HURLANDS HOMES,SP0000668
WANDSWORTH COUNCIL,ASC,SOCIAL SERVICES,CUSTOMER & CLIENT RECPTS - EXT,Revenue,CLIENT CONTS EXTERNAL NURSING,958538,130280820,26-May-16,(343.80),HIGH HURLANDS HOMES,SP0000668
WANDSWORTH COUNCIL,ASC,SOCIAL SERVICES,CUSTOMER & CLIENT RECPTS - EXT,Revenue,RNCC,942131,130284120,09-May-16,(448.00),WINGHAM COURT,SP0000025
WANDSWORTH COUNCIL,ASC,SOCIAL SERVICES,CUSTOMER & CLIENT RECPTS - EXT,Revenue,RNCC,940601,130284120,06-May-16,(448.00),VOYAGE CARE LTD,SP0000366
WANDSWORTH COUNCIL,ASC,SOCIAL SERVICES,CUSTOMER & CLIENT RECPTS - EXT,Revenue,RNCC,956695,130284120,25-May-16,(448.00),VOYAGE CARE LTD,SP0000366
WANDSWORTH COUNCIL,ASC,SOCIAL SERVICES,CUSTOMER & CLIENT RECPTS - EXT,Revenue,RNCC,953170,130284120,20-May-16,(448.00),BUPA CARE SERVICES BACS RECEIPTS,SP0000644
WANDSWORTH COUNCIL,ASC,SOCIAL SERVICES,CUSTOMER & CLIENT RECPTS - EXT,Revenue,RNCC,947322,130284120,16-May-16,(616.56),HIGH HURLANDS HOMES,SP0000668
WANDSWORTH COUNCIL,ASC,SOCIAL SERVICES,CUSTOMER & CLIENT RECPTS - EXT,Revenue,RNCC,952443,130284120,20-May-16,(616.56),HIGH HURLANDS HOMES,SP0000668
WANDSWORTH COUNCIL,ASC,SOCIAL SERVICES,CUSTOMER & CLIENT RECPTS - EXT,Revenue,RNCC,958538,130284120,26-May-16,(616.56),HIGH HURLANDS HOMES,SP0000668
WANDSWORTH COUNCIL,ASC,,SERVICES,Revenue,PROJECT WORK,950728,130634800,19-May-16,"7,500.00",WANDSWORTH CARE ALLIANCE,SP0008176
WANDSWORTH COUNCIL,ASC,,"REPAIRS, ALTERATIONS & MTCE",Revenue,"REPS, ALTS & MTCE-BUILDINGS",946751,135010000,24-May-16,"7,500.00",VIRIDIAN HOUSING,SP0001289
WANDSWORTH COUNCIL,ASC,,DIRECT2,Revenue,AGENCY STAFF,914855,140400510,09-May-16,"2,696.06",SOUTH WEST LONDON & ST GEORGES MENTAL HE,SP0000358
WANDSWORTH COUNCIL,ASC,SOCIAL SERVICES,PRIVATE,Revenue,EXTERNAL RESIDENTIAL CARE,942108,140545330,09-May-16,"6,038.36",SIGNHEALTH,SP0000496
WANDSWORTH COUNCIL,ASC,SOCIAL SERVICES,PRIVATE,Revenue,EXTERNAL RESIDENTIAL CARE,942109,140545330,09-May-16,"7,041.92",SIGNHEALTH,SP0000496
WANDSWORTH COUNCIL,ASC,SOCIAL SERVICES,PRIVATE,Revenue,EXTERNAL RESIDENTIAL CARE,942110,140545330,09-May-16,"5,950.76",SIGNHEALTH,SP0000496
WANDSWORTH COUNCIL,ASC,SOCIAL SERVICES,PRIVATE,Revenue,EXTERNAL RESIDENTIAL CARE,951124,140545330,19-May-16,"10,511.04",BUTTERFLYS CARE HOMES LTD,SP0008006
WANDSWORTH COUNCIL,ASC,SOCIAL SERVICES,OTHER AGENCIES,Revenue,EXTERNAL OUTREACH,940663,142043330,06-May-16,471.15,NAS SERVICES LIMITED,SP0000217
WANDSWORTH COUNCIL,ASC,SOCIAL SERVICES,OTHER AGENCIES,Revenue,EXTERNAL OUTREACH,947893,142043330,16-May-16,628.20,NAS SERVICES LIMITED,SP0000217
WANDSWORTH COUNCIL,ASC,SOCIAL SERVICES,OTHER AGENCIES,Revenue,EXTERNAL OUTREACH,959490,142043330,27-May-16,536.22,NAS SERVICES LIMITED,SP0000217
WANDSWORTH COUNCIL,ASC,SOCIAL SERVICES,OTHER AGENCIES,Revenue,EXTERNAL OUTREACH,947473,142043330,16-May-16,506.92,ROYAL ASSOCIATION FOR DEAF PEOPLE,SP0001251
WANDSWORTH COUNCIL,ASC,SOCIAL SERVICES,PRIVATE,Revenue,EXTERNAL- MISC (CLEAN-UPS ETC),938679,142045280,04-May-16,"1,288.00",SOMA HEALTHCARE LTD,SP0001116
WANDSWORTH COUNCIL,ASC,SOCIAL SERVICES,PRIVATE,Revenue,EXTERNAL DAYCARE,957920,142045290,26-May-16,515.88,NAS SERVICES LIMITED,SP0000217
WANDSWORTH COUNCIL,ASC,SOCIAL SERVICES,PRIVATE,Revenue,EXTERNAL DAYCARE,937623,142045290,04-May-16,713.28,SHARE COMMUNITY,SP0000329
WANDSWORTH COUNCIL,ASC,SOCIAL SERVICES,PRIVATE,Revenue,EXTERNAL DAYCARE,937624,142045290,04-May-16,891.60,SHARE COMMUNITY,SP0000329
WANDSWORTH COUNCIL,ASC,SOCIAL SERVICES,PRIVATE,Revenue,EXTERNAL DAYCARE,937625,142045290,04-May-16,713.28,SHARE COMMUNITY,SP0000329
WANDSWORTH COUNCIL,ASC,SOCIAL SERVICES,PRIVATE,Revenue,EXTERNAL DAYCARE,937626,142045290,04-May-16,713.28,SHARE COMMUNITY,SP0000329
WANDSWORTH COUNCIL,ASC,SOCIAL SERVICES,PRIVATE,Revenue,EXTERNAL DAYCARE,937627,142045290,04-May-16,891.60,SHARE COMMUNITY,SP0000329
WANDSWORTH COUNCIL,ASC,SOCIAL SERVICES,PRIVATE,Revenue,EXTERNAL DAYCARE,937628,142045290,04-May-16,713.28,SHARE COMMUNITY,SP0000329
WANDSWORTH COUNCIL,ASC,SOCIAL SERVICES,PRIVATE,Revenue,EXTERNAL DAYCARE,937629,142045290,04-May-16,713.28,SHARE COMMUNITY,SP0000329
WANDSWORTH COUNCIL,ASC,SOCIAL SERVICES,PRIVATE,Revenue,EXTERNAL DAYCARE,954905,142045290,23-May-16,897.65,SHARE COMMUNITY,SP0000329
WANDSWORTH COUNCIL,ASC,SOCIAL SERVICES,PRIVATE,Revenue,EXTERNAL DAYCARE,952558,142045290,20-May-16,722.00,WANDSWORTH BENGALI WELFARE ASSOCIATION,SP0000479
WANDSWORTH COUNCIL,ASC,SOCIAL SERVICES,PRIVATE,Revenue,EXTERNAL DAYCARE,940630,142045290,06-May-16,552.00,SOUND MINDS,SP0000721
WANDSWORTH COUNCIL,ASC,SOCIAL SERVICES,PRIVATE,Revenue,EXTERNAL DAYCARE,940628,142045290,06-May-16,765.00,FAMILY ACTION,SP0002022
WANDSWORTH COUNCIL,ASC,SOCIAL SERVICES,PRIVATE,Revenue,EXTERNAL DAYCARE,947417,142045290,16-May-16,715.00,WESTMINSTER MIND,SP0005471
WANDSWORTH COUNCIL,ASC,SOCIAL SERVICES,PRIVATE,Revenue,EXTERNAL HOMECARE,940819,142045300,06-May-16,"1,121.83",HOLISTIC COMMUNITY CARE LTD,SP0000032
WANDSWORTH COUNCIL,ASC,SOCIAL SERVICES,PRIVATE,Revenue,EXTERNAL HOMECARE,940850,142045300,06-May-16,622.53,HOLISTIC COMMUNITY CARE LTD,SP0000032
WANDSWORTH COUNCIL,ASC,SOCIAL SERVICES,PRIVATE,Revenue,EXTERNAL HOMECARE,952517,142045300,20-May-16,"1,591.44",MUSHKIL AASAAN LTD,SP0000978
WANDSWORTH COUNCIL,ASC,SOCIAL SERVICES,PRIVATE,Revenue,EXTERNAL HOMECARE,957842,142045300,26-May-16,981.45,SOMA HEALTHCARE LTD,SP0001116
WANDSWORTH COUNCIL,ASC,SOCIAL SERVICES,PRIVATE,Revenue,EXTERNAL HOMECARE,957845,142045300,26-May-16,928.03,SOMA HEALTHCARE LTD,SP0001116
WANDSWORTH COUNCIL,ASC,SOCIAL SERVICES,PRIVATE,Revenue,EXTERNAL HOMECARE,942142,142045300,09-May-16,"2,787.79",WESTMINSTER HOMECARE LTD,SP0001548
WANDSWORTH COUNCIL,ASC,SOCIAL SERVICES,PRIVATE,Revenue,EXTERNAL HOMECARE,939155,142045300,04-May-16,629.05,SUPREME CARE SERVICE LTD,SP0001600
WANDSWORTH COUNCIL,ASC,SOCIAL SERVICES,PRIVATE,Revenue,EXTERNAL HOMECARE,942146,142045300,09-May-16,597.00,HOME INSTEAD SENIOR CARE LTD,SP0005355
WANDSWORTH COUNCIL,ASC,SOCIAL SERVICES,PRIVATE,Revenue,EXTERNAL HOMECARE,951712,142045300,19-May-16,636.80,HOME INSTEAD SENIOR CARE LTD,SP0005355
WANDSWORTH COUNCIL,ASC,SOCIAL SERVICES,PRIVATE,Revenue,EXTERNAL HOMECARE,944418,142045300,11-May-16,279.05,STOCKWELLCARE SUPPORT SERVICES,SP0006011
WANDSWORTH COUNCIL,ASC,SOCIAL SERVICES,PRIVATE,Revenue,EXTERNAL HOMECARE,944419,142045300,11-May-16,618.02,STOCKWELLCARE SUPPORT SERVICES,SP0006011
WANDSWORTH COUNCIL,ASC,SOCIAL SERVICES,PRIVATE,Revenue,EXTERNAL HOMECARE,938570,142045300,04-May-16,"1,015.42",LONDON HOMECARE LTD,SP0009029
WANDSWORTH COUNCIL,ASC,SOCIAL SERVICES,PRIVATE,Revenue,EXTERNAL HOMECARE,947369,142045300,16-May-16,940.20,PROFESSIONAL CARE SUPPORT SERVICES LTD,SP0010033
WANDSWORTH COUNCIL,ASC,SOCIAL SERVICES,PRIVATE,Revenue,EXTERNAL HOMECARE,947370,142045300,16-May-16,548.91,PROFESSIONAL CARE SUPPORT SERVICES LTD,SP0010033
WANDSWORTH COUNCIL,ASC,SOCIAL SERVICES,PRIVATE,Revenue,EXTERNAL HOMECARE,947371,142045300,16-May-16,"1,254.57",PROFESSIONAL CARE SUPPORT SERVICES LTD,SP0010033
WANDSWORTH COUNCIL,ASC,SOCIAL SERVICES,PRIVATE,Revenue,EXTERNAL HOMECARE,947372,142045300,16-May-16,731.88,PROFESSIONAL CARE SUPPORT SERVICES LTD,SP0010033
WANDSWORTH COUNCIL,ASC,SOCIAL SERVICES,PRIVATE,Revenue,EXTERNAL HOMECARE,947376,142045300,16-May-16,"1,254.57",PROFESSIONAL CARE SUPPORT SERVICES LTD,SP0010033
WANDSWORTH COUNCIL,ASC,SOCIAL SERVICES,PRIVATE,Revenue,EXTERNAL HOMECARE,947377,142045300,16-May-16,731.88,PROFESSIONAL CARE SUPPORT SERVICES LTD,SP0010033
WANDSWORTH COUNCIL,ASC,SOCIAL SERVICES,PRIVATE,Revenue,EXTERNAL HOMECARE,959473,142045300,27-May-16,"1,254.57",PROFESSIONAL CARE SUPPORT SERVICES LTD,SP0010033
WANDSWORTH COUNCIL,ASC,SOCIAL SERVICES,PRIVATE,Revenue,EXTERNAL HOMECARE,959474,142045300,27-May-16,731.88,PROFESSIONAL CARE SUPPORT SERVICES LTD,SP0010033
WANDSWORTH COUNCIL,ASC,SOCIAL SERVICES,PRIVATE,Revenue,EXTERNAL HOMECARE,939236,142045300,04-May-16,750.00,HOME & DRY MAINTENANCE,SP0010799
WANDSWORTH COUNCIL,ASC,SOCIAL SERVICES,PRIVATE,Revenue,EXTERNAL HOMECARE,939237,142045300,04-May-16,670.00,HOME & DRY MAINTENANCE,SP0010799
WANDSWORTH COUNCIL,ASC,SOCIAL SERVICES,PRIVATE,Revenue,EXTERNAL NURSING CARE,953123,142045310,20-May-16,"2,716.60",GEORGE POTTER CARE HOME LTD,SP0000276
WANDSWORTH COUNCIL,ASC,SOCIAL SERVICES,PRIVATE,Revenue,EXTERNAL NURSING CARE,958535,142045310,26-May-16,"2,683.71",THE DULWICH CARE CENTRE,SP0000367
WANDSWORTH COUNCIL,ASC,SOCIAL SERVICES,PRIVATE,Revenue,EXTERNAL NURSING CARE,952972,142045310,20-May-16,"4,225.32",TRINITY COURT NURSING HOME,SP0001001
WANDSWORTH COUNCIL,ASC,SOCIAL SERVICES,PRIVATE,Revenue,EXTERNAL NURSING CARE,952980,142045310,20-May-16,"3,406.68",TRINITY COURT NURSING HOME,SP0001001
WANDSWORTH COUNCIL,ASC,SOCIAL SERVICES,PRIVATE,Revenue,EXTERNAL NURSING CARE,952981,142045310,20-May-16,"2,919.44",TRINITY COURT NURSING HOME,SP0001001
WANDSWORTH COUNCIL,ASC,SOCIAL SERVICES,PRIVATE,Revenue,EXTERNAL NURSING CARE,952983,142045310,20-May-16,"3,239.52",TRINITY COURT NURSING HOME,SP0001001
WANDSWORTH COUNCIL,ASC,SOCIAL SERVICES,PRIVATE,Revenue,EXTERNAL NURSING CARE,952984,142045310,20-May-16,"2,969.44",TRINITY COURT NURSING HOME,SP0001001
WANDSWORTH COUNCIL,ASC,SOCIAL SERVICES,PRIVATE,Revenue,EXTERNAL NURSING CARE,952985,142045310,20-May-16,"2,973.12",TRINITY COURT NURSING HOME,SP0001001
WANDSWORTH COUNCIL,ASC,SOCIAL SERVICES,PRIVATE,Revenue,EXTERNAL NURSING CARE,952987,142045310,20-May-16,"2,948.84",TRINITY COURT NURSING HOME,SP0001001
WANDSWORTH COUNCIL,ASC,SOCIAL SERVICES,PRIVATE,Revenue,EXTERNAL NURSING CARE,952988,142045310,20-May-16,"2,877.72",TRINITY COURT NURSING HOME,SP0001001
WANDSWORTH COUNCIL,ASC,SOCIAL SERVICES,PRIVATE,Revenue,EXTERNAL NURSING CARE,950449,142045310,18-May-16,"2,334.00",TRILODGE LTD,SP0001156
WANDSWORTH COUNCIL,ASC,SOCIAL SERVICES,PRIVATE,Revenue,EXTERNAL NURSING CARE,951065,142045310,19-May-16,"3,573.41",TRILODGE LTD,SP0001156
WANDSWORTH COUNCIL,ASC,SOCIAL SERVICES,PRIVATE,Revenue,EXTERNAL NURSING CARE,951066,142045310,19-May-16,"3,578.33",TRILODGE LTD,SP0001156
WANDSWORTH COUNCIL,ASC,SOCIAL SERVICES,PRIVATE,Revenue,EXTERNAL NURSING CARE,951685,142045310,19-May-16,933.60,TRILODGE LTD,SP0001156
WANDSWORTH COUNCIL,ASC,SOCIAL SERVICES,PRIVATE,Revenue,EXTERNAL NURSING CARE,958539,142045310,26-May-16,"3,458.14",TRILODGE LTD,SP0001156
WANDSWORTH COUNCIL,ASC,SOCIAL SERVICES,PRIVATE,Revenue,EXTERNAL NURSING CARE,958540,142045310,26-May-16,"3,462.90",TRILODGE LTD,SP0001156
WANDSWORTH COUNCIL,ASC,SOCIAL SERVICES,PRIVATE,Revenue,EXTERNAL NURSING CARE,953058,142045310,20-May-16,"2,615.52",LIFE STYLE CARE (2011) PLC,SP0001580
WANDSWORTH COUNCIL,ASC,SOCIAL SERVICES,PRIVATE,Revenue,EXTERNAL NURSING CARE,953101,142045310,20-May-16,"2,615.52",LIFE STYLE CARE (2011) PLC,SP0001580
WANDSWORTH COUNCIL,ASC,SOCIAL SERVICES,PRIVATE,Revenue,EXTERNAL RESIDENTIAL CARE,940804,142045330,06-May-16,"3,857.14",OWNLIFE LIMITED,SP0000034
WANDSWORTH COUNCIL,ASC,SOCIAL SERVICES,PRIVATE,Revenue,EXTERNAL RESIDENTIAL CARE,939142,142045330,04-May-16,"7,840.44",CMG HOMES LTD,SP0000075
WANDSWORTH COUNCIL,ASC,SOCIAL SERVICES,PRIVATE,Revenue,EXTERNAL RESIDENTIAL CARE,952953,142045330,20-May-16,"2,438.60",RICHARD CUSDEN HOMES LTD,SP0000268
WANDSWORTH COUNCIL,ASC,SOCIAL SERVICES,PRIVATE,Revenue,EXTERNAL RESIDENTIAL CARE,953041,142045330,20-May-16,"2,545.20",JOYCARE HOME SERVICES LTD,SP0000339
WANDSWORTH COUNCIL,ASC,SOCIAL SERVICES,PRIVATE,Revenue,EXTERNAL RESIDENTIAL CARE,956691,142045330,25-May-16,"2,795.54",ASTRA HOMES LTD,SP0000374
WANDSWORTH COUNCIL,ASC,SOCIAL SERVICES,PRIVATE,Revenue,EXTERNAL RESIDENTIAL CARE,951037,142045330,19-May-16,"3,131.00",REDACTED PERSONAL DATA,SP0000408
WANDSWORTH COUNCIL,ASC,SOCIAL SERVICES,PRIVATE,Revenue,EXTERNAL RESIDENTIAL CARE,951123,142045330,19-May-16,"3,542.99",LANGLEY COURT REST HOME,SP0000580
WANDSWORTH COUNCIL,ASC,SOCIAL SERVICES,PRIVATE,Revenue,EXTERNAL RESIDENTIAL CARE,958528,142045330,26-May-16,"2,855.91",THE REGARD PARTNERSHIP,SP0000588
WANDSWORTH COUNCIL,ASC,SOCIAL SERVICES,PRIVATE,Revenue,EXTERNAL RESIDENTIAL CARE,958529,142045330,26-May-16,"2,951.11",THE REGARD PARTNERSHIP,SP0000588
WANDSWORTH COUNCIL,ASC,SOCIAL SERVICES,PRIVATE,Revenue,EXTERNAL RESIDENTIAL CARE,937618,142045330,04-May-16,"3,958.50",ROSCLARE,SP0000663
WANDSWORTH COUNCIL,ASC,SOCIAL SERVICES,PRIVATE,Revenue,EXTERNAL RESIDENTIAL CARE,951101,142045330,19-May-16,"5,092.99",229 MITCHAM LANE LTD,SP0000884
WANDSWORTH COUNCIL,ASC,SOCIAL SERVICES,PRIVATE,Revenue,EXTERNAL RESIDENTIAL CARE,951102,142045330,19-May-16,"5,092.99",229 MITCHAM LANE LTD,SP0000884
WANDSWORTH COUNCIL,ASC,SOCIAL SERVICES,PRIVATE,Revenue,EXTERNAL RESIDENTIAL CARE,939125,142045330,04-May-16,"4,500.00",TOGETHER WORKING FOR WELLBEING,SP0000950
WANDSWORTH COUNCIL,ASC,SOCIAL SERVICES,PRIVATE,Revenue,EXTERNAL RESIDENTIAL CARE,939126,142045330,04-May-16,"4,153.76",TOGETHER WORKING FOR WELLBEING,SP0000950
WANDSWORTH COUNCIL,ASC,SOCIAL SERVICES,PRIVATE,Revenue,EXTERNAL RESIDENTIAL CARE,960807,142045330,31-May-16,"4,500.00",TOGETHER WORKING FOR WELLBEING,SP0000950
WANDSWORTH COUNCIL,ASC,SOCIAL SERVICES,PRIVATE,Revenue,EXTERNAL RESIDENTIAL CARE,960808,142045330,31-May-16,"4,153.76",TOGETHER WORKING FOR WELLBEING,SP0000950
WANDSWORTH COUNCIL,ASC,SOCIAL SERVICES,PRIVATE,Revenue,EXTERNAL RESIDENTIAL CARE,939124,142045330,04-May-16,"2,442.86",THORNTON LODGE,SP0001197
WANDSWORTH COUNCIL,ASC,SOCIAL SERVICES,PRIVATE,Revenue,EXTERNAL RESIDENTIAL CARE,951144,142045330,19-May-16,"2,418.00",THORNTON LODGE,SP0001197
WANDSWORTH COUNCIL,ASC,SOCIAL SERVICES,PRIVATE,Revenue,EXTERNAL RESIDENTIAL CARE,952445,142045330,20-May-16,"2,524.29",THORNTON LODGE,SP0001197
WANDSWORTH COUNCIL,ASC,SOCIAL SERVICES,PRIVATE,Revenue,EXTERNAL RESIDENTIAL CARE,939121,142045330,04-May-16,"2,960.31",DEEPDENE CARE LTD,SP0001199
WANDSWORTH COUNCIL,ASC,SOCIAL SERVICES,PRIVATE,Revenue,EXTERNAL RESIDENTIAL CARE,939122,142045330,04-May-16,"3,054.35",DEEPDENE CARE LTD,SP0001199
WANDSWORTH COUNCIL,ASC,SOCIAL SERVICES,PRIVATE,Revenue,EXTERNAL RESIDENTIAL CARE,939123,142045330,04-May-16,"2,156.79",DEEPDENE CARE LTD,SP0001199
WANDSWORTH COUNCIL,ASC,SOCIAL SERVICES,PRIVATE,Revenue,EXTERNAL RESIDENTIAL CARE,951061,142045330,19-May-16,"2,228.72",DEEPDENE CARE LTD,SP0001199
WANDSWORTH COUNCIL,ASC,SOCIAL SERVICES,PRIVATE,Revenue,EXTERNAL RESIDENTIAL CARE,951063,142045330,19-May-16,"2,460.07",DEEPDENE CARE LTD,SP0001199
WANDSWORTH COUNCIL,ASC,SOCIAL SERVICES,PRIVATE,Revenue,EXTERNAL RESIDENTIAL CARE,951068,142045330,19-May-16,"3,058.99",DEEPDENE CARE LTD,SP0001199
WANDSWORTH COUNCIL,ASC,SOCIAL SERVICES,PRIVATE,Revenue,EXTERNAL RESIDENTIAL CARE,951069,142045330,19-May-16,"3,136.67",DEEPDENE CARE LTD,SP0001199
WANDSWORTH COUNCIL,ASC,SOCIAL SERVICES,PRIVATE,Revenue,EXTERNAL RESIDENTIAL CARE,951070,142045330,19-May-16,"2,228.68",DEEPDENE CARE LTD,SP0001199
WANDSWORTH COUNCIL,ASC,SOCIAL SERVICES,PRIVATE,Revenue,EXTERNAL RESIDENTIAL CARE,951683,142045330,19-May-16,"2,156.83",DEEPDENE CARE LTD,SP0001199
WANDSWORTH COUNCIL,ASC,SOCIAL SERVICES,PRIVATE,Revenue,EXTERNAL RESIDENTIAL CARE,951684,142045330,19-May-16,"2,374.00",DEEPDENE CARE LTD,SP0001199
WANDSWORTH COUNCIL,ASC,SOCIAL SERVICES,PRIVATE,Revenue,EXTERNAL RESIDENTIAL CARE,954870,142045330,23-May-16,"3,156.16",DEEPDENE CARE LTD,SP0001199
WANDSWORTH COUNCIL,ASC,SOCIAL SERVICES,PRIVATE,Revenue,EXTERNAL RESIDENTIAL CARE,951040,142045330,19-May-16,"3,281.30",REDACTED PERSONAL DATA,SP0001200
WANDSWORTH COUNCIL,ASC,SOCIAL SERVICES,PRIVATE,Revenue,EXTERNAL RESIDENTIAL CARE,951041,142045330,19-May-16,"3,281.30",REDACTED PERSONAL DATA,SP0001200
WANDSWORTH COUNCIL,ASC,SOCIAL SERVICES,PRIVATE,Revenue,EXTERNAL RESIDENTIAL CARE,951042,142045330,19-May-16,"3,393.00",REDACTED PERSONAL DATA,SP0001200
WANDSWORTH COUNCIL,ASC,SOCIAL SERVICES,PRIVATE,Revenue,EXTERNAL RESIDENTIAL CARE,951138,142045330,19-May-16,"2,524.29",CROWNWISE LTD,SP0001202
WANDSWORTH COUNCIL,ASC,SOCIAL SERVICES,PRIVATE,Revenue,EXTERNAL RESIDENTIAL CARE,959449,142045330,27-May-16,"3,000.00",CROWNWISE LTD,SP0001202
WANDSWORTH COUNCIL,ASC,SOCIAL SERVICES,PRIVATE,Revenue,EXTERNAL RESIDENTIAL CARE,959450,142045330,27-May-16,"3,100.00",CROWNWISE LTD,SP0001202
WANDSWORTH COUNCIL,ASC,SOCIAL SERVICES,PRIVATE,Revenue,EXTERNAL RESIDENTIAL CARE,959451,142045330,27-May-16,"3,400.01",CROWNWISE LTD,SP0001202
WANDSWORTH COUNCIL,ASC,SOCIAL SERVICES,PRIVATE,Revenue,EXTERNAL RESIDENTIAL CARE,959452,142045330,27-May-16,"3,100.00",CROWNWISE LTD,SP0001202
WANDSWORTH COUNCIL,ASC,SOCIAL SERVICES,PRIVATE,Revenue,EXTERNAL RESIDENTIAL CARE,937615,142045330,04-May-16,"3,400.00",ADMIRAL HEALTHCARE LTD,SP0001227
WANDSWORTH COUNCIL,ASC,SOCIAL SERVICES,PRIVATE,Revenue,EXTERNAL RESIDENTIAL CARE,951687,142045330,19-May-16,"3,400.00",ADMIRAL HEALTHCARE LTD,SP0001227
WANDSWORTH COUNCIL,ASC,SOCIAL SERVICES,PRIVATE,Revenue,EXTERNAL RESIDENTIAL CARE,954847,142045330,23-May-16,"2,284.43",JEWISH CARE,SP0001229
WANDSWORTH COUNCIL,ASC,SOCIAL SERVICES,PRIVATE,Revenue,EXTERNAL RESIDENTIAL CARE,947330,142045330,16-May-16,"3,440.00",COMMUNITY HOUSING & THERAPY,SP0001366
WANDSWORTH COUNCIL,ASC,SOCIAL SERVICES,PRIVATE,Revenue,EXTERNAL RESIDENTIAL CARE,947331,142045330,16-May-16,"2,580.00",COMMUNITY HOUSING & THERAPY,SP0001366
